Department,Entity,Transaction Date, Supplier Name, Amount, Expense Type, Expense Area, Invoice Description, Component Code
DFID,DFID,03/09/2012,Hays Specialist Recruitment Ltd ,612,Contract & Agency Staff ,Asia  Caribbean and Overseas Territories ,,100084-101 
DFID,DFID,03/09/2012,NatCen Learning ,650,Training - Course Fees ,Asia  Caribbean and Overseas Territories ,,101611-101 
DFID,DFID,03/09/2012,ANDREW WEIR SHIPPING LTD ,"1,698",Other passenger transport ,Asia  Caribbean and Overseas Territories ,,201739-101 
DFID,DFID,03/09/2012,ANDREW WEIR SHIPPING LTD ,"1,698",Other passenger transport ,Asia  Caribbean and Overseas Territories ,,201739-101 
DFID,DFID,03/09/2012,SAINT HELENA NATIONAL TRUST ,"5,125",Aid Programme - Accountable Grant Payments ,Asia  Caribbean and Overseas Territories ,,201049-101 
DFID,DFID,03/09/2012,Andrew Rogers (Self Employed) ,"21,339",Technical and Advisory Services ,Asia  Caribbean and Overseas Territories ,,202083-101 
DFID,DFID,03/09/2012,GHK CONSULTING LTD ,"110,369",Technical and Advisory Services ,Asia  Caribbean and Overseas Territories ,,114168-101 
DFID,DFID,04/09/2012,TURNER & TOWNSEND ,"2,405",Technical and Advisory Services ,Asia  Caribbean and Overseas Territories ,,100151-101 
DFID,DFID,04/09/2012,Elias Ahmed ,"2,648",Technical and Advisory Services ,Asia  Caribbean and Overseas Territories ,,107448-103 
DFID,DFID,04/09/2012,Coffey International Development Pty Ltd ,"26,140",Technical and Advisory Services ,Asia  Caribbean and Overseas Territories ,,202832-103 
DFID,DFID,04/09/2012,Coffey International Development Pty Ltd ,"26,457",Technical and Advisory Services ,Asia  Caribbean and Overseas Territories ,,202832-103 
DFID,DFID,04/09/2012,Surja Setu Samaj Kallyan Sangstha ,"40,141",Aid Programme - Accountable Grant Payments ,Asia  Caribbean and Overseas Territories ,,113287-102 
DFID,DFID,05/09/2012,Hays Specialist Recruitment Ltd ,589,Contract & Agency Staff ,Asia  Caribbean and Overseas Territories ,,100084-101 
DFID,DFID,05/09/2012,Saimon Overseas Ltd ,890,Air fares ,Asia  Caribbean and Overseas Territories ,,101603-102 
DFID,DFID,05/09/2012,BRITISH HIGH COMMISSION ,906,Subscriptions ,Asia  Caribbean and Overseas Territories ,,100113-101 
DFID,DFID,05/09/2012,BRITISH HIGH COMMISSION ,906,Subscriptions ,Asia  Caribbean and Overseas Territories ,,100113-101 
DFID,DFID,05/09/2012,Habitat World ,"1,765",Conferences  Seminars & Meeting/Event Resource ,Asia  Caribbean and Overseas Territories ,,114487-103 
DFID,DFID,05/09/2012,Amarchand & Mangaldas & Suresh A Shroff & Co. ,"3,964",Technical and Advisory Services ,Asia  Caribbean and Overseas Territories ,,114293-102 
DFID,DFID,05/09/2012,CB RICHARD ELLIS SOUTH ASIA PVT LTD ,"5,755",Facilities Management payments ,Asia  Caribbean and Overseas Territories ,,201689-105 
DFID,DFID,05/09/2012,TURNER & TOWNSEND ,"9,360",Repairs  Maint  Alter - Property & Constrct. Services ,Asia  Caribbean and Overseas Territories ,,202083-101 
DFID,DFID,05/09/2012,British Council India ,"9,500",Technical and Advisory Services ,Asia  Caribbean and Overseas Territories ,,201642-101 
DFID,DFID,05/09/2012,N D Hearnden ,"13,943",Technical and Advisory Services ,Asia  Caribbean and Overseas Territories ,,202083-101 
DFID,DFID,05/09/2012, The Government of India ,"18,374",Aid Programme - Other Financial Aid to Government ,Asia  Caribbean and Overseas Territories ,,113617-101 
DFID,DFID,05/09/2012,MOTT MACDONALD LTD ,"26,857",Technical and Advisory Services ,Asia  Caribbean and Overseas Territories ,,203390-101 
DFID,DFID,05/09/2012,TURNER & TOWNSEND ,"36,793",Technical and Advisory Services ,Asia  Caribbean and Overseas Territories ,,201652-105 
DFID,DFID,05/09/2012,DELOITTE TOUCHE TOHMATSU INDIA PRIVA ,"43,081",Technical and Advisory Services ,Asia  Caribbean and Overseas Territories ,,108070-101 
DFID,DFID,05/09/2012,HTSPE LTD ,"46,412",Technical and Advisory Services ,Asia  Caribbean and Overseas Territories ,,114058-101 
DFID,DFID,05/09/2012,TURNER & TOWNSEND ,"145,173",Technical and Advisory Services ,Asia  Caribbean and Overseas Territories ,,100114-104 
DFID,DFID,05/09/2012, The Government of India ,"1,252,636",Aid Programme - Other Financial Aid to Government ,Asia  Caribbean and Overseas Territories ,,108027-102 
DFID,DFID,06/09/2012,QAI India Ltd. ,503,Training - Course Fees ,Asia  Caribbean and Overseas Territories ,,100025-105 
DFID,DFID,06/09/2012,Hays Specialist Recruitment Ltd ,612,Contract & Agency Staff ,Asia  Caribbean and Overseas Territories ,,100084-101 
DFID,DFID,06/09/2012,Hays Specialist Recruitment Ltd ,665,Contract & Agency Staff ,Asia  Caribbean and Overseas Territories ,,100084-101 
DFID,DFID,06/09/2012,Summit Hotel Pvt Ltd ,"1,168",Hotels - Accommodation only ,Asia  Caribbean and Overseas Territories ,,100150-101 
DFID,DFID,06/09/2012,Pulser Computer & Network ,"2,701",Computer hardware maintenance ,Asia  Caribbean and Overseas Territories ,,100025-101 
DFID,DFID,06/09/2012,Intellectual Capital Advisory Services Private Limited ,"8,419",Technical and Advisory Services ,Asia  Caribbean and Overseas Territories ,,114293-103 
DFID,DFID,06/09/2012,STEPHEN A TURNBULL ,"29,711",Technical and Advisory Services ,Asia  Caribbean and Overseas Territories ,,202083-101 
DFID,DFID,06/09/2012,The Energy and Resources Institute (TERI) ,"31,723",Aid Programme - Accountable Grant Payments ,Asia  Caribbean and Overseas Territories ,,200754-104 
DFID,DFID,06/09/2012,The Energy and Resources Institute (TERI) ,"75,340",Aid Programme - Accountable Grant Payments ,Asia  Caribbean and Overseas Territories ,,200754-101 
DFID,DFID,06/09/2012,GHK CONSULTING LTD ,"119,008",Technical and Advisory Services ,Asia  Caribbean and Overseas Territories ,,114168-101 
DFID,DFID,06/09/2012,The Energy and Resources Institute (TERI) ,"138,179",Aid Programme - Accountable Grant Payments ,Asia  Caribbean and Overseas Territories ,,200754-104 
DFID,DFID,07/09/2012,Nepal Oil Corporation ,707,Vehicle Petrol & Oil ,Asia  Caribbean and Overseas Territories ,,100150-103 
DFID,DFID,07/09/2012,Andreas Wilkes ,900,Technical and Advisory Services ,Asia  Caribbean and Overseas Territories ,,200581-113 
DFID,DFID,07/09/2012,Nepal Oil Corporation ,"1,314",Vehicle Petrol & Oil ,Asia  Caribbean and Overseas Territories ,,101621-103 
DFID,DFID,07/09/2012,HAREWELLE INTERNATIONAL LIMITED ,"16,431",Technical and Advisory Services ,Asia  Caribbean and Overseas Territories ,,114058-101 
DFID,DFID,07/09/2012,IMC Worldwide Ltd ,"24,800",Technical and Advisory Services ,Asia  Caribbean and Overseas Territories ,,202967-101 
DFID,DFID,07/09/2012,HTSPE LTD ,"38,250",Technical and Advisory Services ,Asia  Caribbean and Overseas Territories ,,201129-104 
DFID,DFID,07/09/2012,ADAM SMITH INTERNATIONAL  LTD ,"62,222",Technical and Advisory Services ,Asia  Caribbean and Overseas Territories ,,201367-103 
DFID,DFID,09/09/2012,Haroon Engineering Limited ,529,Building Plant - Air Conditioners ,Asia  Caribbean and Overseas Territories ,,100025-101 
DFID,DFID,10/09/2012,Supplier Name withheld ,"2,268",Secure Staff Accomodation,Asia  Caribbean and Overseas Territories ,,101603-101 
DFID,DFID,10/09/2012,Supplier Name withheld ,"2,398",Secure Staff Accomodation,Asia  Caribbean and Overseas Territories ,,101603-101 
DFID,DFID,10/09/2012,Institute of Public Policy  Beaconhouse National University ,"33,469",Aid Programme - Accountable Grant Payments ,Asia  Caribbean and Overseas Territories ,,203035-101 
DFID,DFID,10/09/2012,THE REGIONAL LAW REVISION CENRE ,"161,116",Aid Programme - Accountable Grant Payments ,Asia  Caribbean and Overseas Territories ,,203005-101 
DFID,DFID,10/09/2012,Population Services Internation (usa) ,"372,975",Aid Programme - Accountable Grant Payments ,Asia  Caribbean and Overseas Territories ,,202759-101 
DFID,DFID,10/09/2012,ADAM SMITH INTERNATIONAL  LTD ,"980,996",Technical and Advisory Services ,Asia  Caribbean and Overseas Territories ,,114234-102 
DFID,DFID,11/09/2012,Hays Specialist Recruitment Ltd ,604,Contract & Agency Staff ,Asia  Caribbean and Overseas Territories ,,100084-101 
DFID,DFID,11/09/2012,FCO SERVICES ,620,Printer Consumables ,Asia  Caribbean and Overseas Territories ,,201739-101 
DFID,DFID,11/09/2012,Foreign & Commonwealth Office ,624,Other Admin Costs ,Asia  Caribbean and Overseas Territories ,,201652-101 
DFID,DFID,11/09/2012,QUTAB SERVICE STATION ,741,Vehicle Petrol & Oil ,Asia  Caribbean and Overseas Territories ,,201689-105 
DFID,DFID,11/09/2012,Foreign & Commonwealth Office ,965,Postage Costs ,Asia  Caribbean and Overseas Territories ,,202403-101 
DFID,DFID,11/09/2012,CROWN RELOCATIONS  UK ,"1,882",Relocation costs ,Asia  Caribbean and Overseas Territories ,,101621-101 
DFID,DFID,11/09/2012,CROWN RELOCATIONS  UK ,"2,309",Relocation costs ,Asia  Caribbean and Overseas Territories ,,200609-103 
DFID,DFID,11/09/2012,DEREK TAYLOR ,"4,068",Technical and Advisory Services ,Asia  Caribbean and Overseas Territories ,,202083-101 
DFID,DFID,11/09/2012,ANDREW ROBY ,"5,144",Technical and Advisory Services ,Asia  Caribbean and Overseas Territories ,,202799-103 
DFID,DFID,11/09/2012,ANDREW ROBY ,"6,730",Technical and Advisory Services ,Asia  Caribbean and Overseas Territories ,,202799-103 
DFID,DFID,11/09/2012,CB RICHARD ELLIS SOUTH ASIA PVT LTD ,"13,943",Facilities Management payments ,Asia  Caribbean and Overseas Territories ,,201689-105 
DFID,DFID,11/09/2012,Hannah Roberts  ,"14,300",Technical and Advisory Services ,Asia  Caribbean and Overseas Territories ,,200593-110 
DFID,DFID,11/09/2012,YUVA :YOUTH FOR UNITY & VOLUNTARY ACTION ,"28,557",Aid Programme - Accountable Grant Payments ,Asia  Caribbean and Overseas Territories ,,202765-105 
DFID,DFID,11/09/2012,IMC Worldwide Ltd ,"48,872",Technical and Advisory Services ,Asia  Caribbean and Overseas Territories ,,113537-101 
DFID,DFID,11/09/2012,CARE INTERNATIONAL ,"68,040",Technical and Advisory Services ,Asia  Caribbean and Overseas Territories ,,114506-101 
DFID,DFID,11/09/2012,CARE INTERNATIONAL ,"89,275",Technical and Advisory Services ,Asia  Caribbean and Overseas Territories ,,114506-101 
DFID,DFID,11/09/2012,IMC Worldwide Ltd ,"178,908",Technical and Advisory Services ,Asia  Caribbean and Overseas Territories ,,113537-103 
DFID,DFID,11/09/2012,Government of Nepal RRRSDP NPR ,"684,787",Aid Programme - Other Financial Aid to Government ,Asia  Caribbean and Overseas Territories ,,114453-101 
DFID,DFID,12/09/2012,Mudra Institute of Communications ,506,Training - Course Fees ,Asia  Caribbean and Overseas Territories ,,100113-101 
DFID,DFID,12/09/2012,Foreign & Commonwealth Office ,510,Travel - Subsistence ,Asia  Caribbean and Overseas Territories ,,101604-101 
DFID,DFID,12/09/2012,CROWN RELOCATIONS  UK ,510,Storage & Distribution costs ,Asia  Caribbean and Overseas Territories ,,101604-101 
DFID,DFID,12/09/2012,Allen Lane Limited ,608,Technical and Advisory Services ,Asia  Caribbean and Overseas Territories ,,202083-101 
DFID,DFID,12/09/2012,Corporate Travel Provider ,663,Air fares ,Asia  Caribbean and Overseas Territories ,,201739-101 
DFID,DFID,12/09/2012,Foreign & Commonwealth Office ,763,Air fares ,Asia  Caribbean and Overseas Territories ,,101604-101 
DFID,DFID,12/09/2012,Corporate Travel Provider ,878,Air fares ,Asia  Caribbean and Overseas Territories ,,101603-101 
DFID,DFID,12/09/2012,Corporate Travel Provider ,895,Air fares ,Asia  Caribbean and Overseas Territories ,,101603-101 
DFID,DFID,12/09/2012,Corporate Travel Provider ,988,Air fares ,Asia  Caribbean and Overseas Territories ,,203186-101 
DFID,DFID,12/09/2012,Foreign & Commonwealth Office ,"1,811",Storage & Distribution costs ,Asia  Caribbean and Overseas Territories ,,101604-101 
DFID,DFID,12/09/2012,R M B Engineers and Builders Pvt Ltd ,"3,080",Facilities Management payments ,Asia  Caribbean and Overseas Territories ,,101621-103 
DFID,DFID,12/09/2012,OPTIONS CONSULTANCY SERVICES LIMITED ,"5,248",Technical and Advisory Services ,Asia  Caribbean and Overseas Territories ,,113963-101 
DFID,DFID,12/09/2012,Foreign & Commonwealth Office ,"6,110",Aid Programme - Joint programme contribution ,Asia  Caribbean and Overseas Territories ,,201674-101 
DFID,DFID,12/09/2012,Absolute Return for Kids (ARK) ,"9,755",Technical and Advisory Services ,Asia  Caribbean and Overseas Territories ,,201388-101 
DFID,DFID,12/09/2012,MAXWELL STAMP PLC ,"20,563",Technical and Advisory Services ,Asia  Caribbean and Overseas Territories ,,107370-101 
DFID,DFID,12/09/2012,ERNST &  YOUNG PRIVATE LTD ,"21,986",Technical and Advisory Services ,Asia  Caribbean and Overseas Territories ,,200599-101 
DFID,DFID,12/09/2012,PKF (UK) LLP ,"24,679",Technical and Advisory Services ,Asia  Caribbean and Overseas Territories ,,202083-101 
DFID,DFID,12/09/2012,IMC Worldwide Ltd ,"34,690",Technical and Advisory Services ,Asia  Caribbean and Overseas Territories ,,202433-106 
DFID,DFID,12/09/2012,THE ASIA FOUNDATION ,"55,638",Aid Programme - Accountable Grant Payments ,Asia  Caribbean and Overseas Territories ,,202798-102 
DFID,DFID,12/09/2012,CHRISTIAN AID ,"88,406",Technical and Advisory Services ,Asia  Caribbean and Overseas Territories ,,113311-101 
DFID,DFID,12/09/2012,OPTIONS CONSULTANCY SERVICES LIMITED ,"91,105",Technical and Advisory Services ,Asia  Caribbean and Overseas Territories ,,113963-101 
DFID,DFID,12/09/2012,THE ASIA FOUNDATION ,"97,366",Aid Programme - Accountable Grant Payments ,Asia  Caribbean and Overseas Territories ,,202798-102 
DFID,DFID,12/09/2012,IMC Worldwide Ltd ,"142,280",Technical and Advisory Services ,Asia  Caribbean and Overseas Territories ,,113537-102 
DFID,DFID,12/09/2012,Digital Green Foundation ,"214,650",Aid Programme - Accountable Grant Payments ,Asia  Caribbean and Overseas Territories ,,200754-105 
DFID,DFID,13/09/2012,Foreign & Commonwealth Office ,575,Technical and Advisory Services ,Asia  Caribbean and Overseas Territories ,,113977-101 
DFID,DFID,13/09/2012,Foreign & Commonwealth Office ,577,Telephone Usage & services ,Asia  Caribbean and Overseas Territories ,,101615-101 
DFID,DFID,13/09/2012,Hays Specialist Recruitment Ltd ,601,Contract & Agency Staff ,Asia  Caribbean and Overseas Territories ,,100084-101 
DFID,DFID,13/09/2012,Foreign & Commonwealth Office ,635,Travel - Subsistence ,Asia  Caribbean and Overseas Territories ,,100033-101 
DFID,DFID,13/09/2012,R M B Engineers and Builders Pvt Ltd ,641,Facilities Management payments ,Asia  Caribbean and Overseas Territories ,,100150-103 
DFID,DFID,13/09/2012,Foreign & Commonwealth Office ,675,Travel - Subsistence ,Asia  Caribbean and Overseas Territories ,,101605-101 
DFID,DFID,13/09/2012,Foreign & Commonwealth Office ,717,Sundry Building Supplies ,Asia  Caribbean and Overseas Territories ,,101604-101 
DFID,DFID,13/09/2012,Foreign & Commonwealth Office ,738,Telephone Usage & services ,Asia  Caribbean and Overseas Territories ,,101604-101 
DFID,DFID,13/09/2012,Foreign & Commonwealth Office ,752,Travel - Subsistence ,Asia  Caribbean and Overseas Territories ,,100033-101 
DFID,DFID,13/09/2012,Foreign & Commonwealth Office ,947,Hotels - Accommodation only ,Asia  Caribbean and Overseas Territories ,,101604-101 
DFID,DFID,13/09/2012,Foreign & Commonwealth Office ,"1,010",Travel - Subsistence ,Asia  Caribbean and Overseas Territories ,,100033-101 
DFID,DFID,13/09/2012,Hanoi Toserco ,"1,113",Training - Travel & Subsistence ,Asia  Caribbean and Overseas Territories ,,101636-101 
DFID,DFID,13/09/2012,Hanoi Toserco ,"1,202",Air fares ,Asia  Caribbean and Overseas Territories ,,101636-101 
DFID,DFID,13/09/2012,Foreign & Commonwealth Office ,"1,408",Technical and Advisory Services ,Asia  Caribbean and Overseas Territories ,,201942-101 
DFID,DFID,13/09/2012,Foreign & Commonwealth Office ,"1,408",Technical and Advisory Services ,Asia  Caribbean and Overseas Territories ,,201942-101 
DFID,DFID,13/09/2012,Foreign & Commonwealth Office ,"1,525",Conferences  Seminars & Meeting/Event Resource ,Asia  Caribbean and Overseas Territories ,,201942-101 
DFID,DFID,13/09/2012,Foreign & Commonwealth Office ,"1,558",Technical and Advisory Services ,Asia  Caribbean and Overseas Territories ,,201942-101 
DFID,DFID,13/09/2012,Foreign & Commonwealth Office ,"1,558",Technical and Advisory Services ,Asia  Caribbean and Overseas Territories ,,201942-101 
DFID,DFID,13/09/2012,Foreign & Commonwealth Office ,"1,912",Technical and Advisory Services ,Asia  Caribbean and Overseas Territories ,,101615-101 
DFID,DFID,13/09/2012,R M B Engineers and Builders Pvt Ltd ,"2,651",Facilities Management payments ,Asia  Caribbean and Overseas Territories ,,101621-103 
DFID,DFID,13/09/2012,Foreign & Commonwealth Office ,"3,225",Conferences  Seminars & Meeting/Event Resource ,Asia  Caribbean and Overseas Territories ,,202833-101 
DFID,DFID,13/09/2012,Foreign & Commonwealth Office ,"3,385",Air fares ,Asia  Caribbean and Overseas Territories ,,201942-101 
DFID,DFID,13/09/2012,Foreign & Commonwealth Office ,"4,645",Travel - Subsistence ,Asia  Caribbean and Overseas Territories ,,101605-101 
DFID,DFID,13/09/2012,Foreign & Commonwealth Office ,"10,700",Technical and Advisory Services ,Asia  Caribbean and Overseas Territories ,,202083-101 
DFID,DFID,13/09/2012,MOTT MACDONALD LTD ,"17,770",Technical and Advisory Services ,Asia  Caribbean and Overseas Territories ,,201645-105 
DFID,DFID,13/09/2012,OPTIONS CONSULTANCY SERVICES LIMITED ,"102,874",Technical and Advisory Services ,Asia  Caribbean and Overseas Territories ,,201375-103 
DFID,DFID,13/09/2012,national integrity action limited ,"187,500",Aid Programme - Accountable Grant Payments ,Asia  Caribbean and Overseas Territories ,,201988-101 
DFID,DFID,14/09/2012,Foreign & Commonwealth Office ,"1,992",Technical and Advisory Services ,Asia  Caribbean and Overseas Territories ,,202833-101 
DFID,DFID,14/09/2012,Harewelle International Limited. ,"2,571",Technical and Advisory Services ,Asia  Caribbean and Overseas Territories ,,107402-105 
DFID,DFID,14/09/2012,INDIAN INSTITUTE OF MANAGEMENT BANGL ,"5,477",Aid Programme - Accountable Grant Payments ,Asia  Caribbean and Overseas Territories ,,114320-113 
DFID,DFID,14/09/2012,Foreign & Commonwealth Office ,"6,308",Technical and Advisory Services ,Asia  Caribbean and Overseas Territories ,,201942-101 
DFID,DFID,14/09/2012,Foreign & Commonwealth Office ,"7,200",Technical and Advisory Services ,Asia  Caribbean and Overseas Territories ,,201942-101 
DFID,DFID,14/09/2012,Foreign & Commonwealth Office ,"16,801",Technical and Advisory Services ,Asia  Caribbean and Overseas Territories ,,200581-117 
DFID,DFID,14/09/2012,COFFEY INTERNATIONAL DEVELOPMENT LTD ,"34,323",Technical and Advisory Services ,Asia  Caribbean and Overseas Territories ,,202083-101 
DFID,DFID,14/09/2012,CIDA ,"55,000",Aid Programme - Joint programme contribution ,Asia  Caribbean and Overseas Territories ,,114088-105 
DFID,DFID,14/09/2012,Harewelle International Limited. ,"62,789",Technical and Advisory Services ,Asia  Caribbean and Overseas Territories ,,107402-101 
DFID,DFID,14/09/2012,Jamaica National Crime and Violence Survey Grant Ministry of National Security ,"80,000",Aid Programme - Other Financial Aid to Government ,Asia  Caribbean and Overseas Territories ,,201158-110 
DFID,DFID,14/09/2012,ERNST &  YOUNG PRIVATE LTD ,"84,270",Technical and Advisory Services ,Asia  Caribbean and Overseas Territories ,,200599-101 
DFID,DFID,14/09/2012,Harewelle International Limited. ,"790,347",Aid Programme - Challenge Fund payments ,Asia  Caribbean and Overseas Territories ,,107402-102 
DFID,DFID,17/09/2012,Foreign & Commonwealth Office ,540,Hotels - Accommodation only ,Asia  Caribbean and Overseas Territories ,,101604-101 
DFID,DFID,17/09/2012,Hays Specialist Recruitment Ltd ,601,Contract & Agency Staff ,Asia  Caribbean and Overseas Territories ,,100084-101 
DFID,DFID,17/09/2012,Foreign & Commonwealth Office ,786,Hotels - Accommodation only ,Asia  Caribbean and Overseas Territories ,,101604-101 
DFID,DFID,17/09/2012,Hays Specialist Recruitment Ltd ,"1,295",Contract & Agency Staff ,Asia  Caribbean and Overseas Territories ,,100084-101 
DFID,DFID,17/09/2012,Hays Specialist Recruitment Ltd ,"1,480",Contract & Agency Staff ,Asia  Caribbean and Overseas Territories ,,100084-101 
DFID,DFID,17/09/2012,Hays Specialist Recruitment Ltd ,"1,500",Contract & Agency Staff ,Asia  Caribbean and Overseas Territories ,,100084-101 
DFID,DFID,17/09/2012,Hays Specialist Recruitment Ltd ,"1,500",Contract & Agency Staff ,Asia  Caribbean and Overseas Territories ,,100084-101 
DFID,DFID,17/09/2012,Foreign & Commonwealth Office ,"1,684",Aid Programme - Joint programme contribution ,Asia  Caribbean and Overseas Territories ,,201674-101 
DFID,DFID,17/09/2012,SPC MANAGEMENT SERVICES PRIVATE LIMI ,"2,259",Technical and Advisory Services ,Asia  Caribbean and Overseas Territories ,,114177-101 
DFID,DFID,17/09/2012,OPTIONS CONSULTANCY SERVICES LIMITED ,"4,598",Technical and Advisory Services ,Asia  Caribbean and Overseas Territories ,,113963-101 
DFID,DFID,17/09/2012,Foreign & Commonwealth Office ,"4,811",Aid Programme - Joint programme contribution ,Asia  Caribbean and Overseas Territories ,,201674-101 
DFID,DFID,17/09/2012,Foreign & Commonwealth Office ,"4,811",Aid Programme - Joint programme contribution ,Asia  Caribbean and Overseas Territories ,,201674-101 
DFID,DFID,17/09/2012,OPTIONS CONSULTANCY SERVICES LIMITED ,"5,612",Technical and Advisory Services ,Asia  Caribbean and Overseas Territories ,,113963-101 
DFID,DFID,17/09/2012,TURNER & TOWNSEND ,"14,652",Technical and Advisory Services ,Asia  Caribbean and Overseas Territories ,,100114-104 
DFID,DFID,17/09/2012, Institute for Global Health  Peking University ,"15,000",Aid Programme - Accountable Grant Payments ,Asia  Caribbean and Overseas Territories ,,203174-101 
DFID,DFID,17/09/2012,MAXWELL STAMP PLC ,"26,978",Technical and Advisory Services ,Asia  Caribbean and Overseas Territories ,,107370-101 
DFID,DFID,17/09/2012,DELOITTE TOUCHE TOHMATSU INDIA PRIVA ,"29,497",Technical and Advisory Services ,Asia  Caribbean and Overseas Territories ,,108070-101 
DFID,DFID,17/09/2012,DELOITTE TOUCHE TOHMATSU INDIA PRIVA ,"54,352",Technical and Advisory Services ,Asia  Caribbean and Overseas Territories ,,108070-101 
DFID,DFID,17/09/2012,OPTIONS CONSULTANCY SERVICES LIMITED ,"91,105",Technical and Advisory Services ,Asia  Caribbean and Overseas Territories ,,113963-101 
DFID,DFID,17/09/2012,IBRD HSBC T ,"650,000",Aid Programme - Trust Funds contributions ,Asia  Caribbean and Overseas Territories ,,107413-101 
DFID,DFID,17/09/2012,IBRD HSBC T ,"1,250,000",Aid Programme - Trust Funds contributions ,Asia  Caribbean and Overseas Territories ,,107413-101 
DFID,DFID,18/09/2012,BHARTI AIRTEL LIMITED ,510,Telephone Usage & services ,Asia  Caribbean and Overseas Territories ,,201689-105 
DFID,DFID,18/09/2012,Hays Specialist Recruitment Ltd ,604,Contract & Agency Staff ,Asia  Caribbean and Overseas Territories ,,100084-101 
DFID,DFID,18/09/2012,Recipient name withheld ,859,Training - Course Fees ,Asia  Caribbean and Overseas Territories ,,101603-102 
DFID,DFID,18/09/2012,Black Magic Toners Pvt. Ltd. ,961,Printer Consumables ,Asia  Caribbean and Overseas Territories ,,100113-101 
DFID,DFID,18/09/2012,Supplier Name withheld ,"1,155",Secure Staff Accomodation,Asia  Caribbean and Overseas Territories ,,101603-101 
DFID,DFID,18/09/2012,Supplier Name withheld ,"1,221",Secure Staff Accomodation,Asia  Caribbean and Overseas Territories ,,101603-101 
DFID,DFID,18/09/2012,Supplier Name withheld ,"1,555",Secure Staff Accomodation,Asia  Caribbean and Overseas Territories ,,101603-101 
DFID,DFID,18/09/2012,Supplier name withheld ,"1,667",Other Admin Costs ,Asia  Caribbean and Overseas Territories ,,201652-105 
DFID,DFID,18/09/2012,Supplier name withheld ,"1,778",Other Admin Costs ,Asia  Caribbean and Overseas Territories ,,201652-101 
DFID,DFID,18/09/2012,Supplier Name withheld ,"1,865",Secure Staff Accomodation,Asia  Caribbean and Overseas Territories ,,101603-101 
DFID,DFID,18/09/2012,THE GOURMET FACTORY ,"1,930",Contract Catering Services ,Asia  Caribbean and Overseas Territories ,,201689-105 
DFID,DFID,18/09/2012,INTEGRAL COMPUTER LIMITED ,"2,008",Printer Consumables ,Asia  Caribbean and Overseas Territories ,,100113-101 
DFID,DFID,18/09/2012,Supplier Name withheld ,"2,221",Secure Staff Accomodation,Asia  Caribbean and Overseas Territories ,,101603-101 
DFID,DFID,18/09/2012,Supplier Name withheld ,"2,643",Secure Staff Accomodation,Asia  Caribbean and Overseas Territories ,,101603-101 
DFID,DFID,18/09/2012,Foreign & Commonwealth Office ,"2,797",Technical and Advisory Services ,Asia  Caribbean and Overseas Territories ,,202801-101 
DFID,DFID,18/09/2012,Supplier Name withheld ,"2,887",Secure Staff Accomodation,Asia  Caribbean and Overseas Territories ,,101603-101 
DFID,DFID,18/09/2012,Supplier name withheld ,"2,911",Other Admin Costs ,Asia  Caribbean and Overseas Territories ,,201652-105 
DFID,DFID,18/09/2012,Foreign & Commonwealth Office ,"3,102",Training - Course Fees ,Asia  Caribbean and Overseas Territories ,,202403-101 
DFID,DFID,18/09/2012,Supplier Name withheld ,"3,109",Secure Staff Accomodation,Asia  Caribbean and Overseas Territories ,,101603-101 
DFID,DFID,18/09/2012,Supplier Name withheld ,"3,331",Secure Staff Accomodation,Asia  Caribbean and Overseas Territories ,,114058-101 
DFID,DFID,18/09/2012,Supplier Name withheld ,"3,553",Secure Staff Accomodation,Asia  Caribbean and Overseas Territories ,,101603-101 
DFID,DFID,18/09/2012,Supplier Name withheld ,"3,609",Secure Staff Accomodation,Asia  Caribbean and Overseas Territories ,,101603-101 
DFID,DFID,18/09/2012,Supplier Name withheld ,"3,664",Secure Staff Accomodation,Asia  Caribbean and Overseas Territories ,,101601-110 
DFID,DFID,18/09/2012,Meghraj Capital Advisors Private Limited ,"7,214",Technical and Advisory Services ,Asia  Caribbean and Overseas Territories ,,202736-101 
DFID,DFID,18/09/2012,BSES RAJDHANI POWER LIMITED ,"8,232",Electricity ,Asia  Caribbean and Overseas Territories ,,201689-105 
DFID,DFID,18/09/2012,Foreign & Commonwealth Office ,"8,618",Travel - Subsistence ,Asia  Caribbean and Overseas Territories ,,101605-101 
DFID,DFID,18/09/2012,INTERNATIONAL RESCUE COMMITTEE UK ,"60,190",Aid Programme - Accountable Grant Payments ,Asia  Caribbean and Overseas Territories ,,114532-102 
DFID,DFID,18/09/2012,BMB MOTT  MACDONALD ,"188,522",Technical and Advisory Services ,Asia  Caribbean and Overseas Territories ,,107480-101 
DFID,DFID,19/09/2012,British Red Cross Society ,622,Technical and Advisory Services ,Asia  Caribbean and Overseas Territories ,,113977-101 
DFID,DFID,19/09/2012,IT Bangla Limited ,"1,155",Training - Course Fees ,Asia  Caribbean and Overseas Territories ,,100025-105 
DFID,DFID,19/09/2012,KEIKO TSUNEKAWA BUTTERWORTH ,"1,824",Technical and Advisory Services ,Asia  Caribbean and Overseas Territories ,,201645-109 
DFID,DFID,19/09/2012,Supplier Name withheld ,"2,331",Secure Staff Accomodation,Asia  Caribbean and Overseas Territories ,,101603-101 
DFID,DFID,19/09/2012,SB Tel Enterprises Limited ,"4,134",Furniture & Fittings ,Asia  Caribbean and Overseas Territories ,,101603-101 
DFID,DFID,19/09/2012,International Crisis Group ,"16,667",Aid Programme - Accountable Grant Payments ,Asia  Caribbean and Overseas Territories ,,114041-104 
DFID,DFID,19/09/2012,SIDBI MUMBAI ,"31,377",Technical and Advisory Services ,Asia  Caribbean and Overseas Territories ,,114293-102 
DFID,DFID,19/09/2012,Caribbean Export Development Agency ,"100,000",Aid Programme - Voluntary contributions ,Asia  Caribbean and Overseas Territories ,,103415-101 
DFID,DFID,19/09/2012,MAXWELL STAMP PLC ,"200,000",Technical and Advisory Services ,Asia  Caribbean and Overseas Territories ,,114175-103 
DFID,DFID,19/09/2012,MAXWELL STAMP PLC ,"724,059",Technical and Advisory Services ,Asia  Caribbean and Overseas Territories ,,114175-102 
DFID,DFID,20/09/2012,The Taj Mahal Hotel New Delhi ,573,Hotels - Accommodation only ,Asia  Caribbean and Overseas Territories ,,100025-105 
DFID,DFID,20/09/2012,KUONI BUSINESS TRAVEL INDIA PVT LTD ,574,Air fares ,Asia  Caribbean and Overseas Territories ,,201689-101 
DFID,DFID,20/09/2012,IMC Worldwide Ltd ,650,Technical and Advisory Services ,Asia  Caribbean and Overseas Territories ,,114534-101 
DFID,DFID,20/09/2012,KUONI BUSINESS TRAVEL INDIA PVT LTD ,"1,002",Air fares ,Asia  Caribbean and Overseas Territories ,,201689-101 
DFID,DFID,20/09/2012,KUONI BUSINESS TRAVEL INDIA PVT LTD ,"1,563",Training - Travel & Subsistence ,Asia  Caribbean and Overseas Territories ,,201689-101 
DFID,DFID,20/09/2012,Dhaka Electric Supply Company Ltd ,"1,891",Electricity ,Asia  Caribbean and Overseas Territories ,,101603-101 
DFID,DFID,20/09/2012,KUONI BUSINESS TRAVEL INDIA PVT LTD ,"3,767",Air fares ,Asia  Caribbean and Overseas Territories ,,201689-101 
DFID,DFID,20/09/2012,PRICEWATERHOUSECOOPERS PRIVATE LTD ,"7,256",Vehicle Repairs & Maintenance ,Asia  Caribbean and Overseas Territories ,,113287-102 
DFID,DFID,20/09/2012,Allen Lane Limited ,"23,738",Technical and Advisory Services ,Asia  Caribbean and Overseas Territories ,,202083-101 
DFID,DFID,20/09/2012,INTERNATIONAL CENTRE FOR DIARRO ,"25,000",Aid Programme - Accountable Grant Payments ,Asia  Caribbean and Overseas Territories ,,202242-109 
DFID,DFID,20/09/2012,COFFEY INTERNATIONAL DEVELOPMENT LTD ,"87,060",Technical and Advisory Services ,Asia  Caribbean and Overseas Territories ,,202083-101 
DFID,DFID,20/09/2012,MAXWELL STAMP PLC ,"137,254",Technical and Advisory Services ,Asia  Caribbean and Overseas Territories ,,114175-101 
DFID,DFID,20/09/2012,Pan American Health Organisation ,"330,000",Aid Programme - Voluntary contributions ,Asia  Caribbean and Overseas Territories ,,202614-102 
DFID,DFID,20/09/2012,St Helena Department of Finance ,"1,115,000",Aid Programme - Other Financial Aid to Government ,Asia  Caribbean and Overseas Territories ,,203047-103 
DFID,DFID,21/09/2012,Bal Krishna Dahal ,534,Water charges ,Asia  Caribbean and Overseas Territories ,,101621-103 
DFID,DFID,21/09/2012,Hays Specialist Recruitment Ltd ,589,Contract & Agency Staff ,Asia  Caribbean and Overseas Territories ,,100084-101 
DFID,DFID,21/09/2012,Hays Specialist Recruitment Ltd ,610,Contract & Agency Staff ,Asia  Caribbean and Overseas Territories ,,100084-101 
DFID,DFID,21/09/2012,John Sanday Associates Pvt. Ltd ,"1,490",Facilities Management payments ,Asia  Caribbean and Overseas Territories ,,101621-103 
DFID,DFID,21/09/2012,Dolma Development Fund ,"9,393",Aid Programme - Accountable Grant Payments ,Asia  Caribbean and Overseas Territories ,,203426-101 
DFID,DFID,21/09/2012,SIDBI MUMBAI ,"26,835",Technical and Advisory Services ,Asia  Caribbean and Overseas Territories ,,114293-102 
DFID,DFID,21/09/2012,INFRASTRUCTURE PROFESSIONALS ENTERPRISE ,"28,090",Technical and Advisory Services ,Asia  Caribbean and Overseas Territories ,,114040-101 
DFID,DFID,21/09/2012,CARE INTERNATIONAL ,"34,020",Technical and Advisory Services ,Asia  Caribbean and Overseas Territories ,,114506-101 
DFID,DFID,21/09/2012,GHK CONSULTING LTD ,"34,539",Technical and Advisory Services ,Asia  Caribbean and Overseas Territories ,,108027-101 
DFID,DFID,21/09/2012,OXFORD POLICY MANAGEMENT ,"55,224",Technical and Advisory Services ,Asia  Caribbean and Overseas Territories ,,114100-101 
DFID,DFID,21/09/2012,CARE INTERNATIONAL ,"68,040",Technical and Advisory Services ,Asia  Caribbean and Overseas Territories ,,114506-101 
DFID,DFID,21/09/2012, The Government of India ,"452,761",Aid Programme - Other Financial Aid to Government ,Asia  Caribbean and Overseas Territories ,,113617-101 
DFID,DFID,21/09/2012,Swiss Agency for Development and Cooperation SDC (Bangladesh) ,"797,108",Aid Programme - Joint programme contribution ,Asia  Caribbean and Overseas Territories ,,114007-101 
DFID,DFID,22/09/2012,BMB MOTT  MACDONALD ,"71,524",Technical and Advisory Services ,Asia  Caribbean and Overseas Territories ,,107480-101 
DFID,DFID,23/09/2012,Supplier Name withheld ,"4,832",Secure Staff Accomodation,Asia  Caribbean and Overseas Territories ,,101603-101 
DFID,DFID,24/09/2012,Meghraj Capital Advisors Private Limited ,"6,961",Technical and Advisory Services ,Asia  Caribbean and Overseas Territories ,,200599-101 
DFID,DFID,24/09/2012,Pricewaterhousecoopers Pvt. Ltd. ,"7,007",Technical and Advisory Services ,Asia  Caribbean and Overseas Territories ,,113963-101 
DFID,DFID,25/09/2012,NARINDER PAL SINGH ,722,Contract Catering Services ,Asia  Caribbean and Overseas Territories ,,201689-105 
DFID,DFID,25/09/2012,KUONI BUSINESS TRAVEL INDIA PVT LTD ,791,Air fares ,Asia  Caribbean and Overseas Territories ,,100113-101 
DFID,DFID,25/09/2012,KUONI BUSINESS TRAVEL INDIA PVT LTD ,875,Training - Travel & Subsistence ,Asia  Caribbean and Overseas Territories ,,201689-101 
DFID,DFID,25/09/2012,KUONI BUSINESS TRAVEL INDIA PVT LTD ,982,Training - Travel & Subsistence ,Asia  Caribbean and Overseas Territories ,,201689-101 
DFID,DFID,25/09/2012,KUONI BUSINESS TRAVEL INDIA PVT LTD ,"1,031",Air fares ,Asia  Caribbean and Overseas Territories ,,201689-101 
DFID,DFID,25/09/2012,KUONI BUSINESS TRAVEL INDIA PVT LTD ,"1,073",Air fares ,Asia  Caribbean and Overseas Territories ,,201689-101 
DFID,DFID,25/09/2012,KUONI BUSINESS TRAVEL INDIA PVT LTD ,"1,341",Training - Travel & Subsistence ,Asia  Caribbean and Overseas Territories ,,201689-101 
DFID,DFID,25/09/2012,KUONI BUSINESS TRAVEL INDIA PVT LTD ,"1,621",Air fares ,Asia  Caribbean and Overseas Territories ,,201689-101 
DFID,DFID,25/09/2012,KUONI BUSINESS TRAVEL INDIA PVT LTD ,"1,707",Air fares ,Asia  Caribbean and Overseas Territories ,,201689-101 
DFID,DFID,25/09/2012,KUONI BUSINESS TRAVEL INDIA PVT LTD ,"3,175",Air fares ,Asia  Caribbean and Overseas Territories ,,201689-101 
DFID,DFID,25/09/2012,Mai Phan Loi ,"5,035",Technical and Advisory Services ,Asia  Caribbean and Overseas Territories ,,202788-101 
DFID,DFID,25/09/2012,Supplier Name withheld ,"7,483",Secure Staff Accomodation,Asia  Caribbean and Overseas Territories ,,201689-105 
DFID,DFID,25/09/2012,GHK CONSULTING LTD ,"9,233",Technical and Advisory Services ,Asia  Caribbean and Overseas Territories ,,108027-101 
DFID,DFID,25/09/2012,Nimbus Social Enterprise Consulting Ltd ,"14,946",Technical and Advisory Services ,Asia  Caribbean and Overseas Territories ,,202783-102 
DFID,DFID,25/09/2012,GHK CONSULTING LTD ,"28,361",Technical and Advisory Services ,Asia  Caribbean and Overseas Territories ,,108027-101 
DFID,DFID,26/09/2012,Sikder Filling and Serivce Station ,559,Vehicle Petrol & Oil ,Asia  Caribbean and Overseas Territories ,,100025-101 
DFID,DFID,26/09/2012,Foreign & Commonwealth Office ,602,Electricity ,Asia  Caribbean and Overseas Territories ,,101605-101 
DFID,DFID,26/09/2012,Foreign & Commonwealth Office ,618,Other Admin Costs ,Asia  Caribbean and Overseas Territories ,,201652-101 
DFID,DFID,26/09/2012,Foreign & Commonwealth Office ,823,Travel - Subsistence ,Asia  Caribbean and Overseas Territories ,,200581-117 
DFID,DFID,26/09/2012,CB RICHARD ELLIS SOUTH ASIA PVT LTD ,"1,412",Facilities Management payments ,Asia  Caribbean and Overseas Territories ,,201689-105 
DFID,DFID,26/09/2012,Neptune Properties ,"1,565",Electricity ,Asia  Caribbean and Overseas Territories ,,100025-101 
DFID,DFID,26/09/2012,G4S FACILITY SERVICES (INDIA) PVT. L ,"3,084",Other non-passenger transportation ,Asia  Caribbean and Overseas Territories ,,201689-105 
DFID,DFID,26/09/2012,Foreign & Commonwealth Office ,"3,122",Secure Staff Accomodation,Asia  Caribbean and Overseas Territories ,,101605-101 
DFID,DFID,26/09/2012,FCO SERVICES ,"3,600",Repairs  Maint  Alter - Property & Constrct. Services ,Asia  Caribbean and Overseas Territories ,,201652-105 
DFID,DFID,26/09/2012,Saimon Overseas Ltd ,"4,513",Air fares ,Asia  Caribbean and Overseas Territories ,,101603-102 
DFID,DFID,26/09/2012, Yin Yongyuan ,"5,566",Technical and Advisory Services ,Asia  Caribbean and Overseas Territories ,,200581-113 
DFID,DFID,26/09/2012,Supplier Name withheld ,"7,827",Secure Staff Accomodation,Asia  Caribbean and Overseas Territories ,,201689-105 
DFID,DFID,26/09/2012,SIDBI Venture Capital Limited ,"10,423",Technical and Advisory Services ,Asia  Caribbean and Overseas Territories ,,114293-102 
DFID,DFID,26/09/2012,DELOITTE TOUCHE TOHMATSU INDIA PRIVA ,"17,985",Technical and Advisory Services ,Asia  Caribbean and Overseas Territories ,,108070-101 
DFID,DFID,26/09/2012,OXFORD POLICY MANAGEMENT ,"31,316",Technical and Advisory Services ,Asia  Caribbean and Overseas Territories ,,202083-101 
DFID,DFID,26/09/2012,ASSOCIATES FOR INTERNATIONAL DEVELOPMENT (AID INC) ,"31,755",Technical and Advisory Services ,Asia  Caribbean and Overseas Territories ,,113862-101 
DFID,DFID,26/09/2012,ERNST &  YOUNG PRIVATE LTD ,"36,686",Technical and Advisory Services ,Asia  Caribbean and Overseas Territories ,,200599-101 
DFID,DFID,26/09/2012,DELOITTE TOUCHE TOHMATSU INDIA PRIVA ,"49,917",Technical and Advisory Services ,Asia  Caribbean and Overseas Territories ,,108070-101 
DFID,DFID,26/09/2012,CAMBRIDGE EDUCATION LTD ,"121,025",Technical and Advisory Services ,Asia  Caribbean and Overseas Territories ,,108034-101 
DFID,DFID,26/09/2012,GVEP INTERNATIONAL LTD ,"166,574",Aid Programme - Accountable Grant Payments ,Asia  Caribbean and Overseas Territories ,,201986-101 
DFID,DFID,26/09/2012,THE BRITISH RED CROSS SOCIETY ,"183,457",Aid Programme - Joint programme contribution ,Asia  Caribbean and Overseas Territories ,,202433-105 
DFID,DFID,26/09/2012,CAPITA HELM CORPORATION LTD ,"336,442",Technical and Advisory Services ,Asia  Caribbean and Overseas Territories ,,107448-101 
DFID,DFID,26/09/2012,INTER AMERICAN DEVELOPMENT BANK ,"2,500,000",Aid Programme - Voluntary contributions ,Asia  Caribbean and Overseas Territories ,,203232-102 
DFID,DFID,27/09/2012,Foreign & Commonwealth Office ,513,Aid Programme - Joint programme contribution ,Asia  Caribbean and Overseas Territories ,,201674-101 
DFID,DFID,27/09/2012,Supplier Name withheld ,538,Electricity ,Asia  Caribbean and Overseas Territories ,,101615-101 
DFID,DFID,27/09/2012,Foreign & Commonwealth Office ,645,Air fares ,Asia  Caribbean and Overseas Territories ,,101604-101 
DFID,DFID,27/09/2012,Foreign & Commonwealth Office ,652,Furniture & Fittings ,Asia  Caribbean and Overseas Territories ,,100034-101 
DFID,DFID,27/09/2012,Foreign & Commonwealth Office ,"1,027",Technical and Advisory Services ,Asia  Caribbean and Overseas Territories ,,201942-101 
DFID,DFID,27/09/2012,Supplier Name withheld ,"1,103",Electricity ,Asia  Caribbean and Overseas Territories ,,101615-101 
DFID,DFID,27/09/2012,Foreign & Commonwealth Office ,"1,134",Hotels - Accommodation only ,Asia  Caribbean and Overseas Territories ,,101615-101 
DFID,DFID,27/09/2012,Foreign & Commonwealth Office ,"1,216",Furniture & Fittings ,Asia  Caribbean and Overseas Territories ,,100034-101 
DFID,DFID,27/09/2012,Foreign & Commonwealth Office ,"1,383",Technical and Advisory Services ,Asia  Caribbean and Overseas Territories ,,201942-101 
DFID,DFID,27/09/2012,Supplier Name withheld ,"1,469",Electricity ,Asia  Caribbean and Overseas Territories ,,101615-101 
DFID,DFID,27/09/2012,Foreign & Commonwealth Office ,"1,613",Aid Programme - Joint programme contribution ,Asia  Caribbean and Overseas Territories ,,201674-101 
DFID,DFID,27/09/2012,Shuva Kantha Sharma ,"1,867",Technical and Advisory Services ,Asia  Caribbean and Overseas Territories ,,203186-101 
DFID,DFID,27/09/2012,Supplier Name withheld ,"1,880",Electricity ,Asia  Caribbean and Overseas Territories ,,201942-101 
DFID,DFID,27/09/2012,Supplier Name withheld ,"2,340",Secure Staff Accomodation,Asia  Caribbean and Overseas Territories ,,101603-101 
DFID,DFID,27/09/2012,Supplier Name withheld ,"2,779",Secure Staff Accomodation,Asia  Caribbean and Overseas Territories ,,202403-101 
DFID,DFID,27/09/2012,Supplier Name withheld ,"6,028",Secure Staff Accomodation,Asia  Caribbean and Overseas Territories ,,202403-101 
DFID,DFID,27/09/2012,Ministry of Construction Vietnam ,"7,400",Aid Programme - Other Financial Aid to Government ,Asia  Caribbean and Overseas Territories ,,109025-105 
DFID,DFID,27/09/2012,Supplier Name withheld ,"10,373",Secure Staff Accomodation,Asia  Caribbean and Overseas Territories ,,101615-101 
DFID,DFID,27/09/2012,FCO SERVICES ,"10,517",Technical and Advisory Services ,Asia  Caribbean and Overseas Territories ,,100114-104 
DFID,DFID,27/09/2012,Supplier Name withheld ,"10,851",Secure Staff Accomodation,Asia  Caribbean and Overseas Territories ,,200581-117 
DFID,DFID,27/09/2012,FOREIGN AND COMMONWEALTH OFFICE (FCO) ,"47,853",Other rentals ,Asia  Caribbean and Overseas Territories ,FCO Shared Services (Rental) Costs - July-September 2012,202403-101 
DFID,DFID,27/09/2012,ADAM SMITH INTERNATIONAL  LTD ,"117,374",Technical and Advisory Services ,Asia  Caribbean and Overseas Territories ,,201367-103 
DFID,DFID,27/09/2012,THE ASIA FOUNDATION ,"118,527",Aid Programme - Accountable Grant Payments ,Asia  Caribbean and Overseas Territories ,,202798-102 
DFID,DFID,28/09/2012,Hays Specialist Recruitment Ltd ,723,Contract & Agency Staff ,Asia  Caribbean and Overseas Territories ,,100084-101 
DFID,DFID,28/09/2012,Hays Specialist Recruitment Ltd ,730,Contract & Agency Staff ,Asia  Caribbean and Overseas Territories ,,100084-101 
DFID,DFID,28/09/2012,UNIVERSITY OF OXFORD ,"2,318",Technical and Advisory Services ,Asia  Caribbean and Overseas Territories ,,114487-103 
DFID,DFID,28/09/2012,MCG Management Consulting ,"4,354",Conferences  Seminars & Meeting/Event Resource ,Asia  Caribbean and Overseas Territories ,,202788-101 
DFID,DFID,05/09/2012, FCO SERVICES ,611,Storage & Distribution costs ,Business Solutions Division Level ,,200001-101 
DFID,DFID,05/09/2012,Meikles Hotel ,639,Hotels - Accommodation only ,Business Solutions Division Level ,,200003-121 
DFID,DFID,05/09/2012,VERIZON UK LIMITED ,"3,644",Data Network - land lines ,Business Solutions Division Level ,,200002-126 
DFID,DFID,05/09/2012,ALLEGIS GROUP LIMITED ,"4,446",Contract & Agency Staff ,Business Solutions Division Level ,,200001-101 
DFID,DFID,05/09/2012,ALLEGIS GROUP LIMITED ,"5,616",Contract & Agency Staff ,Business Solutions Division Level ,,200001-101 
DFID,DFID,06/09/2012,Ingar Mozambique Lda ,615,other information and communication technologies ,Business Solutions Division Level ,,200003-152 
DFID,DFID,06/09/2012,FCO SERVICES ,"1,381",Other ICT ,Business Solutions Division Level ,,200003-152 
DFID,DFID,07/09/2012,BT BACS PAYMENTS ,"3,420",Data Network - land lines ,Business Solutions Division Level ,,200002-130 
DFID,DFID,07/09/2012,ALLEGIS GROUP LIMITED ,"4,563",Contract & Agency Staff ,Business Solutions Division Level ,,200001-101 
DFID,DFID,07/09/2012,COMPUTACENTER (UK) LTD ,"5,291",Computer Software Licenses ,Business Solutions Division Level ,,200001-101 
DFID,DFID,07/09/2012,ALLEGIS GROUP LIMITED ,"5,310",Contract & Agency Staff ,Business Solutions Division Level ,,200001-101 
DFID,DFID,07/09/2012,NORTHGATE HR LIMITED ,"46,642",Computer software maintenance ,Business Solutions Division Level ,Annual maintenance costs (June 2012-2013) for  DfIDs customised  Payroll system and Personnel database,200002-104 
DFID,DFID,11/09/2012,VODAFONE CORPORATE ,"2,394",Mobile telephones & accessories ,Business Solutions Division Level ,,200002-118 
DFID,DFID,11/09/2012,FCO RECOVERIES UNIT ,"103,346",Data Network -Satellite ,Business Solutions Division Level ,Front Line Delivery of Data/Broadband/Telecomms services for overseas offices for  July - September 2012,203329-101 
DFID,DFID,11/09/2012,FCO RECOVERIES UNIT ,"200,612",Data Network -Satellite ,Business Solutions Division Level ,Administration of Data/Broadband/Telecomms services for overseas offices for  July - September 2012,200002-120 
DFID,DFID,12/09/2012, FCO SERVICES ,640,Hardware - servers & storage ,Business Solutions Division Level ,,200002-153 
DFID,DFID,12/09/2012,Foreign & Commonwealth Office ,682,Data Network - land lines ,Business Solutions Division Level ,,200002-121 
DFID,DFID,12/09/2012,OPIN SYSTEMS LIMITED ,"11,360",Technical and Advisory Services ,Business Solutions Division Level ,,200002-151 
DFID,DFID,13/09/2012,Foreign & Commonwealth Office ,513,Data network- remote working ,Business Solutions Division Level ,,200002-121 
DFID,DFID,13/09/2012,Networkers Recruitment Services Ltd ,"2,532",Contract & Agency Staff ,Business Solutions Division Level ,,200001-101 
DFID,DFID,13/09/2012,Foreign & Commonwealth Office ,"2,579",Data Network - land lines ,Business Solutions Division Level ,,200002-121 
DFID,DFID,13/09/2012,KUBE NETWORKS LTD ,"3,772",Data Network - land lines ,Business Solutions Division Level ,,200002-130 
DFID,DFID,14/09/2012,VODAFONE CORPORATE ,"1,440",Technical and Advisory Services ,Business Solutions Division Level ,,200001-101 
DFID,DFID,17/09/2012,Digital IP Ltd ,"6,884",Telephone Sys -hardware ,Business Solutions Division Level ,,200003-142 
DFID,DFID,17/09/2012,Digital IP Ltd ,"16,320",Technical and Advisory Services ,Business Solutions Division Level ,,200003-142 
DFID,DFID,19/09/2012,FCO SERVICES ,"1,134",Office Supplies ,Business Solutions Division Level ,,200003-121 
DFID,DFID,20/09/2012,Rufus Leonard Ltd ,"2,316",Computer hardware maintenance ,Business Solutions Division Level ,,200002-196 
DFID,DFID,20/09/2012,Virgin Media Business ,"18,669",Data Network - land lines ,Business Solutions Division Level ,,200003-125 
DFID,DFID,21/09/2012,GLOBAL CROSSING (UK) TELECOMMS LTD ,516,Telephone Usage & services ,Business Solutions Division Level ,,200002-117 
DFID,DFID,25/09/2012,NAYATEL (PVT) LTD ,"1,063",other information and communication technologies ,Business Solutions Division Level ,,200002-121 
DFID,DFID,25/09/2012,CABLE & WIRELESS COMMUN ,"2,716",Technical and Advisory Services ,Business Solutions Division Level ,,203329-103 
DFID,DFID,25/09/2012,OPIN SYSTEMS LIMITED ,"6,720",Contract & Agency Staff ,Business Solutions Division Level ,,200001-101 
DFID,DFID,26/09/2012,ALLEGIS GROUP LIMITED ,"1,770",Contract & Agency Staff ,Business Solutions Division Level ,,200001-101 
DFID,DFID,26/09/2012,CABLE & WIRELESS COMMUN ,"2,116",Telephone Usage & services ,Business Solutions Division Level ,,203329-103 
DFID,DFID,26/09/2012,CABLE & WIRELESS COMMUN ,"4,108",Telephone Usage & services ,Business Solutions Division Level ,,200002-185 
DFID,DFID,26/09/2012,VERIZON UK LIMITED ,"4,373",Data Network - land lines ,Business Solutions Division Level ,,200002-130 
DFID,DFID,26/09/2012,CABLE & WIRELESS COMMUN ,"4,727",Technical and Advisory Services ,Business Solutions Division Level ,,203329-103 
DFID,DFID,26/09/2012,CABLE & WIRELESS COMMUN ,"9,175",Technical and Advisory Services ,Business Solutions Division Level ,,200002-185 
DFID,DFID,26/09/2012,FCO RECOVERIES UNIT ,"24,900",Telephone Usage & services ,Business Solutions Division Level ,,200003-121 
DFID,DFID,26/09/2012,CABLE & WIRELESS COMMUN ,"25,298",Data Network - land lines ,Business Solutions Division Level ,Data/Broadband/Telecomms services for DFID overseas offices for September 2012,203329-103 
DFID,DFID,26/09/2012,CABLE & WIRELESS COMMUN ,"49,109",Data Network - land lines ,Business Solutions Division Level ,Monthly (ECHO) Data Link Overseas land line costs,200002-185 
DFID,DFID,27/09/2012,Foreign & Commonwealth Office ,753,Hardware - networking equipment ,Business Solutions Division Level ,,200003-121 
DFID,DFID,27/09/2012,Foreign & Commonwealth Office ,"1,039",Hotels - Accommodation only ,Business Solutions Division Level ,,200003-121 
DFID,DFID,27/09/2012,TNT Express (UK) Ltd ,"4,610",Storage & Distribution costs ,Business Solutions Division Level ,,200001-101 
DFID,DFID,28/09/2012,Softcat Ltd ,"9,984",Computer Software Licenses ,Business Solutions Division Level ,,200002-147 
DFID,DFID,28/09/2012,ATTENDA LIMITED ,"17,376",Computer hardware maintenance ,Business Solutions Division Level ,,200002-196 
DFID,DFID,27/09/2012,Foreign & Commonwealth Office ,"17,391",Aid Programme - Programme Refunds ,Central Department Division ,,202447-101 
DFID,DFID,11/09/2012,VODAFONE CORPORATE ,583,Telephone Usage & services ,Communications Division ,,100197-101 
DFID,DFID,13/09/2012,COPYPRINT UK LTD ,"3,084",Print Services ,Communications Division ,,100177-101 
DFID,DFID,14/09/2012,THE PRESS ASSOCIATION ,558,Subscriptions ,Communications Division ,,100197-101 
DFID,DFID,18/09/2012,KPMG LLP ,"4,896",Technical and Advisory Services ,Communications Division ,,202197-102 
DFID,DFID,19/09/2012,EC GROUP ,585,Storage & Distribution costs ,Communications Division ,,201662-104 
DFID,DFID,20/09/2012,TRIPLE LINE CONSULTING LTD ,"1,716",Technical and Advisory Services ,Communications Division ,,100229-101 
DFID,DFID,20/09/2012,TRIPLE LINE CONSULTING LTD ,"2,073",Technical and Advisory Services ,Communications Division ,,114423-102 
DFID,DFID,25/09/2012,Damaris Global Learning ,"13,242",Aid Programme - Accountable Grant Payments ,Communications Division ,,201425-103 
DFID,DFID,28/09/2012,SAVE THE CHILDREN UK ,"32,821",Aid Programme - Accountable Grant Payments ,Communications Division ,,202197-101 
DFID,DFID,03/09/2012,Dickson Malunda (PhD) ,"1,957",Technical and Advisory Services ,East and Central Africa ,,202917-101 
DFID,DFID,03/09/2012,Pauline Akinyi Gogo ,"2,219",Technical and Advisory Services ,East and Central Africa ,,103548-101 
DFID,DFID,03/09/2012,FSTUER ,"2,398",Technical and Advisory Services ,East and Central Africa ,,201587-103 
DFID,DFID,03/09/2012, ,"2,502",Bank Charges/Services ,East and Central Africa ,,202586-101 
DFID,DFID,03/09/2012,beatriz sanz corella ,"6,583",Technical and Advisory Services ,East and Central Africa ,,202327-101 
DFID,DFID,03/09/2012,AGRA IN AFRICA (NO2) ,"45,853",Aid Programme - Accountable Grant Payments ,East and Central Africa ,,200094-103 
DFID,DFID,03/09/2012,DANISH REFUGEE COUNCIL ,"188,905",Aid Programme - Accountable Grant Payments ,East and Central Africa ,,201462-117 
DFID,DFID,04/09/2012,Yakamuwa Transport Cooperative Society Ltd ,596,UK Staff overseas - Transfer costs ,East and Central Africa ,,101635-101 
DFID,DFID,04/09/2012,Husky Outdoor Equipment Ltd ,797,Facilities Management payments ,East and Central Africa ,,101635-101 
DFID,DFID,04/09/2012,IPA-International Procurement Agency (BV) ,"2,401",Furniture & Fittings ,East and Central Africa ,,202717-101 
DFID,DFID,04/09/2012,Jasper - Semu & Associates ,"8,781",Technical and Advisory Services ,East and Central Africa ,,200795-106 
DFID,DFID,04/09/2012,IPA-International Procurement Agency (BV) ,"81,385",Furniture & Fittings ,East and Central Africa ,,202717-101 
DFID,DFID,04/09/2012,Democratic Governance Facility (DGF) ,"666,670",Aid Programme - Joint programme contribution ,East and Central Africa ,,202802-101 
DFID,DFID,05/09/2012,Laico Umubano Hotel ,505,Hotels - Accommodation only ,East and Central Africa ,,100212-101 
DFID,DFID,05/09/2012,Yakamuwa Transport Cooperative Society Ltd ,615,UK Staff overseas - Transfer costs ,East and Central Africa ,,101635-101 
DFID,DFID,05/09/2012,VODAFONE CORPORATE ,684,Mobile telephones & accessories ,East and Central Africa ,,100016-106 
DFID,DFID,05/09/2012,K.B.M Investments Ltd ,909,Facilities Management payments ,East and Central Africa ,,200171-103 
DFID,DFID,05/09/2012,Corporate Travel Provider ,917,Recruitment costs ,East and Central Africa ,,101634-101 
DFID,DFID,05/09/2012,K.B.M Investments Ltd ,"1,143",Facilities Management payments ,East and Central Africa ,,101635-101 
DFID,DFID,05/09/2012,K.B.M Investments Ltd ,"1,302",Facilities Management payments ,East and Central Africa ,,101635-101 
DFID,DFID,05/09/2012,DMS AFRICA ,"1,404",Repairs  Maint  Alter - Property & Constrct. Services ,East and Central Africa ,,202586-101 
DFID,DFID,05/09/2012,VODAFONE CORPORATE ,"1,509",Mobile telephones & accessories ,East and Central Africa ,,100016-106 
DFID,DFID,05/09/2012,M.S.MEGJI LTD ,"2,044",Furniture & Fittings ,East and Central Africa ,,101625-102 
DFID,DFID,05/09/2012,JMC Umoja House ,"2,114",FCO shared service charges ,East and Central Africa ,,100230-101 
DFID,DFID,05/09/2012,Paulina Mrosso ,"2,520",Technical and Advisory Services ,East and Central Africa ,,202593-101 
DFID,DFID,05/09/2012,Tanzania Electric supply company Ltd ,"2,562",Electricity ,East and Central Africa ,,101634-101 
DFID,DFID,05/09/2012,Mekdim Enkossa Ayana ,"3,720",Technical and Advisory Services ,East and Central Africa ,,203016-102 
DFID,DFID,05/09/2012,JOWAT ENTERPRISES ,"4,649",Furniture & Fittings ,East and Central Africa ,,100235-101 
DFID,DFID,05/09/2012,British High Commission(Tsh) ,"5,595",Facilities Management payments ,East and Central Africa ,,101634-101 
DFID,DFID,05/09/2012,DMS AFRICA ,"5,617",Repairs  Maint  Alter - Property & Constrct. Services ,East and Central Africa ,,202594-101 
DFID,DFID,05/09/2012,JMC Umoja House ,"6,341",FCO shared service charges ,East and Central Africa ,,101634-101 
DFID,DFID,05/09/2012,HLSP LIMITED ,"11,295",Technical and Advisory Services ,East and Central Africa ,,202551-101 
DFID,DFID,05/09/2012,Andrew Laing ,"11,725",Technical and Advisory Services ,East and Central Africa ,,201462-103 
DFID,DFID,05/09/2012,Supplier Name withheld ,"13,283",Secure Staff Accomodation,East and Central Africa ,,101634-101 
DFID,DFID,05/09/2012,Jodad Ltd ,"24,315",Technical and Advisory Services ,East and Central Africa ,,201462-112 
DFID,DFID,05/09/2012,MOTT MACDONALD LTD ,"54,728",Technical and Advisory Services ,East and Central Africa ,,202377-103 
DFID,DFID,05/09/2012,Mennonite Economic Development Associates of Canada ,"80,558",Technical and Advisory Services ,East and Central Africa ,,202481-104 
DFID,DFID,05/09/2012,Uganda Revenue Authority ,"110,000",Aid Programme - Other Financial Aid to Government ,East and Central Africa ,,202693-101 
DFID,DFID,05/09/2012,Mennonite Economic Development Associates of Canada ,"330,405",Technical and Advisory Services ,East and Central Africa ,,202481-104 
DFID,DFID,05/09/2012,USAID/Cambodia ,"10,000,000",Aid Programme - Joint programme contribution ,East and Central Africa ,,202598-101 
DFID,DFID,06/09/2012,Joshi Electrical & General Services ,539,Electricity ,East and Central Africa ,,101635-101 
DFID,DFID,06/09/2012,University of Nairobi Enterprises & Services Ltd ,602,Further Education costs ,East and Central Africa ,,101616-101 
DFID,DFID,06/09/2012,TAAM Petroleum Ltd(US$) ,"1,058",Vehicle Petrol & Oil ,East and Central Africa ,,202586-101 
DFID,DFID,06/09/2012,Recipient name withheld ,"1,395",UK Staff overseas - Flexi Travel Allowance ,East and Central Africa ,,202913-104 
DFID,DFID,06/09/2012,Recipient name withheld ,"2,306",UK Staff overseas - Flexi Travel Allowance ,East and Central Africa ,,202913-104 
DFID,DFID,06/09/2012,TAAM Petroleum Ltd(US$) ,"2,469",Vehicle Petrol & Oil ,East and Central Africa ,,202594-101 
DFID,DFID,06/09/2012,TAAM Petroleum Ltd(US$) ,"3,529",Oil - Other Utilities ,East and Central Africa ,,202586-101 
DFID,DFID,06/09/2012,TAAM Petroleum Ltd(US$) ,"8,234",Oil - Other Utilities ,East and Central Africa ,,202594-101 
DFID,DFID,06/09/2012,COFFEY INTERNATIONAL DEVELOPMENT LTD ,"26,809",Technical and Advisory Services ,East and Central Africa ,,105423-101 
DFID,DFID,06/09/2012,Concern Worldwide Kenya ,"28,669",Aid Programme - Accountable Grant Payments ,East and Central Africa ,,103548-113 
DFID,DFID,06/09/2012,ADAM SMITH INTERNATIONAL  LTD ,"78,530",Technical and Advisory Services ,East and Central Africa ,,202946-101 
DFID,DFID,06/09/2012,   THE WORLD BANK ,"96,000",Technical and Advisory Services ,East and Central Africa ,,200294-105 
DFID,DFID,07/09/2012,Dream Clean Limited ,662,Facilities Management payments ,East and Central Africa ,,101635-101 
DFID,DFID,07/09/2012,LIGHT YEARS IP ,"20,512",Aid Programme - Accountable Grant Payments ,East and Central Africa ,,201295-115 
DFID,DFID,07/09/2012,ADAM SMITH INTERNATIONAL  LTD ,"87,262",Technical and Advisory Services ,East and Central Africa ,,200294-104 
DFID,DFID,07/09/2012,ADAM SMITH INTERNATIONAL  LTD ,"88,598",Technical and Advisory Services ,East and Central Africa ,,200329-108 
DFID,DFID,07/09/2012,IPA-International Procurement Agency (BV) ,"152,165",Repairs  Maint  Alter - Property & Constrct. Services ,East and Central Africa ,,203542-106 
DFID,DFID,07/09/2012,INUKA KENYA TRUST ,"187,202",Aid Programme - Accountable Grant Payments ,East and Central Africa ,,202527-107 
DFID,DFID,07/09/2012,ACTION AGAINST HUNGER UK ,"1,394,002",Aid Programme - Accountable Grant Payments ,East and Central Africa ,,202479-106 
DFID,DFID,10/09/2012,BIN-IT SERVICES LTD ,548,Repairs  Maint  Alter - Removal & waste disposal services ,East and Central Africa ,,101635-101 
DFID,DFID,10/09/2012,Bank of Abyssinia ,"1,125",Bank Charges/Services ,East and Central Africa ,,100082-101 
DFID,DFID,10/09/2012,IPA-International Procurement Agency (BV) ,"2,273",Contraceptives ,East and Central Africa ,,202420-103 
DFID,DFID,10/09/2012,PACT INC ,"24,280",Aid Programme - Accountable Grant Payments ,East and Central Africa ,,203165-101 
DFID,DFID,10/09/2012,CONFLICT DYNAMICS INTERNATIONAL INC ,"47,247",Aid Programme - Accountable Grant Payments ,East and Central Africa ,,200956-111 
DFID,DFID,10/09/2012,Financial and Legal Sector Technical Assistance Ministry of Finance Kenya ,"195,670",Aid Programme - Other Financial Aid to Government ,East and Central Africa ,,103415-101 
DFID,DFID,10/09/2012,FAO (USD) ,"350,000",Aid Programme - Humanitarian Material Relief Assistance and Services ,East and Central Africa ,,203183-107 
DFID,DFID,10/09/2012,POPULATION  SERVICES INTERNATIONAL ,"1,109,658",Aid Programme - Accountable Grant Payments ,East and Central Africa ,,200842-102 
DFID,DFID,11/09/2012,Foreign & Commonwealth Office ,503,Furniture & Fittings ,East and Central Africa ,,101616-101 
DFID,DFID,11/09/2012,RCS Radio & Satellite Communication Ltd(Local) ,576,Data Network -Satellite ,East and Central Africa ,,202586-101 
DFID,DFID,11/09/2012,British High Commission(Tsh) ,579,Water charges ,East and Central Africa ,,101634-101 
DFID,DFID,11/09/2012,Foreign & Commonwealth Office ,600,Hotels - Accommodation only ,East and Central Africa ,,100227-101 
DFID,DFID,11/09/2012,Foreign & Commonwealth Office ,643,Furniture & Fittings ,East and Central Africa ,,101630-101 
DFID,DFID,11/09/2012,Southern Sun Ridgeway ,734,Training - Travel & Subsistence ,East and Central Africa ,,100230-101 
DFID,DFID,11/09/2012,Juba Auto Co Ltd ,764,Vehicle Repairs & Maintenance ,East and Central Africa ,,202594-101 
DFID,DFID,11/09/2012,Foreign & Commonwealth Office ,826,Furniture & Fittings ,East and Central Africa ,,101630-101 
DFID,DFID,11/09/2012,Foreign & Commonwealth Office ,875,Furniture & Fittings ,East and Central Africa ,,101616-101 
DFID,DFID,11/09/2012,FCO SERVICES ,998,Furniture & Fittings ,East and Central Africa ,,101628-101 
DFID,DFID,11/09/2012,Foreign & Commonwealth Office ,"1,437",Furniture & Fittings ,East and Central Africa ,,101616-101 
DFID,DFID,11/09/2012,Foreign & Commonwealth Office ,"1,523",Furniture & Fittings ,East and Central Africa ,,101630-101 
DFID,DFID,11/09/2012,Bon Voyage Travel Centre Ltd(USD) ,"1,549",Hotels - Accommodation only ,East and Central Africa ,,202593-101 
DFID,DFID,11/09/2012,DMS Africa(Local) ,"2,546",Storage & Distribution costs ,East and Central Africa ,,202586-101 
DFID,DFID,11/09/2012,INSIGHTS LEARNING & DEVELOPMENT LTD ,"5,860",Training - Course Fees ,East and Central Africa ,,100082-101 
DFID,DFID,11/09/2012,2334400 Ontario Ltd ,"6,079",Technical and Advisory Services ,East and Central Africa ,,202913-101 
DFID,DFID,11/09/2012,COFFEY INTERNATIONAL DEVELOPMENT LTD ,"7,910",Technical and Advisory Services ,East and Central Africa ,,202577-101 
DFID,DFID,11/09/2012,FCO SERVICES ,"12,742",Office Equipment - Purchases ,East and Central Africa ,,101628-101 
DFID,DFID,11/09/2012,AETS ,"17,303",Technical and Advisory Services ,East and Central Africa ,,201612-102 
DFID,DFID,11/09/2012,CROWN RELOCATIONS  UK ,"27,361",Relocation costs ,East and Central Africa ,Staff Relocation Air Freight Costs - Rwanda,101628-101 
DFID,DFID,11/09/2012,WESTBURY ESTATE SERVICES LTD ,"47,111",Repairs  Maint  Alter - Property & Constrct. Services ,East and Central Africa ,,100211-101 
DFID,DFID,11/09/2012,ATOS CONSULTING LIMITED ,"214,628",Technical and Advisory Services ,East and Central Africa ,,113400-112 
DFID,DFID,11/09/2012,ATOS CONSULTING LIMITED ,"232,574",Technical and Advisory Services ,East and Central Africa ,,113400-103 
DFID,DFID,11/09/2012,ADAM SMITH INTERNATIONAL  LTD ,"260,656",Technical and Advisory Services ,East and Central Africa ,,200329-107 
DFID,DFID,11/09/2012,THE BRITISH RED CROSS SOCIETY ,"470,514",Aid Programme - Humanitarian Material Relief Assistance and Services ,East and Central Africa ,,202672-101 
DFID,DFID,11/09/2012, UNHCR ,"4,880,000",Aid Programme - Refugee Relief Payments ,East and Central Africa ,,203072-101 
DFID,DFID,12/09/2012,Laico Umubano Hotel ,513,Hotels - Accommodation only ,East and Central Africa ,,101612-101 
DFID,DFID,12/09/2012, FCO SERVICES ,529,Courier & Bag Services ,East and Central Africa ,,100082-101 
DFID,DFID,12/09/2012,Corporate Travel Provider ,539,Hotels - Accommodation only ,East and Central Africa ,,101622-101 
DFID,DFID,12/09/2012,Corporate Travel Provider ,539,Hotels - Accommodation only ,East and Central Africa ,,101612-101 
DFID,DFID,12/09/2012,Corporate Travel Provider ,539,Hotels - Accommodation only ,East and Central Africa ,,101612-101 
DFID,DFID,12/09/2012,Corporate Travel Provider ,670,Hotels - Accommodation only ,East and Central Africa ,,101612-101 
DFID,DFID,12/09/2012,Ethio Telecom ,759,Data Network -Satellite ,East and Central Africa ,,202913-103 
DFID,DFID,12/09/2012,Ethio Telecom ,798,Telephone Usage & services ,East and Central Africa ,,100082-101 
DFID,DFID,12/09/2012,SKY TRADING ,801,Furniture & Fittings ,East and Central Africa ,,101628-101 
DFID,DFID,12/09/2012,Corporate Travel Provider ,808,Air fares ,East and Central Africa ,,202574-101 
DFID,DFID,12/09/2012,Corporate Travel Provider ,851,Air fares ,East and Central Africa ,,203603-101 
DFID,DFID,12/09/2012,EWSA ,988,Water charges ,East and Central Africa ,,101628-101 
DFID,DFID,12/09/2012,Unity Resources Group PTE Ltd ,"1,404",Medical/Health Services ,East and Central Africa ,,202594-101 
DFID,DFID,12/09/2012,Vimak Company Limited ,"2,076",Technical and Advisory Services ,East and Central Africa ,,202547-101 
DFID,DFID,12/09/2012,Corporate Travel Provider ,"2,136",Air fares ,East and Central Africa ,,202586-101 
DFID,DFID,12/09/2012,Juba Grand Hotel ,"2,178",Hotels - Accommodation only ,East and Central Africa ,,202586-101 
DFID,DFID,12/09/2012,Pauline Akinyi Gogo ,"2,293",Technical and Advisory Services ,East and Central Africa ,,103548-101 
DFID,DFID,12/09/2012,Carree Njeri Ndoka ,"2,479",Technical and Advisory Services ,East and Central Africa ,,103548-101 
DFID,DFID,12/09/2012,Susan Amlango Aletia ,"2,481",Technical and Advisory Services ,East and Central Africa ,,103548-101 
DFID,DFID,12/09/2012,Andrew Nyabera Nyagwencha ,"2,913",Technical and Advisory Services ,East and Central Africa ,,103548-101 
DFID,DFID,12/09/2012,THE SPRINGFIELD CENTRE ,"3,200",Training - Course Fees ,East and Central Africa ,,101634-101 
DFID,DFID,12/09/2012,Kairichi Consultancy Limited ,"3,424",Technical and Advisory Services ,East and Central Africa ,,103548-101 
DFID,DFID,12/09/2012,Supplier Name withheld ,"4,117",Secure Staff Accomodation,East and Central Africa ,,101628-101 
DFID,DFID,12/09/2012,Juba Grand Hotel ,"4,701",Hotels - Accommodation only ,East and Central Africa ,,202594-101 
DFID,DFID,12/09/2012,Orgut Consulting AB ,"4,875",Technical and Advisory Services ,East and Central Africa ,,200284-105 
DFID,DFID,12/09/2012,INTERNATIONAL IDEA ,"55,442",Aid Programme - Voluntary contributions ,East and Central Africa ,,200156-106 
DFID,DFID,12/09/2012,THE MEDIAE COMPANY ,"77,040",Technical and Advisory Services ,East and Central Africa ,,201601-103 
DFID,DFID,12/09/2012,IPA-International Procurement Agency (BV) ,"77,063",Contraceptives ,East and Central Africa ,,202420-103 
DFID,DFID,12/09/2012,Democratic Governance Facility (DGF) ,"166,670",Aid Programme - Pooled/Basket funding ,East and Central Africa ,,200250-108 
DFID,DFID,12/09/2012,Democratic Governance Facility (DGF) ,"500,000",Aid Programme - Pooled/Basket funding ,East and Central Africa ,,202522-102 
DFID,DFID,12/09/2012,TRADEMARK EAST AFRICA ,"1,200,000",Aid Programme - Joint programme contribution ,East and Central Africa ,,201685-101 
DFID,DFID,13/09/2012,Laico Umubano Hotel ,501,Hotels - Accommodation only ,East and Central Africa ,,100212-101 
DFID,DFID,13/09/2012,Harmony  Hotel ,528,Hotels - Accommodation only ,East and Central Africa ,,101612-101 
DFID,DFID,13/09/2012,Foreign & Commonwealth Office ,533,Vehicle Repairs & Maintenance ,East and Central Africa ,,101630-101 
DFID,DFID,13/09/2012,Foreign & Commonwealth Office ,533,Vehicle Repairs & Maintenance ,East and Central Africa ,,101616-101 
DFID,DFID,13/09/2012,Foreign & Commonwealth Office ,544,Vehicle Repairs & Maintenance ,East and Central Africa ,,101630-101 
DFID,DFID,13/09/2012,Foreign & Commonwealth Office ,544,Vehicle Repairs & Maintenance ,East and Central Africa ,,101616-101 
DFID,DFID,13/09/2012,Foreign & Commonwealth Office ,564,Mobile telephones & accessories ,East and Central Africa ,,101630-101 
DFID,DFID,13/09/2012,Foreign & Commonwealth Office ,582,Training - Travel & Subsistence ,East and Central Africa ,,101633-101 
DFID,DFID,13/09/2012,Foreign & Commonwealth Office ,597,Data network- remote working ,East and Central Africa ,,101633-101 
DFID,DFID,13/09/2012,Foreign & Commonwealth Office ,606,Mobile telephones & accessories ,East and Central Africa ,,101616-101 
DFID,DFID,13/09/2012,RWANDATEL SA ,611,Telephone Usage & services ,East and Central Africa ,,101628-101 
DFID,DFID,13/09/2012,BUSINESS MONITOR INTERNATIONAL LTD ,613,Subscriptions ,East and Central Africa ,,101634-101 
DFID,DFID,13/09/2012,Foreign & Commonwealth Office ,628,Training - Course Fees ,East and Central Africa ,,101633-101 
DFID,DFID,13/09/2012,Pilgrims Group ,666,Training - Course Fees ,East and Central Africa ,,101612-101 
DFID,DFID,13/09/2012,Bon Voyage Travel Centre Ltd(USD) ,688,Training - Travel & Subsistence ,East and Central Africa ,,101634-101 
DFID,DFID,13/09/2012,RWANDATEL SA ,711,Telephone Usage & services ,East and Central Africa ,,101628-101 
DFID,DFID,13/09/2012,Foreign & Commonwealth Office ,721,Mobile telephones & accessories ,East and Central Africa ,,100137-101 
DFID,DFID,13/09/2012,Foreign & Commonwealth Office ,758,Electricity ,East and Central Africa ,,101633-101 
DFID,DFID,13/09/2012,Foreign & Commonwealth Office ,861,Facilities Management payments ,East and Central Africa ,,101630-101 
DFID,DFID,13/09/2012,Foreign & Commonwealth Office ,861,Facilities Management payments ,East and Central Africa ,,101616-101 
DFID,DFID,13/09/2012,Foreign & Commonwealth Office ,871,FCO shared service charges ,East and Central Africa ,,100227-101 
DFID,DFID,13/09/2012,Foreign & Commonwealth Office ,928,Telephone Usage & services ,East and Central Africa ,,101633-101 
DFID,DFID,13/09/2012,Foreign & Commonwealth Office ,983,Furniture & Fittings ,East and Central Africa ,,101625-102 
DFID,DFID,13/09/2012,BRITISH HIGH COMMISSION KLA ,"1,072",Facilities Management payments ,East and Central Africa ,,100234-101 
DFID,DFID,13/09/2012,Foreign & Commonwealth Office ,"1,284",Furniture & Fittings ,East and Central Africa ,,202586-101 
DFID,DFID,13/09/2012,Foreign & Commonwealth Office ,"1,663",Furniture & Fittings ,East and Central Africa ,,101616-101 
DFID,DFID,13/09/2012,Foreign & Commonwealth Office ,"1,723",Furniture & Fittings ,East and Central Africa ,,101616-101 
DFID,DFID,13/09/2012,Foreign & Commonwealth Office ,"2,040",Secure Staff Accomodation,East and Central Africa ,,200352-101 
DFID,DFID,13/09/2012,BRITISH HIGH COMMISSION KLA ,"2,177",Facilities Management payments ,East and Central Africa ,,101635-101 
DFID,DFID,13/09/2012,Foreign & Commonwealth Office ,"2,231",Secure Staff Accomodation,East and Central Africa ,,200496-102 
DFID,DFID,13/09/2012,Harmony  Hotel ,"2,282",Hotels - Accommodation only ,East and Central Africa ,,202235-102 
DFID,DFID,13/09/2012, FCO SERVICES ,"2,599",Courier & Bag Services ,East and Central Africa ,,101634-101 
DFID,DFID,13/09/2012,Foreign & Commonwealth Office ,"2,613",FCO shared service charges ,East and Central Africa ,,101633-101 
DFID,DFID,13/09/2012,Foreign & Commonwealth Office ,"3,442",Secure Staff Accomodation,East and Central Africa ,,101616-101 
DFID,DFID,13/09/2012,Foreign & Commonwealth Office ,"3,469",Secure Staff Accomodation,East and Central Africa ,,101616-101 
DFID,DFID,13/09/2012,Foreign & Commonwealth Office ,"4,082",Secure Staff Accomodation,East and Central Africa ,,200109-108 
DFID,DFID,13/09/2012,Foreign & Commonwealth Office ,"4,082",Secure Staff Accomodation,East and Central Africa ,,101616-101 
DFID,DFID,13/09/2012,Foreign & Commonwealth Office ,"6,349",Secure Staff Accomodation,East and Central Africa ,,101616-101 
DFID,DFID,13/09/2012,Foreign & Commonwealth Office ,"6,540",Facilities Management payments ,East and Central Africa ,,101616-101 
DFID,DFID,13/09/2012,Foreign & Commonwealth Office ,"8,095",Secure Staff Accomodation,East and Central Africa ,,101625-104 
DFID,DFID,13/09/2012,Foreign & Commonwealth Office ,"8,260",Secure Staff Accomodation,East and Central Africa ,,101616-101 
DFID,DFID,13/09/2012,Foreign & Commonwealth Office ,"8,900",Secure Staff Accomodation,East and Central Africa ,,101616-101 
DFID,DFID,13/09/2012,Foreign & Commonwealth Office ,"20,645",Secure Staff Accomodation,East and Central Africa ,,101633-101 
DFID,DFID,13/09/2012,DELOITTE (UGANDA) LIMITED ,"64,311",Technical and Advisory Services ,East and Central Africa ,,200787-107 
DFID,DFID,13/09/2012,UNDP (USD) ACCOUNT ,"5,250,000",Aid Programme - Humanitarian Material Relief Assistance and Services ,East and Central Africa ,,202530-101 
DFID,DFID,14/09/2012,KIVU SERENA  HOTEL ,533,Hotels - Accommodation only ,East and Central Africa ,,101628-101 
DFID,DFID,14/09/2012,Elizabeth Tayler ,970,Hotels - Accommodation only ,East and Central Africa ,,101634-101 
DFID,DFID,14/09/2012, FCO SERVICES ,"3,210",Courier & Bag Services ,East and Central Africa ,,101634-101 
DFID,DFID,14/09/2012,PKF Rwanda Ltd ,"3,723",Technical and Advisory Services ,East and Central Africa ,,113946-102 
DFID,DFID,14/09/2012,ALAN PENNY ,"12,180",Technical and Advisory Services ,East and Central Africa ,,202315-110 
DFID,DFID,14/09/2012,COWI A S ,"103,342",Technical and Advisory Services ,East and Central Africa ,,200250-112 
DFID,DFID,14/09/2012,FAO (USD) ,"1,150,000",Aid Programme - Humanitarian Material Relief Assistance and Services ,East and Central Africa ,,203183-107 
DFID,DFID,17/09/2012,International Committee of the Red Cross ,524,Training - Travel & Subsistence ,East and Central Africa ,,101630-101 
DFID,DFID,17/09/2012,Ultimate Security Tanzania Limited ,559,Facilities Management payments ,East and Central Africa ,,100230-101 
DFID,DFID,17/09/2012,Edmund D.Tarimo ,"1,047",Facilities Management payments ,East and Central Africa ,,101634-101 
DFID,DFID,17/09/2012,Supplier Name withheld ,"1,622",Secure Staff Accomodation,East and Central Africa ,,101612-101 
DFID,DFID,17/09/2012,Harmony  Hotel ,"1,920",Hotels - Accommodation only ,East and Central Africa ,,202235-102 
DFID,DFID,17/09/2012,The Express Travel Group ,"1,938",Training - Travel & Subsistence ,East and Central Africa ,,101612-101 
DFID,DFID,17/09/2012,Die Tuin Consulting ,"5,304",Technical and Advisory Services ,East and Central Africa ,,202844-101 
DFID,DFID,17/09/2012,Supplier Name withheld ,"12,352",Secure Staff Accomodation,East and Central Africa ,,101635-101 
DFID,DFID,17/09/2012,IMC Worldwide Ltd ,"15,395",Technical and Advisory Services ,East and Central Africa ,,200221-105 
DFID,DFID,17/09/2012, HANDICAP INTERNATIONAL ,"54,801",Aid Programme - Accountable Grant Payments ,East and Central Africa ,,201295-110 
DFID,DFID,17/09/2012,SAFERWORLD ,"148,408",Aid Programme - Accountable Grant Payments ,East and Central Africa ,,202527-113 
DFID,DFID,17/09/2012,Rwanda Education Sector Delivery Grant 2011-14 ,"5,000,000",Aid Programme - Poverty Reduction Budget Support ,East and Central Africa ,,202377-101 
DFID,DFID,17/09/2012,Government of Rwanda  Growth and Poverty Reduction Grant ,"8,000,000",Aid Programme - Poverty Reduction Budget Support ,East and Central Africa ,,203399-101 
DFID,DFID,18/09/2012,Foreign & Commonwealth Office ,517,Storage & Distribution costs ,East and Central Africa ,,101630-101 
DFID,DFID,18/09/2012,Foreign & Commonwealth Office ,540,Vehicle Repairs & Maintenance ,East and Central Africa ,,101630-101 
DFID,DFID,18/09/2012,Foreign & Commonwealth Office ,540,Vehicle Repairs & Maintenance ,East and Central Africa ,,101616-101 
DFID,DFID,18/09/2012,Foreign & Commonwealth Office ,585,FCO shared service charges ,East and Central Africa ,,100227-101 
DFID,DFID,18/09/2012,UMEME Ltd ,"1,119",Electricity ,East and Central Africa ,,101635-101 
DFID,DFID,18/09/2012,Recipient name withheld ,"1,198",Travel - Subsistence ,East and Central Africa ,,101628-101 
DFID,DFID,18/09/2012,Foreign & Commonwealth Office ,"1,324",Furniture & Fittings ,East and Central Africa ,,101630-101 
DFID,DFID,18/09/2012,Foreign & Commonwealth Office ,"1,486",Relocation costs ,East and Central Africa ,,200092-115 
DFID,DFID,18/09/2012,Meldah Tumukunde ,"1,583",Other Building Costs ,East and Central Africa ,,100234-101 
DFID,DFID,18/09/2012,Foreign & Commonwealth Office ,"1,754",FCO shared service charges ,East and Central Africa ,,101633-101 
DFID,DFID,18/09/2012,aikan Uganda Limited ,"1,868",Consultancy Services ,East and Central Africa ,,100234-101 
DFID,DFID,18/09/2012,EDUCATION FOR CHANGE LTD ,"9,861",Technical and Advisory Services ,East and Central Africa ,,202513-103 
DFID,DFID,18/09/2012,EUROPEAN COMMISSION ,"27,769",Technical and Advisory Services ,East and Central Africa ,,104978-115 
DFID,DFID,18/09/2012,Adam Smith International Africa Ltd ,"61,160",Technical and Advisory Services ,East and Central Africa ,,201294-103 
DFID,DFID,18/09/2012,NEPAD (International Partnership for Africa Fisheries) ,"209,026",Aid Programme - Core contributions ,East and Central Africa ,,200157-106 
DFID,DFID,18/09/2012,Gatsby Charitable Foundation UK ,"450,282",Aid Programme - Accountable Grant Payments ,East and Central Africa ,,202379-101 
DFID,DFID,18/09/2012,Rwanda Agriculture Sector Delivery Grant 2011/14 ,"3,000,000",Aid Programme - Poverty Reduction Budget Support ,East and Central Africa ,,202227-102 
DFID,DFID,18/09/2012,Supplier Name withheld ,"3,000,000",Aid Programme - Voluntary contributions ,East and Central Africa ,,203216-111 
DFID,DFID,19/09/2012,Pilgrims Group ,673,Hostile Environment Training ,East and Central Africa ,,100266-101 
DFID,DFID,19/09/2012,DHL International Uganda Ltd ,679,Courier & Bag Services ,East and Central Africa ,,101635-101 
DFID,DFID,19/09/2012,Angus Miller (TZ) USD ,725,Office Supplies ,East and Central Africa ,,202593-101 
DFID,DFID,19/09/2012,BCD Travel (USD) ,819,Air fares ,East and Central Africa ,,200842-109 
DFID,DFID,19/09/2012,BCD Travel (USD) ,875,Training - Travel & Subsistence ,East and Central Africa ,,101630-101 
DFID,DFID,19/09/2012,Dr. & Mrs Muhebwa ,"1,060",Facilities Management payments ,East and Central Africa ,,101635-101 
DFID,DFID,19/09/2012,WFP Somalia ,"1,615",Air fares ,East and Central Africa ,,101630-101 
DFID,DFID,19/09/2012,Info Mind Solutions plc ,"1,983",Recruitment costs ,East and Central Africa ,,101612-101 
DFID,DFID,19/09/2012,Dicken Marshall ,"3,060",Technical and Advisory Services ,East and Central Africa ,,202913-101 
DFID,DFID,19/09/2012,British Embassy (Ethiopia) ,"6,064",Oil - Other Utilities ,East and Central Africa ,,100082-101 
DFID,DFID,19/09/2012,British Embassy (Ethiopia) ,"6,070",Vehicle Petrol & Oil ,East and Central Africa ,,100082-101 
DFID,DFID,19/09/2012,KPMG EAST AFRICA LTD ,"16,696",Technical and Advisory Services ,East and Central Africa ,,200498-101 
DFID,DFID,19/09/2012,KPMG EAST AFRICA LTD ,"1,201,557",Technical and Advisory Services ,East and Central Africa ,,200498-101 
DFID,DFID,19/09/2012,Ministry of Finance Tanzania  Poverty Reduction Budget Support ,"12,500,000",Aid Programme - Poverty Reduction Budget Support ,East and Central Africa ,,203213-101 
DFID,DFID,19/09/2012,Ministry of Finance Tanzania  Poverty Reduction Budget Support ,"30,000,000",Aid Programme - Poverty Reduction Budget Support ,East and Central Africa ,,203213-102 
DFID,DFID,20/09/2012,Mustafa Auto Garage ,585,Vehicle Repairs & Maintenance ,East and Central Africa ,,202586-101 
DFID,DFID,20/09/2012,EWSA ,782,Electricity ,East and Central Africa ,,100212-101 
DFID,DFID,20/09/2012,J.H Simex PLC/Intercontinental Hotel ,"1,085",Hotels - Accommodation only ,East and Central Africa ,,101612-101 
DFID,DFID,20/09/2012,British High Commission(Tsh) ,"1,345",Facilities Management payments ,East and Central Africa ,,101634-101 
DFID,DFID,20/09/2012,HTSPE LTD ,"1,389",Technical and Advisory Services ,East and Central Africa ,,103548-101 
DFID,DFID,20/09/2012,Central Highway Contractors Ltd ,"1,465",Facilities Management payments ,East and Central Africa ,,101625-102 
DFID,DFID,20/09/2012,The Express Travel Group ,"1,742",Air fares ,East and Central Africa ,,101625-101 
DFID,DFID,20/09/2012,Central Highway Contractors Ltd ,"1,821",Facilities Management payments ,East and Central Africa ,,101625-102 
DFID,DFID,20/09/2012,COFFEY INTERNATIONAL DEVELOPMENT LTD ,"2,234",Technical and Advisory Services ,East and Central Africa ,,202917-101 
DFID,DFID,20/09/2012,Juba Grand Hotel ,"5,882",Hotels - Accommodation only ,East and Central Africa ,,202594-101 
DFID,DFID,20/09/2012,HTSPE LTD ,"6,557",Technical and Advisory Services ,East and Central Africa ,,202580-101 
DFID,DFID,20/09/2012,Louise O'Rourke ,"7,982",Technical and Advisory Services ,East and Central Africa ,,202913-101 
DFID,DFID,20/09/2012,HAREWELLE INTERNATIONAL LIMITED ,"13,189",Consultancy Services ,East and Central Africa ,,100230-101 
DFID,DFID,20/09/2012,HTSPE LTD ,"16,761",Technical and Advisory Services ,East and Central Africa ,,103548-101 
DFID,DFID,20/09/2012,KPMG Kenya ,"17,261",Technical and Advisory Services ,East and Central Africa ,,201462-103 
DFID,DFID,20/09/2012,HLSP LIMITED ,"18,619",Technical and Advisory Services ,East and Central Africa ,,200109-103 
DFID,DFID,20/09/2012,Deweto Int Ltd ,"21,898",Repairs  Maint  Alter - Property & Constrct. Services ,East and Central Africa ,,101612-101 
DFID,DFID,20/09/2012,LTS International Ltd. ,"45,823",Technical and Advisory Services ,East and Central Africa ,,201866-106 
DFID,DFID,20/09/2012,PACT KENYA - NSA NRM SUPPORT ,"85,201",Aid Programme - Accountable Grant Payments ,East and Central Africa ,,201913-115 
DFID,DFID,20/09/2012,Parliamentary Accountability Programme  Rwanda ,"200,000",Aid Programme - Other Financial Aid to Government ,East and Central Africa ,,202171-102 
DFID,DFID,20/09/2012,SAVE THE CHILDREN ,"316,263",Aid Programme - Accountable Grant Payments ,East and Central Africa ,,202478-104 
DFID,DFID,20/09/2012,UNDP CONTRIBUTIONS ACCOUNT ,"950,000",Aid Programme - Voluntary contributions ,East and Central Africa ,,203405-101 
DFID,DFID,20/09/2012,UNFPA ,"2,450,000",Aid Programme - Voluntary contributions ,East and Central Africa ,,201713-102 
DFID,DFID,21/09/2012,Toyota Uganda Ltd ,516,Vehicle Petrol & Oil ,East and Central Africa ,,101635-101 
DFID,DFID,21/09/2012,MFI OFFICE SOLUTIONS ,519,Office Equipment - Purchases ,East and Central Africa ,,101628-101 
DFID,DFID,21/09/2012,BRITISH HIGH COMMISSION KLA ,639,Electricity ,East and Central Africa ,,100234-101 
DFID,DFID,21/09/2012,WFP Sudan Juba Sub Imprest(US$) ,862,Air fares ,East and Central Africa ,,202586-101 
DFID,DFID,21/09/2012,BRITISH HIGH COMMISSION KLA ,"1,298",Electricity ,East and Central Africa ,,101635-101 
DFID,DFID,21/09/2012,PRICEWATERHOUSECOOPERS (KENYA) ,"20,880",Technical and Advisory Services ,East and Central Africa ,,201913-103 
DFID,DFID,21/09/2012,HTSPE LTD ,"24,010",Technical and Advisory Services ,East and Central Africa ,,103548-101 
DFID,DFID,21/09/2012,DANISH REFUGEE COUNCIL ,"62,500",Aid Programme - Accountable Grant Payments ,East and Central Africa ,,202827-108 
DFID,DFID,21/09/2012,Uraia Trust ,"435,550",Aid Programme - Accountable Grant Payments ,East and Central Africa ,,202527-108 
DFID,DFID,22/09/2012,UNDP Somalia ,"1,641",Training - Course Fees ,East and Central Africa ,,101630-101 
DFID,DFID,22/09/2012,IPA-International Procurement Agency (BV) ,"12,363",Repairs  Maint  Alter - Property & Constrct. Services ,East and Central Africa ,,203542-106 
DFID,DFID,22/09/2012,IPA-International Procurement Agency (BV) ,"13,799",Repairs  Maint  Alter - Property & Constrct. Services ,East and Central Africa ,,203542-106 
DFID,DFID,22/09/2012,KPMG EAST AFRICA LTD ,"124,173",Technical and Advisory Services ,East and Central Africa ,,201866-109 
DFID,DFID,22/09/2012,Ministry of Finance Tanzania  Poverty Reduction Budget Support ,"12,500,000",Aid Programme - Poverty Reduction Budget Support ,East and Central Africa ,,203213-101 
DFID,DFID,24/09/2012,Recipient name withheld ,834,Data Network -Satellite ,East and Central Africa ,,202913-104 
DFID,DFID,24/09/2012,Kigali Real Estate S.A ,"2,773",Hotels - Accommodation only ,East and Central Africa ,,101628-101 
DFID,DFID,24/09/2012,Kigali Real Estate S.A ,"2,773",Hotels - Accommodation only ,East and Central Africa ,,101628-101 
DFID,DFID,24/09/2012,Ethio Enter Educate Promotion  ,"12,479",Technical and Advisory Services ,East and Central Africa ,,202913-101 
DFID,DFID,24/09/2012,Take Five Conference and Event Organizer ,"19,066",Technical and Advisory Services ,East and Central Africa ,,103004-101 
DFID,DFID,25/09/2012,Wurgessa Trading ,740,Office Supplies ,East and Central Africa ,,100082-101 
DFID,DFID,25/09/2012,SAFECON Electro Mechanical Works PLC ,"1,128",Repairs  Maint  Alter - Property & Constrct. Services ,East and Central Africa ,,101612-101 
DFID,DFID,25/09/2012,Joshi Electrical & General Services ,"1,355",Facilities Management payments ,East and Central Africa ,,101635-101 
DFID,DFID,25/09/2012,SAFECON Electro Mechanical Works PLC ,"1,467",Repairs  Maint  Alter - Property & Constrct. Services ,East and Central Africa ,,101612-101 
DFID,DFID,25/09/2012,SAFECON Electro Mechanical Works PLC ,"1,811",Repairs  Maint  Alter - Property & Constrct. Services ,East and Central Africa ,,101612-101 
DFID,DFID,25/09/2012,JOWAT ENTERPRISES ,"4,075",Furniture & Fittings ,East and Central Africa ,,100235-101 
DFID,DFID,25/09/2012,Dr Moses Muwonge ,"10,114",Technical and Advisory Services ,East and Central Africa ,,202420-104 
DFID,DFID,25/09/2012,Supplier Name withheld ,"10,876",Secure Staff Accomodation,East and Central Africa ,,101612-101 
DFID,DFID,25/09/2012,OXFORD POLICY MANAGEMENT ,"40,487",Technical and Advisory Services ,East and Central Africa ,,103548-101 
DFID,DFID,26/09/2012,The Express Travel Group ,514,Training - Travel & Subsistence ,East and Central Africa ,,100082-101 
DFID,DFID,26/09/2012,Foreign & Commonwealth Office ,672,Mobile telephones & accessories ,East and Central Africa ,,101616-101 
DFID,DFID,26/09/2012,JIT Beverages ,698,Office Supplies ,East and Central Africa ,,202586-101 
DFID,DFID,26/09/2012,Foreign & Commonwealth Office ,720,Hotels - Accommodation only ,East and Central Africa ,,100227-101 
DFID,DFID,26/09/2012,Bon Voyage Travel Centre Ltd(USD) ,773,Training - Travel & Subsistence ,East and Central Africa ,,101634-101 
DFID,DFID,26/09/2012,Ikondera Company Ltd ,"1,136",Facilities Management payments ,East and Central Africa ,,101628-101 
DFID,DFID,26/09/2012,Foreign & Commonwealth Office ,"1,197",Hotels - Accommodation only ,East and Central Africa ,,101633-101 
DFID,DFID,26/09/2012,Foreign & Commonwealth Office ,"1,250",Repairs  Maint  Alter - Property & Constrct. Services ,East and Central Africa ,,202586-101 
DFID,DFID,26/09/2012,Ikondera Company Ltd ,"1,406",Facilities Management payments ,East and Central Africa ,,101628-101 
DFID,DFID,26/09/2012,The Express Travel Group ,"2,006",Training - Travel & Subsistence ,East and Central Africa ,,101612-101 
DFID,DFID,26/09/2012,The Express Travel Group ,"2,590",Air fares ,East and Central Africa ,,202574-101 
DFID,DFID,26/09/2012,British High Commission(USD) ,"2,674",Facilities Management payments ,East and Central Africa ,,101634-101 
DFID,DFID,26/09/2012,Ikondera Company Ltd ,"3,716",Facilities Management payments ,East and Central Africa ,,100212-101 
DFID,DFID,26/09/2012,PKF Rwanda Ltd ,"3,720",Technical and Advisory Services ,East and Central Africa ,,113946-102 
DFID,DFID,26/09/2012,Foreign & Commonwealth Office ,"4,535",Secure Staff Accomodation,East and Central Africa ,,101616-101 
DFID,DFID,26/09/2012, FCO SERVICES ,"7,271",UK Staff overseas - Transfer costs ,East and Central Africa ,,202586-101 
DFID,DFID,26/09/2012,DOMUS WOODWORKS LIMITED(USD) ,"9,422",Furniture & Fittings ,East and Central Africa ,,101634-101 
DFID,DFID,26/09/2012,TAAM Petroleum Ltd(US$) ,"10,351",Oil - Other Utilities ,East and Central Africa ,,202586-101 
DFID,DFID,26/09/2012,Supplier Name withheld ,"11,710",Secure Staff Accomodation,East and Central Africa ,,101630-101 
DFID,DFID,26/09/2012,TAAM Petroleum Ltd(US$) ,"25,705",Oil - Other Utilities ,East and Central Africa ,Cost of supply of fuel for generators in DFID office & secure staff accomodation in South Sudan,202586-101 
DFID,DFID,26/09/2012,Cambridge  Education Limited ,"29,707",Technical and Advisory Services ,East and Central Africa ,,201587-103 
DFID,DFID,26/09/2012,UNICEF ,"150,000",Aid Programme - Joint programme contribution ,East and Central Africa ,,114034-103 
DFID,DFID,27/09/2012,Foreign & Commonwealth Office ,501,Electricity ,East and Central Africa ,,101630-101 
DFID,DFID,27/09/2012,TOTAL Uganda Ltd ,509,Vehicle Petrol & Oil ,East and Central Africa ,,101635-101 
DFID,DFID,27/09/2012,Foreign & Commonwealth Office ,632,Medical/Health Services ,East and Central Africa ,,201699-101 
DFID,DFID,27/09/2012,Foreign & Commonwealth Office ,725,Electricity ,East and Central Africa ,,101630-101 
DFID,DFID,27/09/2012,Recipient name withheld ,767,Hotels - Accommodation only ,East and Central Africa ,,101625-104 
DFID,DFID,27/09/2012,Foreign & Commonwealth Office ,772,Electricity ,East and Central Africa ,,101633-101 
DFID,DFID,27/09/2012,Foreign & Commonwealth Office ,"1,843",Technical and Advisory Services ,East and Central Africa ,,203347-101 
DFID,DFID,27/09/2012,Foreign & Commonwealth Office ,"1,878",Technical and Advisory Services ,East and Central Africa ,,203347-101 
DFID,DFID,27/09/2012,K.B.M Investments Ltd ,"2,238",Facilities Management payments ,East and Central Africa ,,101635-101 
DFID,DFID,27/09/2012,British High Commission(Tsh) ,"3,307",Facilities Management payments ,East and Central Africa ,,101634-101 
DFID,DFID,27/09/2012,Foreign & Commonwealth Office ,"4,504",Secure Staff Accomodation,East and Central Africa ,,101630-101 
DFID,DFID,27/09/2012,Foreign & Commonwealth Office ,"4,504",Secure Staff Accomodation,East and Central Africa ,,101616-101 
DFID,DFID,27/09/2012,Foreign & Commonwealth Office ,"4,610",Furniture & Fittings ,East and Central Africa ,,202586-101 
DFID,DFID,27/09/2012,Foreign & Commonwealth Office ,"9,008",Secure Staff Accomodation,East and Central Africa ,,101630-101 
DFID,DFID,27/09/2012,Foreign & Commonwealth Office ,"9,008",Secure Staff Accomodation,East and Central Africa ,,202827-106 
DFID,DFID,27/09/2012,Lestrade Consultancy Ltd ,"10,875",Technical and Advisory Services ,East and Central Africa ,,202913-101 
DFID,DFID,27/09/2012,Orgut Consulting AB ,"15,431",Technical and Advisory Services ,East and Central Africa ,,200284-105 
DFID,DFID,27/09/2012,Foreign & Commonwealth Office ,"22,766",Secure Staff Accomodation,East and Central Africa ,,101633-101 
DFID,DFID,27/09/2012,Supplier Name withheld ,"30,842",Secure Staff Accomodation,East and Central Africa ,Secure staff Accommodation costs for 3 premises for  12 months rental (August 2012-2013) South Sudan,202594-101 
DFID,DFID,27/09/2012,ATOS CONSULTING LIMITED ,"48,372",Technical and Advisory Services ,East and Central Africa ,,202327-101 
DFID,DFID,27/09/2012,   THE WORLD BANK ,"55,000",Aid Programme - Core contributions ,East and Central Africa ,,201722-102 
DFID,DFID,27/09/2012,MOTT MACDONALD LTD ,"68,410",Technical and Advisory Services ,East and Central Africa ,,203155-101 
DFID,DFID,27/09/2012,   THE WORLD BANK ,"100,000",Aid Programme - Other Financial Aid to Government ,East and Central Africa ,,203160-101 
DFID,DFID,27/09/2012,Royal Danish Embassy (Dar Es Salaam) ,"245,805",Aid Programme - Core contributions ,East and Central Africa ,,105423-102 
DFID,DFID,27/09/2012,Tanzania Private Sector Foundation ,"427,389",Aid Programme - Accountable Grant Payments ,East and Central Africa ,,105426-103 
DFID,DFID,27/09/2012,WFP CONTRIBUTIONS UNIT ,"500,000",Aid Programme - Voluntary contributions ,East and Central Africa ,,202916-101 
DFID,DFID,27/09/2012,Financial Management and Accountability Programme 2 Uganda Ministry of Finance ,"562,500",Aid Programme - Other Financial Aid to Government ,East and Central Africa ,,200779-102 
DFID,DFID,27/09/2012,WFP CONTRIBUTIONS UNIT ,"750,000",Aid Programme - Voluntary contributions ,East and Central Africa ,,202522-103 
DFID,DFID,27/09/2012,UNDP MULTI-PARTNER TRUST FUND OFFICE (USD) ACCOUNT ,"2,500,000",Aid Programme - Humanitarian Material Relief Assistance and Services ,East and Central Africa ,,201987-102 
DFID,DFID,27/09/2012,WFP CONTRIBUTIONS UNIT ,"5,000,000",Aid Programme - Emergency Food Aid ,East and Central Africa ,,200694-101 
DFID,DFID,27/09/2012,UNDP MULTI-PARTNER TRUST FUND OFFICE (USD) ACCOUNT ,"13,500,000",Aid Programme - Humanitarian Material Relief Assistance and Services ,East and Central Africa ,,202850-101 
DFID,DFID,28/09/2012,SARAH MAGUIRE ,534,Technical and Advisory Services ,East and Central Africa ,,200842-110 
DFID,DFID,28/09/2012,Recipient name withheld ,"1,225",Training - Course Fees ,East and Central Africa ,,100082-101 
DFID,DFID,28/09/2012,Paulina Mrosso ,"2,469",Technical and Advisory Services ,East and Central Africa ,,202593-101 
DFID,DFID,28/09/2012,SARAH MAGUIRE ,"5,550",Technical and Advisory Services ,East and Central Africa ,,201462-103 
DFID,DFID,28/09/2012,KATHY ATTAWELL ,"12,000",Technical and Advisory Services ,East and Central Africa ,,203539-101 
DFID,DFID,28/09/2012,COFFEY INTERNATIONAL DEVELOPMENT LTD ,"13,505",Technical and Advisory Services ,East and Central Africa ,,202527-110 
DFID,DFID,28/09/2012,UNDP CONTRIBUTIONS GBP ,"21,400",Aid Programme - Voluntary contributions ,East and Central Africa ,,202534-105 
DFID,DFID,28/09/2012,Supplier Name withheld ,"26,700",Secure Staff Accomodation,East and Central Africa ,Secure staff Accommodation costs - 12 months rental September 2012-2013) Uganda ,101635-101 
DFID,DFID,28/09/2012,ADAM SMITH INTERNATIONAL  LTD ,"50,230",Technical and Advisory Services ,East and Central Africa ,,200221-107 
DFID,DFID,28/09/2012,ADAM SMITH INTERNATIONAL  LTD ,"73,232",Technical and Advisory Services ,East and Central Africa ,,200294-104 
DFID,DFID,28/09/2012,Mennonite Economic Development Associates of Canada ,"80,558",Technical and Advisory Services ,East and Central Africa ,,202481-104 
DFID,DFID,28/09/2012,SAFERWORLD ,"128,543",Aid Programme - Accountable Grant Payments ,East and Central Africa ,,200548-104 
DFID,DFID,28/09/2012,AUC- Shared Values ,"134,000",Aid Programme - Voluntary contributions ,East and Central Africa ,,200156-104 
DFID,DFID,28/09/2012,Ministry of Finance Tanzania ,"250,000",Aid Programme - Other Financial Aid to Government ,East and Central Africa ,,202770-101 
DFID,DFID,28/09/2012,Mennonite Economic Development Associates of Canada ,"256,435",Technical and Advisory Services ,East and Central Africa ,,202481-104 
DFID,DFID,28/09/2012,Helen Keller International-Tanzania ,"519,224",Aid Programme - Accountable Grant Payments ,East and Central Africa ,,202480-101 
DFID,DFID,28/09/2012,International Republican Institute ,"689,000",Aid Programme - Accountable Grant Payments ,East and Central Africa ,,200548-106 
DFID,DFID,28/09/2012,IPAS ,"1,620,012",Aid Programme - Accountable Grant Payments ,East and Central Africa ,,113656-101 
DFID,DFID,03/09/2012,Hays Specialist Recruitment Ltd ,825,Contract & Agency Staff ,Finance and Corporate Performance Division ,,202836-101 
DFID,DFID,03/09/2012,Hays Specialist Recruitment Ltd ,898,Contract & Agency Staff ,Finance and Corporate Performance Division ,,202836-101 
DFID,DFID,05/09/2012,Hays Specialist Recruitment Ltd ,"1,103",Contract & Agency Staff ,Finance and Corporate Performance Division ,,100201-101 
DFID,DFID,06/09/2012,Hays Specialist Recruitment Ltd ,"1,166",Contract & Agency Staff ,Finance and Corporate Performance Division ,,100201-101 
DFID,DFID,06/09/2012,Hays Specialist Recruitment Ltd ,"1,166",Contract & Agency Staff ,Finance and Corporate Performance Division ,,100201-101 
DFID,DFID,07/09/2012,Hays Specialist Recruitment Ltd ,"1,260",Contract & Agency Staff ,Finance and Corporate Performance Division ,,100201-101 
DFID,DFID,07/09/2012,MICHAEL PAGE INTERNATIONAL RECRUITMENT LIMITED ,"1,534",Contract & Agency Staff ,Finance and Corporate Performance Division ,,100201-101 
DFID,DFID,07/09/2012,MICHAEL PAGE INTERNATIONAL RECRUITMENT LIMITED ,"1,534",Contract & Agency Staff ,Finance and Corporate Performance Division ,,100201-101 
DFID,DFID,11/09/2012,MICHAEL PAGE INTERNATIONAL RECRUITMENT LIMITED ,"1,534",Contract & Agency Staff ,Finance and Corporate Performance Division ,,100201-101 
DFID,DFID,12/09/2012,Corporate Travel Provider ,873,Air fares ,Finance and Corporate Performance Division ,,202438-101 
DFID,DFID,12/09/2012,Corporate Travel Provider ,"1,176",Air fares ,Finance and Corporate Performance Division ,,100008-103 
DFID,DFID,12/09/2012,BOTTOMLINE TECHNOLOGIES EUROPE LTD ,"1,200",other information and communication technologies ,Finance and Corporate Performance Division ,,100008-101 
DFID,DFID,12/09/2012,Corporate Travel Provider ,"1,217",Air fares ,Finance and Corporate Performance Division ,,100008-103 
DFID,DFID,13/09/2012,Hays Specialist Recruitment Ltd ,"1,166",Contract & Agency Staff ,Finance and Corporate Performance Division ,,100201-101 
DFID,DFID,14/09/2012,Hays Specialist Recruitment Ltd ,"1,103",Contract & Agency Staff ,Finance and Corporate Performance Division ,,100201-101 
DFID,DFID,17/09/2012,MICHAEL PAGE INTERNATIONAL RECRUITMENT LIMITED ,920,Contract & Agency Staff ,Finance and Corporate Performance Division ,,100201-101 
DFID,DFID,17/09/2012,Hays Specialist Recruitment Ltd ,"1,103",Contract & Agency Staff ,Finance and Corporate Performance Division ,,100201-101 
DFID,DFID,17/09/2012,Hays Specialist Recruitment Ltd ,"1,166",Contract & Agency Staff ,Finance and Corporate Performance Division ,,100201-101 
DFID,DFID,17/09/2012,Hays Specialist Recruitment Ltd ,"1,260",Contract & Agency Staff ,Finance and Corporate Performance Division ,,100201-101 
DFID,DFID,17/09/2012,MICHAEL PAGE INTERNATIONAL RECRUITMENT LIMITED ,"1,534",Contract & Agency Staff ,Finance and Corporate Performance Division ,,100201-101 
DFID,DFID,17/09/2012,MICHAEL PAGE INTERNATIONAL RECRUITMENT LIMITED ,"3,450",Contract & Agency Staff ,Finance and Corporate Performance Division ,,100201-101 
DFID,DFID,18/09/2012,Hays Specialist Recruitment Ltd ,550,Contract & Agency Staff ,Finance and Corporate Performance Division ,,202836-101 
DFID,DFID,18/09/2012,EAST OF ENGLAND AMBULANCE SERVICE NH ,"4,048",Training - Course Fees ,Finance and Corporate Performance Division ,,100008-104 
DFID,DFID,19/09/2012,Hays Specialist Recruitment Ltd ,"1,260",Contract & Agency Staff ,Finance and Corporate Performance Division ,,100201-101 
DFID,DFID,20/09/2012,Hays Specialist Recruitment Ltd ,"1,260",Contract & Agency Staff ,Finance and Corporate Performance Division ,,100201-101 
DFID,DFID,21/09/2012,MICHAEL PAGE INTERNATIONAL RECRUITMENT LIMITED ,"1,650",Contract & Agency Staff ,Finance and Corporate Performance Division ,,100201-101 
DFID,DFID,21/09/2012,THE FINANCIAL REPORTING COUNCIL ,"5,840",Other Admin Costs ,Finance and Corporate Performance Division ,,100008-101 
DFID,DFID,25/09/2012,VODAFONE CORPORATE ,"1,230",Telephone Usage & services ,Finance and Corporate Performance Division ,,100201-101 
DFID,DFID,25/09/2012,MICHAEL PAGE INTERNATIONAL RECRUITMENT LIMITED ,"3,300",Contract & Agency Staff ,Finance and Corporate Performance Division ,,100201-101 
DFID,DFID,26/09/2012,MICHAEL PAGE INTERNATIONAL RECRUITMENT LIMITED ,"1,534",Contract & Agency Staff ,Finance and Corporate Performance Division ,,100201-101 
DFID,DFID,03/09/2012,NEOPOST LIMITED ,"1,260",Office Equipment - Maintenance ,Human Resources Security & Facilities Division ,,100106-101 
DFID,DFID,05/09/2012,MICHAEL PAGE INTERNATIONAL RECRUITMENT LIMITED ,727,Contract & Agency Staff ,Human Resources Security & Facilities Division ,,100266-110 
DFID,DFID,06/09/2012,BUSINESS STREAM ,"9,529",Water charges ,Human Resources Security & Facilities Division ,,100106-101 
DFID,DFID,07/09/2012,MARGARET HODGE RECRUITMENT LTD ,528,Contract & Agency Staff ,Human Resources Security & Facilities Division ,,100266-109 
DFID,DFID,07/09/2012,ROBSON ASSOCIATES ,"1,311,421",Operating Lease rental of buildings ,Human Resources Security & Facilities Division ,Quarterly rental costs (September - December 2012) for DFID HQ premises - London ,100187-101 
DFID,DFID,10/09/2012,Royal Mail Courier Services Ltd ,900,Postage Costs ,Human Resources Security & Facilities Division ,,202288-102 
DFID,DFID,10/09/2012,Supplier Name Withheld ,"1,147",Air fares ,Human Resources Security & Facilities Division ,,100269-128 
DFID,DFID,11/09/2012,Pilgrims Group ,673,Training - Course Fees ,Human Resources Security & Facilities Division ,,100049-101 
DFID,DFID,11/09/2012,MICHAEL PAGE INTERNATIONAL RECRUITMENT LIMITED ,862,Contract & Agency Staff ,Human Resources Security & Facilities Division ,,100266-110 
DFID,DFID,11/09/2012,XAFINITY PAYMASTER ,"1,000",Training - Travel & Subsistence ,Human Resources Security & Facilities Division ,,101624-101 
DFID,DFID,11/09/2012,CUSTOMER CONTACT ASSOCATION ,"1,198",Conferences  Seminars & Meeting/Event Resource ,Human Resources Security & Facilities Division ,,100270-102 
DFID,DFID,11/09/2012,ECA INTERNATIONAL ,"8,100",Professional member subscriptions ,Human Resources Security & Facilities Division ,,100269-135 
DFID,DFID,11/09/2012,Healix International Limited (Fees) ,"16,706",Technical and Advisory Services ,Human Resources Security & Facilities Division ,,202423-101 
DFID,DFID,11/09/2012,EDF ENERGY ,"20,076",Electricity ,Human Resources Security & Facilities Division ,,100106-101 
DFID,DFID,11/09/2012,EDF ENERGY ,"31,962",Electricity ,Human Resources Security & Facilities Division ,DFID HQ 1 Palace Street electricity costs for August 2012,100187-101 
DFID,DFID,11/09/2012,TURNER & TOWNSEND ,"51,460",Technical and Advisory Services ,Human Resources Security & Facilities Division ,,203156-101 
DFID,DFID,12/09/2012,Scott Bradbury Ltd ,994,Training Providers/Facilitation Services ,Human Resources Security & Facilities Division ,,100269-156 
DFID,DFID,12/09/2012,TR Control Solutions Ltd ,"1,978",Other Building Costs ,Human Resources Security & Facilities Division ,,100106-101 
DFID,DFID,12/09/2012,TR Control Solutions Ltd ,"3,403",Other Building Costs ,Human Resources Security & Facilities Division ,,100187-101 
DFID,DFID,12/09/2012,AMCS UK ,"9,900",other information and communication technologies ,Human Resources Security & Facilities Division ,,100272-101 
DFID,DFID,13/09/2012,SECURITY SERVICES GROUP ,853,Furniture & Fittings ,Human Resources Security & Facilities Division ,,100187-101 
DFID,DFID,13/09/2012,SHANKS WASTE MANAGMENT LIMITED ,"1,010",Repairs  Maint  Alter - Removal & waste disposal services ,Human Resources Security & Facilities Division ,,100106-101 
DFID,DFID,13/09/2012,Supplier Name Withheld ,"1,173",Air fares ,Human Resources Security & Facilities Division ,,100269-128 
DFID,DFID,13/09/2012,REED BUSINESS INFORMATION (EAST GRIN ,"1,530",Professional member subscriptions ,Human Resources Security & Facilities Division ,,100266-106 
DFID,DFID,13/09/2012,BYWATERS ,"2,473",Repairs  Maint  Alter - Removal & waste disposal services ,Human Resources Security & Facilities Division ,,100187-101 
DFID,DFID,13/09/2012,MBM Cladding Ltd ,"3,374",Other Building Costs ,Human Resources Security & Facilities Division ,,100106-101 
DFID,DFID,13/09/2012,REED BUSINESS INFORMATION (EAST GRIN ,"4,590",Professional member subscriptions ,Human Resources Security & Facilities Division ,,100268-101 
DFID,DFID,13/09/2012,REED BUSINESS INFORMATION (EAST GRIN ,"6,120",Professional member subscriptions ,Human Resources Security & Facilities Division ,,100266-108 
DFID,DFID,14/09/2012,MICHAEL PAGE INTERNATIONAL RECRUITMENT LIMITED ,649,Contract & Agency Staff ,Human Resources Security & Facilities Division ,,100266-110 
DFID,DFID,14/09/2012,INSIGHT DIRECT (UK) LTD ,"10,645",Hardware -monitors ,Human Resources Security & Facilities Division ,,100007-101 
DFID,DFID,17/09/2012,Michaeil Page Int. Recruitment Ltd ,"1,776",Contract & Agency Staff ,Human Resources Security & Facilities Division ,,100268-101 
DFID,DFID,17/09/2012,ORANGEBOX LTD ,"3,084",Furniture & Fittings ,Human Resources Security & Facilities Division ,,100007-101 
DFID,DFID,20/09/2012,Anderson Knight Ltd ,502,Contract & Agency Staff ,Human Resources Security & Facilities Division ,,100270-104 
DFID,DFID,20/09/2012,TNT Express (UK) Ltd ,588,Postage Costs ,Human Resources Security & Facilities Division ,,100106-101 
DFID,DFID,20/09/2012,MARTIN YALE INTERNATIONAL LTD ,635,Office Equipment - Purchases ,Human Resources Security & Facilities Division ,,100187-101 
DFID,DFID,20/09/2012,CORONA ENERGY ,637,Gas ,Human Resources Security & Facilities Division ,,100106-101 
DFID,DFID,20/09/2012,CORONA ENERGY ,801,Gas ,Human Resources Security & Facilities Division ,,100187-101 
DFID,DFID,20/09/2012,CORONA ENERGY ,820,Gas ,Human Resources Security & Facilities Division ,,100187-101 
DFID,DFID,20/09/2012,Penna Barkers ,940,Recruitment costs ,Human Resources Security & Facilities Division ,,100269-127 
DFID,DFID,20/09/2012,CORONA ENERGY ,"1,038",Gas ,Human Resources Security & Facilities Division ,,100187-101 
DFID,DFID,20/09/2012,PICKFORDS LTD ,"1,510",Furniture & Fittings ,Human Resources Security & Facilities Division ,,100187-101 
DFID,DFID,20/09/2012,Penna Barkers ,"1,931",Recruitment costs ,Human Resources Security & Facilities Division ,,100269-127 
DFID,DFID,20/09/2012,Michaeil Page Int. Recruitment Ltd ,"2,220",Contract & Agency Staff ,Human Resources Security & Facilities Division ,,100268-101 
DFID,DFID,20/09/2012,CORONA ENERGY ,"2,499",Gas ,Human Resources Security & Facilities Division ,,100187-101 
DFID,DFID,20/09/2012,Penna Barkers ,"2,638",Recruitment costs ,Human Resources Security & Facilities Division ,,100269-127 
DFID,DFID,20/09/2012,Penna Barkers ,"2,638",Recruitment costs ,Human Resources Security & Facilities Division ,,100269-127 
DFID,DFID,20/09/2012,The Carbon Trust Standard Company Ltd ,"10,000",Technical and Advisory Services ,Human Resources Security & Facilities Division ,,100187-101 
DFID,DFID,20/09/2012,MidlandHR ,"113,972",Technical and Advisory Services ,Human Resources Security & Facilities Division ,,100272-101 
DFID,DFID,21/09/2012,TURNER & TOWNSEND ,"1,854",Technical and Advisory Services ,Human Resources Security & Facilities Division ,,100106-101 
DFID,DFID,21/09/2012,INSIGHT DIRECT (UK) LTD ,"10,157",Office Equipment - Purchases ,Human Resources Security & Facilities Division ,,100007-101 
DFID,DFID,26/09/2012,CORONA ENERGY ,600,Gas ,Human Resources Security & Facilities Division ,,100106-101 
DFID,DFID,27/09/2012,Supplier Name Withheld ,"1,034",Air fares ,Human Resources Security & Facilities Division ,,100269-128 
DFID,DFID,27/09/2012,Michaeil Page Int. Recruitment Ltd ,"2,220",Contract & Agency Staff ,Human Resources Security & Facilities Division ,,100268-101 
DFID,DFID,27/09/2012,Video Arts Ltd ,"4,900",Training Providers/Facilitation Services ,Human Resources Security & Facilities Division ,,100269-156 
DFID,DFID,28/09/2012,MARGARET HODGE RECRUITMENT LTD ,528,Contract & Agency Staff ,Human Resources Security & Facilities Division ,,100266-109 
DFID,DFID,28/09/2012,MITIE Catering Services Ltd ,549,Entertainment & Hospitality ,Human Resources Security & Facilities Division ,,201157-102 
DFID,DFID,28/09/2012,Royal Mail Courier Services Ltd ,855,Postage Costs ,Human Resources Security & Facilities Division ,,201157-101 
DFID,DFID,28/09/2012,Penna Barkers ,"4,426",Recruitment costs ,Human Resources Security & Facilities Division ,,100269-127 
DFID,DFID,28/09/2012,MidlandHR ,"9,872",Technical and Advisory Services ,Human Resources Security & Facilities Division ,,100272-101 
DFID,DFID,06/09/2012,Pilgrims Group ,898,Training - Course Fees ,Internal Audit ,,100121-101 
DFID,DFID,06/09/2012,EuroTours Ghana Ltd ,"1,202",Air fares ,Internal Audit ,,100121-101 
DFID,DFID,07/09/2012,Pilgrims Group ,673,Training - Course Fees ,Internal Audit ,,100121-101 
DFID,DFID,12/09/2012,Corporate Travel Provider ,813,Air fares ,Internal Audit ,,100121-101 
DFID,DFID,12/09/2012,Corporate Travel Provider ,813,Air fares ,Internal Audit ,,100121-101 
DFID,DFID,12/09/2012,Corporate Travel Provider ,813,Air fares ,Internal Audit ,,100121-101 
DFID,DFID,12/09/2012,Corporate Travel Provider ,916,Air fares ,Internal Audit ,,100121-101 
DFID,DFID,12/09/2012,Corporate Travel Provider ,"1,246",Air fares ,Internal Audit ,,100121-101 
DFID,DFID,12/09/2012,Corporate Travel Provider ,"1,338",Air fares ,Internal Audit ,,100121-101 
DFID,DFID,13/09/2012,Pilgrims Group ,673,Training - Course Fees ,Internal Audit ,,100121-101 
DFID,DFID,17/09/2012,The Express Travel Group ,"1,275",Air fares ,Internal Audit ,,100121-101 
DFID,DFID,17/09/2012,EuroTours Ghana Ltd ,"1,564",Air fares ,Internal Audit ,,100121-101 
DFID,DFID,19/09/2012,Info Mind Solutions plc ,770,Recruitment costs ,Internal Audit ,,100121-101 
DFID,DFID,26/09/2012,The Express Travel Group ,"1,164",Air fares ,Internal Audit ,,100121-101 
DFID,DFID,06/09/2012,VODAFONE CORPORATE ,"1,180",Mobile telephones & accessories ,International Finance Division ,,202259-101 
DFID,DFID,11/09/2012,VODAFONE CORPORATE ,533,Telephone Usage & services ,International Finance Division ,,100111-101 
DFID,DFID,12/09/2012,Corporate Travel Provider ,538,Air fares ,International Finance Division ,,100098-101 
DFID,DFID,12/09/2012,Corporate Travel Provider ,598,Air fares ,International Finance Division ,,100111-101 
DFID,DFID,12/09/2012,Corporate Travel Provider ,644,Air fares ,International Finance Division ,,202391-101 
DFID,DFID,12/09/2012,Corporate Travel Provider ,670,Air fares ,International Finance Division ,,100120-101 
DFID,DFID,12/09/2012,Corporate Travel Provider ,783,Air fares ,International Finance Division ,,100098-101 
DFID,DFID,12/09/2012,Corporate Travel Provider ,785,Air fares ,International Finance Division ,,203336-104 
DFID,DFID,12/09/2012,Corporate Travel Provider ,993,Air fares ,International Finance Division ,,100111-101 
DFID,DFID,12/09/2012,Corporate Travel Provider ,"1,070",Air fares ,International Finance Division ,,202259-101 
DFID,DFID,13/09/2012,Foreign & Commonwealth Office ,612,Travel - Subsistence ,International Finance Division ,,202259-101 
DFID,DFID,13/09/2012,Foreign & Commonwealth Office ,"3,820",Secure Staff Accomodation,International Finance Division ,,201723-102 
DFID,DFID,13/09/2012,Foreign & Commonwealth Office ,"3,951",Secure Staff Accomodation,International Finance Division ,,201723-102 
DFID,DFID,13/09/2012,Foreign & Commonwealth Office ,"3,987",Secure Staff Accomodation,International Finance Division ,,201723-102 
DFID,DFID,13/09/2012,Nathan Associates London Ltd ,"20,912",Technical and Advisory Services ,International Finance Division ,,114009-101 
DFID,DFID,17/09/2012,GBRW LIMITED ,657,Technical and Advisory Services ,International Finance Division ,,100111-101 
DFID,DFID,18/09/2012,Recipient name withheld ,670,Hotels - Accommodation only ,International Finance Division ,,100098-101 
DFID,DFID,18/09/2012,IBRD (HSBC)  C/O THE WORLD BANK ,"2,000,000",Aid Programme - Trust Funds contributions ,International Finance Division ,,200977-101 
DFID,DFID,19/09/2012,WHITE & COMPANY ,647,Storage & Distribution costs ,International Finance Division ,,100098-101 
DFID,DFID,20/09/2012,SCHOOL OF ORIENTAL & AFRICAN STUDIES ,"41,396",Aid Programme - Accountable Grant Payments ,International Finance Division ,,200973-101 
DFID,DFID,21/09/2012,SG HAMBROS BANK & TRUST LTD (USD) ,"2,500,000",Aid Programme - Core contributions ,International Finance Division ,,202850-104 
DFID,DFID,21/09/2012,SG HAMBROS BANK & TRUST LTD (USD) ,"9,000,000",Aid Programme - Core contributions ,International Finance Division ,,203232-101 
DFID,DFID,21/09/2012,IBRD (GEF GFATM ETF PNs) ,"52,000,000",Encashment of Promissory Notes ,International Finance Division ,,200227-103 
DFID,DFID,25/09/2012,EUROPEAN BANK FOR RECONS.DEV.ENERGY ,"134,738",Aid Programme - Trust Funds contributions ,International Finance Division ,,110156-101 
DFID,DFID,25/09/2012,IBRD HSBC T ,"127,448,000",Aid Programme - Core contributions ,International Finance Division ,,200227-104 
DFID,DFID,26/09/2012,Recipient name withheld ,746,Hotels - Accommodation only ,International Finance Division ,,100111-101 
DFID,DFID,27/09/2012,Recipient name withheld ,529,Hotels - Accommodation only ,International Finance Division ,,100111-101 
DFID,DFID,28/09/2012,Recipient name withheld ,551,Hotels - Accommodation only ,International Finance Division ,,100098-101 
DFID,DFID,28/09/2012,Recipient name withheld ,943,Hotels - Accommodation only ,International Finance Division ,,201723-102 
DFID,DFID,28/09/2012,NATURAL RESOURCES INSTITUTE ,"16,927",Aid Programme - Accountable Grant Payments ,International Finance Division ,,200400-102 
DFID,DFID,28/09/2012,IBRD (HSBC)  C/O THE WORLD BANK ,"800,000",Aid Programme - Core contributions ,International Finance Division ,,200675-101 
DFID,DFID,28/09/2012,Department for International Development ,"26,100,000",Encashment of Promissory Notes ,International Finance Division ,,200018-103 
DFID,DFID,28/09/2012,GAVI Alliance ,"129,000,000",Aid Programme - Core contributions ,International Finance Division ,,200764-102 
DFID,DFID,06/09/2012,VODAFONE CORPORATE ,571,Mobile telephones & accessories ,International Relations Division ,,100086-101 
DFID,DFID,07/09/2012,RACHEL SMITH-GOVONI ,"6,933",Technical and Advisory Services ,International Relations Division ,,202961-101 
DFID,DFID,07/09/2012,RACHEL SMITH-GOVONI ,"9,498",Technical and Advisory Services ,International Relations Division ,,202961-101 
DFID,DFID,10/09/2012,COMMONWEALTH SECRETARIAT ,"5,099,120",Aid Programme - Core contributions ,International Relations Division ,,202998-101 
DFID,DFID,11/09/2012,CSC ,578,Interview expenses ,International Relations Division ,,100240-104 
DFID,DFID,12/09/2012,Foreign & Commonwealth Office ,555,FCO shared service charges ,International Relations Division ,,201711-101 
DFID,DFID,12/09/2012,Foreign & Commonwealth Office ,561,Technical and Advisory Services ,International Relations Division ,,201711-101 
DFID,DFID,12/09/2012,Foreign & Commonwealth Office ,577,Data Network - land lines ,International Relations Division ,,201711-101 
DFID,DFID,12/09/2012,Corporate Travel Provider ,785,Air fares ,International Relations Division ,,203336-104 
DFID,DFID,12/09/2012,Corporate Travel Provider ,801,Air fares ,International Relations Division ,,100262-101 
DFID,DFID,12/09/2012,Foreign & Commonwealth Office ,"1,841",FCO shared service charges ,International Relations Division ,,201711-101 
DFID,DFID,12/09/2012,Foreign & Commonwealth Office ,"1,857",Secure Staff Accomodation,International Relations Division ,,100262-101 
DFID,DFID,12/09/2012,Foreign & Commonwealth Office ,"2,038",FCO shared service charges ,International Relations Division ,,201711-101 
DFID,DFID,12/09/2012,CROWN RELOCATIONS  UK ,"2,292",Storage & Distribution costs ,International Relations Division ,,100262-101 
DFID,DFID,12/09/2012,Foreign & Commonwealth Office ,"2,648",Secure Staff Accomodation,International Relations Division ,,100236-101 
DFID,DFID,12/09/2012,UNDP CONTRIBUTIONS GBP ,"27,500,000",Aid Programme - Core contributions ,International Relations Division ,,202599-101 
DFID,DFID,13/09/2012,Foreign & Commonwealth Office ,554,Technical and Advisory Services ,International Relations Division ,,201711-101 
DFID,DFID,13/09/2012,Recipient name withheld ,592,Hotels - Accommodation only ,International Relations Division ,,100240-103 
DFID,DFID,13/09/2012,Foreign & Commonwealth Office ,867,Secure Staff Accomodation,International Relations Division ,,100262-101 
DFID,DFID,13/09/2012,Foreign & Commonwealth Office ,"1,438",Secure Staff Accomodation,International Relations Division ,,100262-101 
DFID,DFID,13/09/2012,Foreign & Commonwealth Office ,"1,960",Hotels - Accommodation only ,International Relations Division ,,201711-101 
DFID,DFID,13/09/2012,Foreign & Commonwealth Office ,"11,497",Technical and Advisory Services ,International Relations Division ,,201399-101 
DFID,DFID,14/09/2012,Recipient name withheld ,629,Hotels - Accommodation only ,International Relations Division ,,100240-101 
DFID,DFID,17/09/2012,Foreign & Commonwealth Office ,554,Technical and Advisory Services ,International Relations Division ,,201711-101 
DFID,DFID,17/09/2012,Shundi Consulting ,"8,980",Technical and Advisory Services ,International Relations Division ,,203302-101 
DFID,DFID,18/09/2012,COMMONWEALTH FOUNDATION ,"301,938",Aid Programme - Core contributions ,International Relations Division ,,110926-101 
DFID,DFID,19/09/2012,ART OF LIVING ,681,Technical and Advisory Services ,International Relations Division ,,202319-101 
DFID,DFID,19/09/2012,UNFPA ,"10,000,000",Aid Programme - Core contributions ,International Relations Division ,,202456-101 
DFID,DFID,20/09/2012,Personal Career Management ,"1,000",Training Providers/Facilitation Services ,International Relations Division ,,101624-101 
DFID,DFID,20/09/2012,COFFEY INTERNATIONAL DEVELOPMENT LTD ,"52,096",Technical and Advisory Services ,International Relations Division ,,200857-101 
DFID,DFID,20/09/2012,UN WOMEN ,"5,000,000",Aid Programme - Core contributions ,International Relations Division ,,202723-101 
DFID,DFID,21/09/2012,ART OF LIVING ,"1,516",Technical and Advisory Services ,International Relations Division ,,202319-101 
DFID,DFID,26/09/2012,PUBLIC ADMINISTRATION INTERN ,"7,892",Technical and Advisory Services ,International Relations Division ,,114327-101 
DFID,DFID,27/09/2012,Foreign & Commonwealth Office ,755,Secure Staff Accomodation,International Relations Division ,,202319-101 
DFID,DFID,27/09/2012,ART OF LIVING ,"1,314",Technical and Advisory Services ,International Relations Division ,,202319-101 
DFID,DFID,27/09/2012,Foreign & Commonwealth Office ,"1,814",Secure Staff Accomodation,International Relations Division ,,100262-101 
DFID,DFID,27/09/2012,ART OF LIVING ,"1,871",Technical and Advisory Services ,International Relations Division ,,202319-101 
DFID,DFID,27/09/2012,Foreign & Commonwealth Office ,"1,881",Secure Staff Accomodation,International Relations Division ,,100262-101 
DFID,DFID,27/09/2012,Foreign & Commonwealth Office ,"2,683",Secure Staff Accomodation,International Relations Division ,,100236-101 
DFID,DFID,27/09/2012,Foreign & Commonwealth Office ,"4,819",FCO shared service charges ,International Relations Division ,,201711-101 
DFID,DFID,28/09/2012,UNAIDS ,"5,000,000",Aid Programme - Core contributions ,International Relations Division ,,113608-101 
DFID,DFID,28/09/2012,WHO (GENEVA) ,"6,250,000",Aid Programme - Core contributions ,International Relations Division ,,202715-101 
DFID,DFID,05/09/2012,Eggplant12 Films Ltd ,"1,855",Technical and Advisory Services ,Joint Trade Policy Division ,,203530-102 
DFID,DFID,13/09/2012,RLabs ,"16,570",Technical and Advisory Services ,Joint Trade Policy Division ,,203530-102 
DFID,DFID,17/09/2012,Recipient name withheld ,578,Hotels - Accommodation only ,Joint Trade Policy Division ,,100124-101 
DFID,DFID,26/09/2012,KPMG LLP ,"10,500",Technical and Advisory Services ,Joint Trade Policy Division ,,202089-103 
DFID,DFID,26/09/2012,KPMG LLP ,"38,790",Technical and Advisory Services ,Joint Trade Policy Division ,,202089-103 
DFID,DFID,11/09/2012,NATIONAL AUDIT OFFICE ,"9,207",Technical and Advisory Services ,Non-Departmental Public Body ,,203064-101 
DFID,DFID,12/09/2012,Corporate Travel Provider ,"1,048",Air fares ,Non-Departmental Public Body ,,203064-101 
DFID,DFID,13/09/2012,NATIONAL AUDIT OFFICE ,"9,207",Technical and Advisory Services ,Non-Departmental Public Body ,,203064-101 
DFID,DFID,13/09/2012,NATIONAL AUDIT OFFICE ,"9,207",Technical and Advisory Services ,Non-Departmental Public Body ,,203064-101 
DFID,DFID,14/09/2012,SCOTLAND OFFICE ,"5,837",Operating Lease rental of buildings ,Non-Departmental Public Body ,,203064-101 
DFID,DFID,03/09/2012,Lagos Preparatory School ,"10,475",Aid Programme - Accountable Grant Payments ,Policy Division ,,201086-104 
DFID,DFID,03/09/2012,KPMG Development Services ,"11,944",Technical and Advisory Services ,Policy Division ,,114143-101 
DFID,DFID,03/09/2012,PRICEWATERHOUSECOOPERS ,"17,000",Technical and Advisory Services ,Policy Division ,,114370-105 
DFID,DFID,03/09/2012,KPMG Development Services ,"29,005",Technical and Advisory Services ,Policy Division ,Monthly management fee for DFIDs Global Governance & Transparency Fund � June 2012 ,100045-101 
DFID,DFID,03/09/2012,PRICEWATERHOUSECOOPERS ,"51,200",Technical and Advisory Services ,Policy Division ,,114370-104 
DFID,DFID,03/09/2012,PRICEWATERHOUSECOOPERS ,"112,583",Technical and Advisory Services ,Policy Division ,,114370-105 
DFID,DFID,03/09/2012,PRICEWATERHOUSECOOPERS ,"253,727",Technical and Advisory Services ,Policy Division ,,114370-104 
DFID,DFID,05/09/2012,Protea Hotel Apo Apartments ,"8,977",Aid Programme - Accountable Grant Payments ,Policy Division ,,201086-104 
DFID,DFID,05/09/2012,The George Washington University ,"129,232",Aid Programme - Accountable Grant Payments ,Policy Division ,,202570-101 
DFID,DFID,05/09/2012, Triple Line Consulting Ltd ,"373,444",Aid Programme - Accountable Grant Payments ,Policy Division ,,202035-101 
DFID,DFID,06/09/2012, Triple Line Consulting Ltd ,"13,407",Aid Programme - Accountable Grant Payments ,Policy Division ,,202035-101 
DFID,DFID,06/09/2012,HLSP LTD ,"28,292",Technical and Advisory Services ,Policy Division ,,202860-101 
DFID,DFID,07/09/2012,Pilgrims Group ,750,Training - Travel & Subsistence ,Policy Division ,,200659-115 
DFID,DFID,07/09/2012,Pilgrims Group ,"5,513",Training - Course Fees ,Policy Division ,,200659-115 
DFID,DFID,07/09/2012,RSM Tenon Limited ,"6,157",Technical and Advisory Services ,Policy Division ,,201242-101 
DFID,DFID,07/09/2012,COFFEY INTERNATIONAL DEVELOPMENT LTD ,"30,166",Technical and Advisory Services ,Policy Division ,,202372-104 
DFID,DFID,07/09/2012,Global Canopy Programme ,"40,294",Aid Programme - Accountable Grant Payments ,Policy Division ,,201724-114 
DFID,DFID,07/09/2012,HLSP LIMITED ,"67,801",Technical and Advisory Services ,Policy Division ,,201261-101 
DFID,DFID,07/09/2012,ICAR (UK) ,"125,000",Aid Programme - Accountable Grant Payments ,Policy Division ,,200458-102 
DFID,DFID,10/09/2012,KPMG DEVELOPMENT SERVICE ,"1,013,151",Aid Programme - Accountable Grant Payments ,Policy Division ,,114143-101 
DFID,DFID,11/09/2012,Foreign & Commonwealth Office ,"1,739",Technical and Advisory Services ,Policy Division ,,201724-124 
DFID,DFID,11/09/2012,SOCIAL DEVELOPMENT DIRECT LTD ,"4,536",Supplier Services ,Policy Division ,,100275-101 
DFID,DFID,11/09/2012,Triple Line Consulting Limited ,"725,346",Aid Programme - Challenge Fund payments ,Policy Division ,,201242-101 
DFID,DFID,12/09/2012,Corporate Travel Provider ,548,Air fares ,Policy Division ,,100277-104 
DFID,DFID,12/09/2012,Corporate Travel Provider ,679,Air fares ,Policy Division ,,203577-101 
DFID,DFID,12/09/2012,Corporate Travel Provider ,768,Air fares ,Policy Division ,,100277-101 
DFID,DFID,12/09/2012,Corporate Travel Provider ,792,Air fares ,Policy Division ,,202419-104 
DFID,DFID,12/09/2012,Corporate Travel Provider ,796,Air fares ,Policy Division ,,200659-113 
DFID,DFID,12/09/2012,Corporate Travel Provider ,910,Air fares ,Policy Division ,,203577-101 
DFID,DFID,12/09/2012,Corporate Travel Provider ,"1,084",Air fares ,Policy Division ,,203577-101 
DFID,DFID,12/09/2012,Corporate Travel Provider ,"2,689",Air fares ,Policy Division ,,202419-103 
DFID,DFID,12/09/2012,COMIC RELIEF ,"941,667",Aid Programme - Partnership Programme Arrangements ,Policy Division ,,200645-101 
DFID,DFID,13/09/2012,Foreign & Commonwealth Office ,"2,466",Hotels - Accommodation only ,Policy Division ,,100276-106 
DFID,DFID,13/09/2012,Foreign & Commonwealth Office ,"2,466",Hotels - Accommodation only ,Policy Division ,,202402-104 
DFID,DFID,13/09/2012,Foreign & Commonwealth Office ,"2,466",Hotels - Accommodation only ,Policy Division ,,100191-101 
DFID,DFID,13/09/2012,Livingstone International Development Consultants Ltd ,"14,626",Supplier Services ,Policy Division ,,100275-101 
DFID,DFID,14/09/2012,Recipient name withheld ,700,Air fares ,Policy Division ,,202392-109 
DFID,DFID,14/09/2012,Asian Development Bank (USA) ,"160,000",Aid Programme - Trust Funds contributions ,Policy Division ,,200509-104 
DFID,DFID,17/09/2012,VODAFONE CORPORATE ,526,Telephone Usage & services ,Policy Division ,,100191-101 
DFID,DFID,17/09/2012,VODAFONE CORPORATE ,"1,789",Mobile telephones & accessories ,Policy Division ,,100274-101 
DFID,DFID,17/09/2012,WATERAID ,"7,001",Aid Programme - Accountable Grant Payments ,Policy Division ,,200769-101 
DFID,DFID,20/09/2012,Hays Specialist Recruitment Ltd ,709,Contract & Agency Staff ,Policy Division ,,100191-101 
DFID,DFID,20/09/2012,Hays Specialist Recruitment Ltd ,"1,240",Contract & Agency Staff ,Policy Division ,,100191-101 
DFID,DFID,20/09/2012,Hays Specialist Recruitment Ltd ,"1,453",Contract & Agency Staff ,Policy Division ,,100191-101 
DFID,DFID,20/09/2012,LONDON SCHOOL OF ECONOMICS AND POLITICAL SCIENCE ,"10,386",Technical and Advisory Services ,Policy Division ,,114188-101 
DFID,DFID,20/09/2012,TRIPLE LINE CONSULTING LTD ,"47,742",Technical and Advisory Services ,Policy Division ,,202035-101 
DFID,DFID,20/09/2012,LONDON SCHOOL OF ECONOMICS AND POLITICAL SCIENCE ,"105,277",Technical and Advisory Services ,Policy Division ,,114188-101 
DFID,DFID,20/09/2012,Program for Appropriate Technology in Health ,"180,025",Aid Programme - Accountable Grant Payments ,Policy Division ,,202825-101 
DFID,DFID,20/09/2012,TROPICAL HEALTH AND EDUCATION TRUST ,"265,159",Technical and Advisory Services ,Policy Division ,,202208-101 
DFID,DFID,20/09/2012,UNOPS ,"500,000",Aid Programme - Trust Funds contributions ,Policy Division ,,200779-104 
DFID,DFID,21/09/2012,Maria Isabel Andrade ,509,Other travel costs ,Policy Division ,,203184-101 
DFID,DFID,21/09/2012,COMMUNICAID GRP LIMITED ,645,Training Providers/Facilitation Services ,Policy Division ,,100277-102 
DFID,DFID,21/09/2012,TROPICAL HEALTH AND EDUCATION TRUST ,"142,131",Technical and Advisory Services ,Policy Division ,,202208-101 
DFID,DFID,21/09/2012,TROPICAL HEALTH AND EDUCATION TRUST ,"430,966",Technical and Advisory Services ,Policy Division ,,202208-101 
DFID,DFID,22/09/2012,Lexeme Consulting ,"12,210",Technical and Advisory Services ,Policy Division ,,203034-105 
DFID,DFID,24/09/2012,Recipient name withheld ,769,Hotels - Accommodation only ,Policy Division ,,100277-104 
DFID,DFID,25/09/2012,Maria Isabel Andrade ,509,Other travel costs ,Policy Division ,,203184-101 
DFID,DFID,25/09/2012,Recipient name withheld ,"1,460",Hotels - Accommodation only ,Policy Division ,,202419-101 
DFID,DFID,25/09/2012,KPMG LLP ,"193,092",Technical and Advisory Services ,Policy Division ,,202035-101 
DFID,DFID,26/09/2012,Foreign & Commonwealth Office ,584,Unanalysed/miscellaneous travel ,Policy Division ,,100277-101 
DFID,DFID,26/09/2012,PATH ,"27,317",Technical and Advisory Services ,Policy Division ,,202674-101 
DFID,DFID,26/09/2012,University of Wolverhampton - School of Education ,"55,977",Aid Programme - Accountable Grant Payments ,Policy Division ,,201724-118 
DFID,DFID,26/09/2012,University of Wolverhampton - School of Education ,"254,625",Aid Programme - Accountable Grant Payments ,Policy Division ,,201724-118 
DFID,DFID,27/09/2012,Hays Specialist Recruitment Ltd ,673,Contract & Agency Staff ,Policy Division ,,100191-101 
DFID,DFID,27/09/2012,Livingstone International Development Consultants Ltd ,"8,848",Supplier Services ,Policy Division ,,100275-101 
DFID,DFID,27/09/2012,PATH ,"13,127",Technical and Advisory Services ,Policy Division ,,202674-101 
DFID,DFID,28/09/2012,Recipient name withheld ,945,Hotels - Accommodation only ,Policy Division ,,100277-104 
DFID,DFID,28/09/2012,PATH ,"5,673",Technical and Advisory Services ,Policy Division ,,202674-101 
DFID,DFID,28/09/2012,PATH ,"17,996",Technical and Advisory Services ,Policy Division ,,202674-101 
DFID,DFID,03/09/2012,Ian C Davies Conseil Inc ,"1,593",Technical and Advisory Services ,Research and Evidence Division ,,201014-102 
DFID,DFID,03/09/2012,Center for Strategic & International Studies  Inc ,"40,160",Research & Development costs ,Research and Evidence Division ,,203239-101 
DFID,DFID,03/09/2012,WELLCOME TRUST ,"67,750",Aid Programme - Pooled/Basket funding ,Research and Evidence Division ,,114075-102 
DFID,DFID,03/09/2012,PRICEWATERHOUSECOOPERS ,"76,800",Technical and Advisory Services ,Research and Evidence Division ,,200822-101 
DFID,DFID,03/09/2012,PRICEWATERHOUSECOOPERS ,"380,590",Technical and Advisory Services ,Research and Evidence Division ,,200822-101 
DFID,DFID,05/09/2012,HTSPE LTD ,"41,704",Technical and Advisory Services ,Research and Evidence Division ,,202242-108 
DFID,DFID,05/09/2012,USDA-ARS ,"129,166",Aid Programme - Core contributions ,Research and Evidence Division ,,202108-104 
DFID,DFID,05/09/2012,University Of Sussex ,"141,535",Research & Development costs ,Research and Evidence Division ,,114334-101 
DFID,DFID,05/09/2012,Crown Agents Bank ,"511,145",Research & Development costs ,Research and Evidence Division ,,114010-102 
DFID,DFID,05/09/2012,USDA-ARS ,"1,092,386",Aid Programme - Core contributions ,Research and Evidence Division ,,202108-102 
DFID,DFID,06/09/2012,SCHOOL OF ORIENTAL & AFRICAN STUDIES ,"9,968",Research & Development costs ,Research and Evidence Division ,,203337-101 
DFID,DFID,06/09/2012,WHO (GENEVA) ,"1,000,000",Aid Programme - Core contributions ,Research and Evidence Division ,,200274-102 
DFID,DFID,07/09/2012,Technology Development Group ,"10,100",Technical and Advisory Services ,Research and Evidence Division ,,112193-102 
DFID,DFID,07/09/2012,CLIMATE STRATEGIES ,"23,459",Research & Development costs ,Research and Evidence Division ,,203359-101 
DFID,DFID,10/09/2012,The George Washington University ,"2,669",Training Providers/Facilitation Services ,Research and Evidence Division ,,100088-119 
DFID,DFID,10/09/2012,WHO (GENEVA) ,"30,000",Aid Programme - Joint programme contribution ,Research and Evidence Division ,,203036-102 
DFID,DFID,10/09/2012,Society for Technology and Action for Rural Advancement ,"57,907",Technical and Advisory Services ,Research and Evidence Division ,,201727-101 
DFID,DFID,11/09/2012,Foreign & Commonwealth Office ,"1,125",Technical and Advisory Services ,Research and Evidence Division ,,200529-107 
DFID,DFID,11/09/2012,Foreign & Commonwealth Office ,"2,388",Travel - Subsistence ,Research and Evidence Division ,,200529-107 
DFID,DFID,11/09/2012,Roger Drew ,"5,107",Technical and Advisory Services ,Research and Evidence Division ,,203069-102 
DFID,DFID,11/09/2012,IOE University of London ,"8,100",Research & Development costs ,Research and Evidence Division ,,202136-101 
DFID,DFID,11/09/2012,International Partnership for Microbicides ,"2,000,000",Aid Programme - Core contributions ,Research and Evidence Division ,,202731-101 
DFID,DFID,11/09/2012,INTERNATIONAL AIDS VACCINE INITIATIV ,"3,500,000",Aid Programme - Core contributions ,Research and Evidence Division ,,114405-101 
DFID,DFID,12/09/2012,Recipient name withheld ,773,Hotels - Accommodation only ,Research and Evidence Division ,,100088-101 
DFID,DFID,12/09/2012,Corporate Travel Provider ,"1,096",Air fares ,Research and Evidence Division ,,202333-101 
DFID,DFID,12/09/2012,Population Council ,"48,567",Research & Development costs ,Research and Evidence Division ,,112115-101 
DFID,DFID,12/09/2012, Swiss Agency for Development and Cooperation ,"170,000",Aid Programme - Core contributions ,Research and Evidence Division ,,202748-101 
DFID,DFID,12/09/2012,WHO Human Reproduction Programme ,"1,500,000",Aid Programme - Core contributions ,Research and Evidence Division ,,114397-101 
DFID,DFID,12/09/2012,Medicines for Malaria Venture ,"2,000,000",Aid Programme - Core contributions ,Research and Evidence Division ,,114398-102 
DFID,DFID,13/09/2012,ProQuest LLC ,"2,097",Subscriptions ,Research and Evidence Division ,,202348-103 
DFID,DFID,13/09/2012, University Of Oxford ,"4,682",Training Providers/Facilitation Services ,Research and Evidence Division ,,202826-101 
DFID,DFID,13/09/2012, University Of Oxford ,"93,647",Training Providers/Facilitation Services ,Research and Evidence Division ,,202826-101 
DFID,DFID,14/09/2012,CAB INTERNATIONAL ,"49,287",Research & Development costs ,Research and Evidence Division ,,201727-101 
DFID,DFID,14/09/2012,London School of Hygiene and Tropical Medicine ,"126,483",Research & Development costs ,Research and Evidence Division ,,201889-101 
DFID,DFID,14/09/2012,Population Council ,"174,436",Research & Development costs ,Research and Evidence Division ,,201398-101 
DFID,DFID,17/09/2012,Recipient name withheld ,805,Air fares ,Research and Evidence Division ,,100039-108 
DFID,DFID,18/09/2012,Pilgrims Group ,673,Hostile Environment Training ,Research and Evidence Division ,,101601-110 
DFID,DFID,19/09/2012,VODAFONE CORPORATE ,585,Telephone Usage & services ,Research and Evidence Division ,,100039-108 
DFID,DFID,19/09/2012,VODAFONE CORPORATE ,"1,701",Telephone Usage & services ,Research and Evidence Division ,,100039-108 
DFID,DFID,19/09/2012,Centro de Investigaciones Economicas (CINVE) ,"8,525",Research & Development costs ,Research and Evidence Division ,,201642-101 
DFID,DFID,20/09/2012,TEARFUND ,"23,568",Research & Development costs ,Research and Evidence Division ,,203287-101 
DFID,DFID,20/09/2012,INTERNATIONAL CENTRE FOR DIARRO ,"25,000",Aid Programme - Accountable Grant Payments ,Research and Evidence Division ,,113310-116 
DFID,DFID,20/09/2012,TEARFUND ,"43,818",Research & Development costs ,Research and Evidence Division ,,203287-101 
DFID,DFID,21/09/2012,KUONI BUSINESS TRAVEL INDIA PVT LTD ,581,Training - Travel & Subsistence ,Research and Evidence Division ,,202392-109 
DFID,DFID,21/09/2012,  CfBT Education Trust ,"23,000",Technical and Advisory Services ,Research and Evidence Division ,,202242-106 
DFID,DFID,22/09/2012,CZECH-IN s.r.o.(EURO) ,506,Training - Course Fees ,Research and Evidence Division ,,100088-119 
DFID,DFID,22/09/2012,CZECH-IN s.r.o.(EURO) ,965,Professional member subscriptions ,Research and Evidence Division ,,100088-101 
DFID,DFID,22/09/2012,CZECH-IN s.r.o.(EURO) ,"2,870",Training - Course Fees ,Research and Evidence Division ,,100088-119 
DFID,DFID,22/09/2012,GLOBAL DEVELOPMENT NETWORK (3ie) ,"677,371",Aid Programme - Accountable Grant Payments ,Research and Evidence Division ,,200135-101 
DFID,DFID,25/09/2012,NatCen Learning ,700,Training Providers/Facilitation Services ,Research and Evidence Division ,,100274-101 
DFID,DFID,25/09/2012,THE DEVELOPMENT STUDIES ASSOCIATION ,"45,934",Aid Programme - Accountable Grant Payments ,Research and Evidence Division ,,201761-101 
DFID,DFID,25/09/2012,CAB INTERNATIONAL ,"51,772",Technical and Advisory Services ,Research and Evidence Division ,,112152-101 
DFID,DFID,25/09/2012,LONDON SCHOOL OF ECONOMICS AND POLITICAL SCIENCE ,"103,108",Research & Development costs ,Research and Evidence Division ,,201006-101 
DFID,DFID,25/09/2012,IBRD HSBC T ,"1,927,000",Aid Programme - Trust Funds contributions ,Research and Evidence Division ,,113710-101 
DFID,DFID,26/09/2012,DoubleTree by Hilton London - Westminster  ,841,Entertainment & Hospitality ,Research and Evidence Division ,,100039-102 
DFID,DFID,26/09/2012,The Express Travel Group ,985,Air fares ,Research and Evidence Division ,,202334-101 
DFID,DFID,26/09/2012,Foreign & Commonwealth Office ,"2,194",Technical and Advisory Services ,Research and Evidence Division ,,200529-107 
DFID,DFID,26/09/2012,IBM UNITED KINGDOM LIMITED ,"3,289",Computer software maintenance ,Research and Evidence Division ,,100039-114 
DFID,DFID,26/09/2012,CHRISTOPHER ADAM ,"3,850",Training Providers/Facilitation Services ,Research and Evidence Division ,,202332-102 
DFID,DFID,26/09/2012,RAND EUROPE ,"9,500",Research & Development costs ,Research and Evidence Division ,,107891-102 
DFID,DFID,26/09/2012,Burt Perrin ,"10,850",Technical and Advisory Services ,Research and Evidence Division ,,203069-103 
DFID,DFID,26/09/2012,HTSPE LTD ,"58,950",Technical and Advisory Services ,Research and Evidence Division ,,203193-101 
DFID,DFID,26/09/2012,FAO ,"2,250,000",Aid Programme - Voluntary contributions ,Research and Evidence Division ,,202931-101 
DFID,DFID,27/09/2012,FOREIGN AND COMMONWEALTH OFFICE (FCO) ,"7,254",Technical and Advisory Services ,Research and Evidence Division ,,200529-102 
DFID,DFID,27/09/2012,INSTITUTE OF DEVELOPMENT STUDIES ,"41,434",Research & Development costs ,Research and Evidence Division ,,201097-102 
DFID,DFID,27/09/2012,INSTITUTE OF DEVELOPMENT STUDIES ,"41,434",Research & Development costs ,Research and Evidence Division ,,201097-101 
DFID,DFID,27/09/2012,SCIDEV.NET ,"150,000",Aid Programme - Accountable Grant Payments ,Research and Evidence Division ,,203016-101 
DFID,DFID,27/09/2012,GALVmed ,"1,500,000",Aid Programme - Core contributions ,Research and Evidence Division ,,202040-101 
DFID,DFID,28/09/2012,RS DREW LTD ,"3,570",Technical and Advisory Services ,Research and Evidence Division ,,201014-102 
DFID,DFID,28/09/2012,USDA-ARS ,"29,166",Aid Programme - Core contributions ,Research and Evidence Division ,,202108-104 
DFID,DFID,28/09/2012,The World Bank (EFO) ,"50,000",Aid Programme - Core contributions ,Research and Evidence Division ,,202856-101 
DFID,DFID,28/09/2012,The World Bank (EFO) ,"70,000",Aid Programme - Core contributions ,Research and Evidence Division ,,202856-102 
DFID,DFID,28/09/2012,IPDET  CARLETON UNIVERSITY ,"75,000",Aid Programme - Accountable Grant Payments ,Research and Evidence Division ,,203014-104 
DFID,DFID,28/09/2012,USDA-ARS ,"589,755",Aid Programme - Core contributions ,Research and Evidence Division ,,202108-102 
DFID,DFID,03/09/2012,UN WOMEN ,"517,666",Aid Programme - Other Financial Aid to Government ,Security & Humanitarian and Middle East Division ,,201236-102 
DFID,DFID,03/09/2012,UN OCHA ,"10,000,000",Aid Programme - Core contributions ,Security & Humanitarian and Middle East Division ,,203343-102 
DFID,DFID,04/09/2012,Supplier Name withheld ,"2,000,000",Aid Programme - Voluntary contributions ,Security & Humanitarian and Middle East Division ,,203216-107 
DFID,DFID,05/09/2012,CARE INTERNATIONAL ,"240,707",Aid Programme - Accountable Grant Payments ,Security & Humanitarian and Middle East Division ,,203610-101 
DFID,DFID,05/09/2012,SAVE THE CHILDREN ,"350,000",Aid Programme - Accountable Grant Payments ,Security & Humanitarian and Middle East Division ,,203610-101 
DFID,DFID,06/09/2012,Pilgrims Group ,555,Training Providers/Facilitation Services ,Security & Humanitarian and Middle East Division ,,100303-101 
DFID,DFID,06/09/2012,VODAFONE CORPORATE ,859,Mobile telephones & accessories ,Security & Humanitarian and Middle East Division ,,100049-101 
DFID,DFID,06/09/2012,VODAFONE CORPORATE ,"1,616",Mobile telephones & accessories ,Security & Humanitarian and Middle East Division ,,100049-101 
DFID,DFID,06/09/2012,CONCERN WORLDWIDE ,"319,182",Aid Programme - Accountable Grant Payments ,Security & Humanitarian and Middle East Division ,,203610-101 
DFID,DFID,07/09/2012,VODAFONE CORPORATE ,550,Mobile telephones & accessories ,Security & Humanitarian and Middle East Division ,,100146-101 
DFID,DFID,07/09/2012,Cabinet Office RM Shared Services ,"78,292",Other Admin Costs ,Security & Humanitarian and Middle East Division ,DFID contribution to the Iraq Inquiry April � June 2012 ,100296-101 
DFID,DFID,10/09/2012, Norwegian Refugee Council ,"433,584",Aid Programme - Accountable Grant Payments ,Security & Humanitarian and Middle East Division ,,201304-101 
DFID,DFID,10/09/2012,Supplier Name withheld ,"2,000,000",Aid Programme - Voluntary contributions ,Security & Humanitarian and Middle East Division ,,203216-107 
DFID,DFID,11/09/2012,FCO SERVICES ,629,Office Supplies ,Security & Humanitarian and Middle East Division ,,202399-102 
DFID,DFID,11/09/2012,Foreign & Commonwealth Office ,"1,093",Travel - Subsistence ,Security & Humanitarian and Middle East Division ,,201705-101 
DFID,DFID,11/09/2012,John Twigg ,"8,500",Technical and Advisory Services ,Security & Humanitarian and Middle East Division ,,203189-101 
DFID,DFID,11/09/2012,Foreign & Commonwealth Office ,"10,452",Technical and Advisory Services ,Security & Humanitarian and Middle East Division ,,201705-101 
DFID,DFID,11/09/2012,MINES ADVISORY GROUP ,"23,313",Technical and Advisory Services ,Security & Humanitarian and Middle East Division ,,201745-104 
DFID,DFID,11/09/2012,MINES ADVISORY GROUP ,"41,203",Technical and Advisory Services ,Security & Humanitarian and Middle East Division ,,201745-108 
DFID,DFID,12/09/2012,Foreign & Commonwealth Office ,536,Air fares ,Security & Humanitarian and Middle East Division ,,201701-101 
DFID,DFID,12/09/2012,Corporate Travel Provider ,548,Air fares ,Security & Humanitarian and Middle East Division ,,100303-101 
DFID,DFID,12/09/2012,Corporate Travel Provider ,552,Air fares ,Security & Humanitarian and Middle East Division ,,202399-102 
DFID,DFID,12/09/2012,Corporate Travel Provider ,557,Air fares ,Security & Humanitarian and Middle East Division ,,201705-101 
DFID,DFID,12/09/2012,Corporate Travel Provider ,654,Air fares ,Security & Humanitarian and Middle East Division ,,100049-101 
DFID,DFID,12/09/2012,Pilgrims Group ,673,Training - Course Fees ,Security & Humanitarian and Middle East Division ,,101601-110 
DFID,DFID,12/09/2012,Corporate Travel Provider ,680,Air fares ,Security & Humanitarian and Middle East Division ,,201701-101 
DFID,DFID,12/09/2012,Corporate Travel Provider ,785,Air fares ,Security & Humanitarian and Middle East Division ,,100262-101 
DFID,DFID,12/09/2012,Corporate Travel Provider ,854,Hotels - Accommodation only ,Security & Humanitarian and Middle East Division ,,100307-101 
DFID,DFID,12/09/2012,Foreign & Commonwealth Office ,870,Air fares ,Security & Humanitarian and Middle East Division ,,201701-101 
DFID,DFID,12/09/2012,Corporate Travel Provider ,901,Air fares ,Security & Humanitarian and Middle East Division ,,202398-101 
DFID,DFID,12/09/2012,SWISS AGENCY FOR DEVELOPMENT AND COOPERATION (SDC) ,"2,708",Conferences  Seminars & Meeting/Event Resource ,Security & Humanitarian and Middle East Division ,,100049-101 
DFID,DFID,12/09/2012,MINES ADVISORY GROUP ,"25,901",Technical and Advisory Services ,Security & Humanitarian and Middle East Division ,,201745-102 
DFID,DFID,12/09/2012,MINES ADVISORY GROUP ,"28,172",Technical and Advisory Services ,Security & Humanitarian and Middle East Division ,,201745-103 
DFID,DFID,12/09/2012,MINES ADVISORY GROUP ,"43,785",Technical and Advisory Services ,Security & Humanitarian and Middle East Division ,,201745-101 
DFID,DFID,13/09/2012,Foreign & Commonwealth Office ,549,Training - Travel & Subsistence ,Security & Humanitarian and Middle East Division ,,201705-101 
DFID,DFID,13/09/2012,Foreign & Commonwealth Office ,580,Storage & Distribution costs ,Security & Humanitarian and Middle East Division ,,202887-101 
DFID,DFID,13/09/2012,Foreign & Commonwealth Office ,612,Hotels - Accommodation only ,Security & Humanitarian and Middle East Division ,,101619-101 
DFID,DFID,13/09/2012,Foreign & Commonwealth Office ,706,Training - Travel & Subsistence ,Security & Humanitarian and Middle East Division ,,201705-101 
DFID,DFID,13/09/2012,Foreign & Commonwealth Office ,708,Secure Staff Accomodation,Security & Humanitarian and Middle East Division ,,201705-101 
DFID,DFID,13/09/2012,Foreign & Commonwealth Office ,825,Travel - Subsistence ,Security & Humanitarian and Middle East Division ,,201705-101 
DFID,DFID,13/09/2012,Foreign & Commonwealth Office ,831,Training - Travel & Subsistence ,Security & Humanitarian and Middle East Division ,,201705-101 
DFID,DFID,13/09/2012,Supplier Name withheld ,879,Technical and Advisory Services ,Security & Humanitarian and Middle East Division ,,203216-110 
DFID,DFID,13/09/2012,Foreign & Commonwealth Office ,"1,458",Vehicle Repairs & Maintenance ,Security & Humanitarian and Middle East Division ,,201705-101 
DFID,DFID,13/09/2012,Foreign & Commonwealth Office ,"2,921",Storage & Distribution costs ,Security & Humanitarian and Middle East Division ,,100303-101 
DFID,DFID,13/09/2012,Foreign & Commonwealth Office ,"19,434",Secure Staff Accomodation,Security & Humanitarian and Middle East Division ,,201705-101 
DFID,DFID,13/09/2012,The Representative office of Norway ,"158,442",Aid Programme - Joint programme contribution ,Security & Humanitarian and Middle East Division ,,201812-101 
DFID,DFID,14/09/2012,Supplier Name withheld ,524,Technical and Advisory Services ,Security & Humanitarian and Middle East Division ,,203216-110 
DFID,DFID,14/09/2012,AIR PARTNER PLC ,"1,271",Technical and Advisory Services ,Security & Humanitarian and Middle East Division ,,102055-101 
DFID,DFID,14/09/2012,Recipient name withheld ,"4,817",Hotels - Accommodation only ,Security & Humanitarian and Middle East Division ,,100049-101 
DFID,DFID,14/09/2012,FOREIGN AND COMMONWEALTH OFFICE (FCO) ,"41,151",Technical and Advisory Services ,Security & Humanitarian and Middle East Division ,,202486-103 
DFID,DFID,14/09/2012,FOREIGN AND COMMONWEALTH OFFICE (FCO) ,"41,151",FCO shared service charges ,Security & Humanitarian and Middle East Division ,Shared services April-June 2012 - Libya,202399-102 
DFID,DFID,14/09/2012,OXFORD POLICY MANAGEMENT ,"105,163",Technical and Advisory Services ,Security & Humanitarian and Middle East Division ,,202241-104 
DFID,DFID,14/09/2012,WFP CONTRIBUTIONS UNIT ,"3,000,000",Aid Programme - Voluntary contributions ,Security & Humanitarian and Middle East Division ,,202963-116 
DFID,DFID,17/09/2012, Overseas Development Institute ,"7,200",Technical and Advisory Services ,Security & Humanitarian and Middle East Division ,,203593-101 
DFID,DFID,17/09/2012, Overseas Development Institute ,"14,600",Aid Programme - Accountable Grant Payments ,Security & Humanitarian and Middle East Division ,,202719-102 
DFID,DFID,18/09/2012,Foreign & Commonwealth Office ,644,Office Supplies ,Security & Humanitarian and Middle East Division ,,201705-101 
DFID,DFID,18/09/2012,Foreign & Commonwealth Office ,"2,549",Hotels - Accommodation only ,Security & Humanitarian and Middle East Division ,,100303-101 
DFID,DFID,19/09/2012,Scottish Police Services Authority ,"1,682",Technical and Advisory Services ,Security & Humanitarian and Middle East Division ,,202486-106 
DFID,DFID,19/09/2012, Fond Inst Uni Htes Etudes Int(SMALL ARMS SURVEY) ,"31,491",Aid Programme - Accountable Grant Payments ,Security & Humanitarian and Middle East Division ,,201898-103 
DFID,DFID,20/09/2012,COMMUNICAID GRP LIMITED ,561,Training - Course Fees ,Security & Humanitarian and Middle East Division ,,100146-101 
DFID,DFID,20/09/2012,Supplier Name withheld ,"9,674",Aid Programme - Humanitarian Material Relief Assistance and Services ,Security & Humanitarian and Middle East Division ,,203216-110 
DFID,DFID,20/09/2012,Scottish Police Services Authority ,"10,117",Technical and Advisory Services ,Security & Humanitarian and Middle East Division ,,202486-106 
DFID,DFID,20/09/2012, Norwegian Refugee Council ,"360,001",Aid Programme - Accountable Grant Payments ,Security & Humanitarian and Middle East Division ,,201304-101 
DFID,DFID,24/09/2012,FOREIGN AND COMMONWEALTH OFFICE (FCO) ,"4,330",Technical and Advisory Services ,Security & Humanitarian and Middle East Division ,,202398-101 
DFID,DFID,25/09/2012,Supplier Name withheld ,"499,950",Aid Programme - Voluntary contributions ,Security & Humanitarian and Middle East Division ,,203216-113 
DFID,DFID,26/09/2012,Supplier Name withheld ,"206,277",Aid Programme - Accountable Grant Payments ,Security & Humanitarian and Middle East Division ,,203216-108 
DFID,DFID,26/09/2012,THE INTERNATIONAL COMMITTEE OF THE RED CROSS (ICRC) ,"2,000,000",Aid Programme - Voluntary contributions ,Security & Humanitarian and Middle East Division ,,203117-101 
DFID,DFID,27/09/2012,Foreign & Commonwealth Office ,611,Vehicle Repairs & Maintenance ,Security & Humanitarian and Middle East Division ,,100303-101 
DFID,DFID,27/09/2012,Foreign & Commonwealth Office ,"1,203",Telephone Usage & services ,Security & Humanitarian and Middle East Division ,,201705-101 
DFID,DFID,27/09/2012,European Bank for Reconstruction and Development (SEMED) ,"1,000,000",Aid Programme - Trust Funds contributions ,Security & Humanitarian and Middle East Division ,,203056-101 
DFID,DFID,11/09/2012,VODAFONE CORPORATE ,879,Telephone Usage & services ,Top Management Group ,,100232-102 
DFID,DFID,12/09/2012,Corporate Travel Provider ,"1,183",Air fares ,Top Management Group ,,100232-108 
DFID,DFID,12/09/2012,Corporate Travel Provider ,"1,191",Air fares ,Top Management Group ,,100232-106 
DFID,DFID,12/09/2012,Corporate Travel Provider ,"1,191",Air fares ,Top Management Group ,,100232-106 
DFID,DFID,12/09/2012,Corporate Travel Provider ,"1,557",Air fares ,Top Management Group ,,100232-108 
DFID,DFID,12/09/2012,Corporate Travel Provider ,"2,140",Air fares ,Top Management Group ,,100232-108 
DFID,DFID,12/09/2012,Corporate Travel Provider ,"2,930",Air fares ,Top Management Group ,,100232-105 
DFID,DFID,13/09/2012,Foreign & Commonwealth Office ,"1,409",Hotels - Accommodation only ,Top Management Group ,,100232-105 
DFID,DFID,03/09/2012,Pilgrims Group ,630,Training - Travel & Subsistence ,West and Southern Africa ,,101622-101 
DFID,DFID,03/09/2012,Pilgrims Group ,660,Training - Travel & Subsistence ,West and Southern Africa ,,101622-101 
DFID,DFID,03/09/2012,Pilgrims Group ,810,Training - Course Fees ,West and Southern Africa ,,101622-101 
DFID,DFID,03/09/2012,Pilgrims Group ,"2,421",Training - Course Fees ,West and Southern Africa ,,101622-101 
DFID,DFID,03/09/2012,Horizon Interlinks Global Resources Ltd ,"5,075",Oil - Other Utilities ,West and Southern Africa ,,101622-103 
DFID,DFID,03/09/2012,Broll Property Management ,"6,872",Operating Lease rental of buildings ,West and Southern Africa ,,100220-101 
DFID,DFID,03/09/2012,Broll Property Management ,"10,308",Operating Lease rental of buildings ,West and Southern Africa ,,101631-101 
DFID,DFID,03/09/2012,Urban Consulting ,"10,907",Technical and Advisory Services ,West and Southern Africa ,,101610-101 
DFID,DFID,03/09/2012,KPMG Auditores e Consultores SA ,"71,304",Technical and Advisory Services ,West and Southern Africa ,,103993-101 
DFID,DFID,03/09/2012,Supplier Name withheld ,"98,019",Secure Staff Accomodation,West and Southern Africa ,Secure staff accommodation costs - 3 years rental (July 2012-2015) Ghana,101613-101 
DFID,DFID,03/09/2012,HLSP LIMITED ,"108,430",Technical and Advisory Services ,West and Southern Africa ,,202696-102 
DFID,DFID,03/09/2012,Southern African Development Community Secretariat ,"222,050",Aid Programme - Voluntary contributions ,West and Southern Africa ,,202541-103 
DFID,DFID,03/09/2012,FinMark  TRUST ,"255,557",Aid Programme - Accountable Grant Payments ,West and Southern Africa ,,113971-101 
DFID,DFID,03/09/2012,UNDP CONTRIBUTIONS GBP ,"1,000,000",Aid Programme - Core contributions ,West and Southern Africa ,,114366-101 
DFID,DFID,04/09/2012,Xerox ,731,Computer hardware maintenance ,West and Southern Africa ,,100152-101 
DFID,DFID,04/09/2012,Xerox ,969,Computer hardware maintenance ,West and Southern Africa ,,101622-101 
DFID,DFID,04/09/2012,Maria von Wogau -Consultoria ,"2,519",Technical and Advisory Services ,West and Southern Africa ,,104038-101 
DFID,DFID,04/09/2012,Leonardo Garrido (GBP) ,"3,397",Technical and Advisory Services ,West and Southern Africa ,,203393-101 
DFID,DFID,04/09/2012,RE-ACTION ,"74,022",Technical and Advisory Services ,West and Southern Africa ,,200546-101 
DFID,DFID,05/09/2012,Zimpest ,592,Repairs  Maint  Alter - Property & Constrct. Services ,West and Southern Africa ,,101638-103 
DFID,DFID,05/09/2012,Supplier Name withheld ,"1,158",Hotels - Accommodation only ,West and Southern Africa ,,100152-109 
DFID,DFID,05/09/2012,ELTEKON SATELLITE ,"1,723",Data Network -Satellite ,West and Southern Africa ,,101638-104 
DFID,DFID,05/09/2012,Supplier Name withheld ,"1,906",Hotels - Accommodation only ,West and Southern Africa ,,114073-101 
DFID,DFID,05/09/2012,GreyStone Park Electrical ,"2,997",Repairs  Maint  Alter - Property & Constrct. Services ,West and Southern Africa ,,101638-103 
DFID,DFID,05/09/2012,GreyStone Park Electrical ,"2,998",Repairs  Maint  Alter - Property & Constrct. Services ,West and Southern Africa ,,101638-103 
DFID,DFID,05/09/2012,Pown Engineering ,"3,863",Repairs  Maint  Alter - Property & Constrct. Services ,West and Southern Africa ,,101638-103 
DFID,DFID,05/09/2012,Dr Sithabiso Gandure ,"3,889",Technical and Advisory Services ,West and Southern Africa ,,113871-137 
DFID,DFID,05/09/2012,Business Furniture Solutions ,"6,170",Furniture & Fittings ,West and Southern Africa ,,100221-106 
DFID,DFID,05/09/2012,MJB Electrical Pvt Ltd ,"6,412",Repairs  Maint  Alter - Property & Constrct. Services ,West and Southern Africa ,,101638-103 
DFID,DFID,05/09/2012,Crown Agents Bank - Malawi,"10,207",Technical and Advisory Services ,West and Southern Africa ,,200469-110 
DFID,DFID,05/09/2012,Supplier Name withheld ,"11,149",Other rentals ,West and Southern Africa ,,100152-101 
DFID,DFID,05/09/2012,META-DEVELOPMENT LLP ,"11,291",Technical and Advisory Services ,West and Southern Africa ,,113871-137 
DFID,DFID,05/09/2012,PricewaterhouseCoopers (Ghana) Limited ,"13,131",Auditors Remuneration & Expenses - Cash ,West and Southern Africa ,,201590-103 
DFID,DFID,05/09/2012,Supplier Name withheld ,"14,779",Other rentals ,West and Southern Africa ,,101622-101 
DFID,DFID,05/09/2012,Crown Agents Bank - Malawi,"15,344",Technical and Advisory Services ,West and Southern Africa ,,200469-110 
DFID,DFID,05/09/2012,Supplier Name withheld ,"15,348",Hotels - Accommodation only ,West and Southern Africa ,,101622-101 
DFID,DFID,05/09/2012,ADAM SMITH INTERNATIONAL ,"16,969",Technical and Advisory Services ,West and Southern Africa ,,201139-101 
DFID,DFID,05/09/2012,LTS International Ltd. ,"32,484",Technical and Advisory Services ,West and Southern Africa ,,201196-108 
DFID,DFID,05/09/2012,ITAD LTD ,"47,374",Technical and Advisory Services ,West and Southern Africa ,,202482-102 
DFID,DFID,05/09/2012,ADAM SMITH INTERNATIONAL ,"120,419",Technical and Advisory Services ,West and Southern Africa ,,201139-101 
DFID,DFID,06/09/2012,ANARKALY LDA ,536,Training - Course Fees ,West and Southern Africa ,,202462-104 
DFID,DFID,06/09/2012,Conote Services Ltd ,588,Facilities Management payments ,West and Southern Africa ,,101622-101 
DFID,DFID,06/09/2012,Bytes and Pieces ,608,Computer hardware maintenance ,West and Southern Africa ,,101620-101 
DFID,DFID,06/09/2012,TOYOTA MALAWI ,718,Vehicle Repairs & Maintenance ,West and Southern Africa ,,101618-101 
DFID,DFID,06/09/2012,Wilson Kwadjo Klu ,"1,403",Facilities Management payments ,West and Southern Africa ,,101613-101 
DFID,DFID,06/09/2012,Pilgrims Group ,"2,221",Training - Course Fees ,West and Southern Africa ,,101622-101 
DFID,DFID,06/09/2012,Supplier Name withheld ,"20,781",Secure Staff Accomodation,West and Southern Africa ,,101629-101 
DFID,DFID,06/09/2012,ADAM SMITH INTERNATIONAL  LTD ,"266,560",Technical and Advisory Services ,West and Southern Africa ,,114073-101 
DFID,DFID,06/09/2012,MALARIA CONSORTIUM ,"637,336",Technical and Advisory Services ,West and Southern Africa ,,104223-101 
DFID,DFID,07/09/2012,Conote Services Ltd ,658,Facilities Management payments ,West and Southern Africa ,,101622-101 
DFID,DFID,07/09/2012,Conote Services Ltd ,"1,389",Facilities Management payments ,West and Southern Africa ,,101622-101 
DFID,DFID,07/09/2012,Michael Jenrich ,"1,867",Technical and Advisory Services ,West and Southern Africa ,,113871-137 
DFID,DFID,07/09/2012,Sparklean Services Nig Ltd ,"2,085",Facilities Management payments ,West and Southern Africa ,,101622-101 
DFID,DFID,07/09/2012,Dr Sophie Witter ,"2,546",Technical and Advisory Services ,West and Southern Africa ,,201853-102 
DFID,DFID,07/09/2012,KINNARPS (UK) LIMITED ,"2,762",Furniture & Fittings ,West and Southern Africa ,,100144-101 
DFID,DFID,07/09/2012,PKF Professional Services ,"4,544",Technical and Advisory Services ,West and Southern Africa ,,100152-101 
DFID,DFID,07/09/2012,PKF Professional Services ,"4,544",Technical and Advisory Services ,West and Southern Africa ,,101622-101 
DFID,DFID,07/09/2012,HTSPE LTD ,"4,907",Technical and Advisory Services ,West and Southern Africa ,,202541-105 
DFID,DFID,07/09/2012,KINNARPS (UK) LIMITED ,"6,763",Furniture & Fittings ,West and Southern Africa ,,101618-101 
DFID,DFID,07/09/2012,SOCIAL DEVELOPMENT DIRECT LTD ,"34,750",Technical and Advisory Services ,West and Southern Africa ,,200670-103 
DFID,DFID,07/09/2012,RESTLESS DEVELOPMENT ,"157,865",Aid Programme - Accountable Grant Payments ,West and Southern Africa ,,113436-102 
DFID,DFID,07/09/2012,ADAM SMITH INTERNATIONAL  LTD ,"334,713",Technical and Advisory Services ,West and Southern Africa ,,104190-102 
DFID,DFID,07/09/2012,HEALTH PARTNERS INTERNATIONAL ,"424,957",Technical and Advisory Services ,West and Southern Africa ,,104227-102 
DFID,DFID,10/09/2012,UNDP (USD) ACCOUNT ,"306,276",Aid Programme - Trust Funds contributions ,West and Southern Africa ,,202253-101 
DFID,DFID,11/09/2012,FOREIGN AND COMMONWEALTH OFFICE (FCO) ,534,Vehicle Petrol & Oil ,West and Southern Africa ,,100152-106 
DFID,DFID,11/09/2012,Power Holding co of Nigeria ,538,Oil - Other Utilities ,West and Southern Africa ,,100152-101 
DFID,DFID,11/09/2012,Power Holding co of Nigeria ,546,Oil - Other Utilities ,West and Southern Africa ,,101622-101 
DFID,DFID,11/09/2012,FCO SERVICES ,601,Office Supplies ,West and Southern Africa ,,100068-101 
DFID,DFID,11/09/2012,Yeane Enterprises ,611,Cleaning Costs ,West and Southern Africa ,,101629-101 
DFID,DFID,11/09/2012,Hema Trading ,656,Facilities Management payments ,West and Southern Africa ,,101629-101 
DFID,DFID,11/09/2012,Power Holding co of Nigeria ,708,Oil - Other Utilities ,West and Southern Africa ,,101622-101 
DFID,DFID,11/09/2012,Power Holding co of Nigeria ,713,Oil - Other Utilities ,West and Southern Africa ,,101622-101 
DFID,DFID,11/09/2012,Format Services  EI ,736,Printer Consumables ,West and Southern Africa ,,101620-101 
DFID,DFID,11/09/2012,British Airways Ltd ,760,Training - Travel & Subsistence ,West and Southern Africa ,,101637-101 
DFID,DFID,11/09/2012,Komawara ,813,Water charges ,West and Southern Africa ,,101638-103 
DFID,DFID,11/09/2012,Mukwa Travel and Tours ,852,Training - Travel & Subsistence ,West and Southern Africa ,,101637-101 
DFID,DFID,11/09/2012,Power Holding co of Nigeria ,903,Oil - Other Utilities ,West and Southern Africa ,,101622-101 
DFID,DFID,11/09/2012,Ulendo Safaris ,"1,075",Training - Travel & Subsistence ,West and Southern Africa ,,101618-101 
DFID,DFID,11/09/2012,Dulux Limited ,"1,094",Other Building Costs ,West and Southern Africa ,,101618-101 
DFID,DFID,11/09/2012,COMMUNICAID GRP LIMITED ,"1,195",Training - Travel & Subsistence ,West and Southern Africa ,,101610-101 
DFID,DFID,11/09/2012,NP (SL) Ltd ,"1,492",Generators & spares ,West and Southern Africa ,,100214-101 
DFID,DFID,11/09/2012,NP (SL) Ltd ,"1,492",Generators & spares ,West and Southern Africa ,,101629-101 
DFID,DFID,11/09/2012,NP (SL) Ltd ,"1,492",Generators & spares ,West and Southern Africa ,,101629-101 
DFID,DFID,11/09/2012,NP (SL) Ltd ,"1,498",Generators & spares ,West and Southern Africa ,,101629-101 
DFID,DFID,11/09/2012,FCO SERVICES ,"1,558",Office Supplies ,West and Southern Africa ,,101620-101 
DFID,DFID,11/09/2012,FCO SERVICES ,"1,567",Office Equipment - Purchases ,West and Southern Africa ,,100068-101 
DFID,DFID,11/09/2012,Foreign & Commonwealth Office ,"1,703",Secure Staff Accomodation,West and Southern Africa ,,101631-101 
DFID,DFID,11/09/2012,Cresta Golfview Hotel Lusaka ,"1,813",Conferences  Seminars & Meeting/Event Resource ,West and Southern Africa ,,201309-102 
DFID,DFID,11/09/2012,Aluminium Systems Limited ,"1,851",Other Building Costs ,West and Southern Africa ,,101618-101 
DFID,DFID,11/09/2012,Foreign & Commonwealth Office ,"2,031",Cleaning Costs ,West and Southern Africa ,,101631-101 
DFID,DFID,11/09/2012,CROWN RELOCATIONS  UK ,"2,263",Relocation costs ,West and Southern Africa ,,101613-101 
DFID,DFID,11/09/2012,DK INTERNATIONAL ,"3,588",Office Equipment - Purchases ,West and Southern Africa ,,100254-101 
DFID,DFID,11/09/2012,Ivan Wilson ,"3,750",Operating Lease rental of buildings ,West and Southern Africa ,,101638-103 
DFID,DFID,11/09/2012,KINNARPS (UK) LIMITED ,"4,223",Furniture & Fittings ,West and Southern Africa ,,100144-101 
DFID,DFID,11/09/2012,Foreign & Commonwealth Office ,"5,185",Technical and Advisory Services ,West and Southern Africa ,,201433-102 
DFID,DFID,11/09/2012,Intercasa ,"5,321",Repairs  Maint  Alter - Property & Constrct. Services ,West and Southern Africa ,,101620-101 
DFID,DFID,11/09/2012,Foreign & Commonwealth Office ,"5,865",Technical and Advisory Services ,West and Southern Africa ,,201433-102 
DFID,DFID,11/09/2012,Foreign & Commonwealth Office ,"6,148",Technical and Advisory Services ,West and Southern Africa ,,100153-101 
DFID,DFID,11/09/2012,MJB Electrical Pvt Ltd ,"6,364",Repairs  Maint  Alter - Property & Constrct. Services ,West and Southern Africa ,,101638-103 
DFID,DFID,11/09/2012,Foreign & Commonwealth Office ,"6,640",Aid Programme - Joint programme contribution ,West and Southern Africa ,,202477-106 
DFID,DFID,11/09/2012,Foreign & Commonwealth Office ,"7,923",Technical and Advisory Services ,West and Southern Africa ,,100153-101 
DFID,DFID,11/09/2012,KINNARPS (UK) LIMITED ,"10,339",Furniture & Fittings ,West and Southern Africa ,,101618-101 
DFID,DFID,11/09/2012,Crown Agents Bank - Sierra Leone and Liberia ,"12,970",Technical and Advisory Services ,West and Southern Africa ,,202183-101 
DFID,DFID,11/09/2012,Foreign & Commonwealth Office ,"15,016",Technical and Advisory Services ,West and Southern Africa ,,104223-102 
DFID,DFID,11/09/2012,Bassel & Alaa Enterprise ,"23,883",Generators & spares ,West and Southern Africa ,,100215-101 
DFID,DFID,11/09/2012,New Horizon Printing Press ,"32,400",Print Services ,West and Southern Africa ,,201978-102 
DFID,DFID,11/09/2012,COFFEY INTERNATIONAL DEVELOPMENT LTD ,"120,265",Technical and Advisory Services ,West and Southern Africa ,,104190-103 
DFID,DFID,11/09/2012,THE WORLD BANK (IBRD ACCOUNT) ,"199,719",Aid Programme - Joint programme contribution ,West and Southern Africa ,,201584-107 
DFID,DFID,11/09/2012,US Agency for Int'l Dev ,"1,806,974",Aid Programme - Humanitarian Material Relief Assistance and Services ,West and Southern Africa ,,203019-102 
DFID,DFID,12/09/2012,CROWN RELOCATIONS  UK ,512,Relocation costs ,West and Southern Africa ,,100256-101 
DFID,DFID,12/09/2012,MTN (Zambia) Limited ,521,Telephone Usage & services ,West and Southern Africa ,,101637-101 
DFID,DFID,12/09/2012,Corporate Travel Provider ,536,Air fares ,West and Southern Africa ,,100189-101 
DFID,DFID,12/09/2012,Supplier Name withheld ,539,Hotels - Accommodation only ,West and Southern Africa ,,100082-101 
DFID,DFID,12/09/2012,Pilgrims Group ,540,Training - Travel & Subsistence ,West and Southern Africa ,,101622-101 
DFID,DFID,12/09/2012,Corporate Travel Provider ,600,Air fares ,West and Southern Africa ,,101637-101 
DFID,DFID,12/09/2012,Supplier Name withheld ,645,Air fares ,West and Southern Africa ,,201433-103 
DFID,DFID,12/09/2012,Supplier Name withheld ,651,Air fares ,West and Southern Africa ,,101622-101 
DFID,DFID,12/09/2012,ECONET ,671,Telephone Usage & services ,West and Southern Africa ,,101638-104 
DFID,DFID,12/09/2012,Supplier Name withheld ,678,Air fares ,West and Southern Africa ,,101622-101 
DFID,DFID,12/09/2012,Solua Lda ,755,Repairs  Maint  Alter - Property & Constrct. Services ,West and Southern Africa ,,101620-101 
DFID,DFID,12/09/2012,Corporate Travel Provider ,850,Air fares ,West and Southern Africa ,,101610-101 
DFID,DFID,12/09/2012,Corporate Travel Provider ,874,Air fares ,West and Southern Africa ,,101631-101 
DFID,DFID,12/09/2012,FINANCIAL TIMES LTD ,995,Conferences  Seminars & Meeting/Event Resource ,West and Southern Africa ,,101631-101 
DFID,DFID,12/09/2012,Rapid  Aluminium Ltd ,"1,095",Other Building Costs ,West and Southern Africa ,,203001-104 
DFID,DFID,12/09/2012,Supplier Name withheld ,"1,106",Air fares ,West and Southern Africa ,,201433-103 
DFID,DFID,12/09/2012,Corporate Travel Provider ,"1,164",Air fares ,West and Southern Africa ,,101610-101 
DFID,DFID,12/09/2012,Corporate Travel Provider ,"1,187",Air fares ,West and Southern Africa ,,202482-103 
DFID,DFID,12/09/2012,Pilgrims Group ,"1,215",Training - Course Fees ,West and Southern Africa ,,101622-101 
DFID,DFID,12/09/2012,PATRICK JAMES NOLEN ,"1,350",Technical and Advisory Services ,West and Southern Africa ,,202482-104 
DFID,DFID,12/09/2012,Corporate Travel Provider ,"1,368",Air fares ,West and Southern Africa ,,101629-101 
DFID,DFID,12/09/2012,Corporate Travel Provider ,"1,368",Air fares ,West and Southern Africa ,,101629-101 
DFID,DFID,12/09/2012, FCO SERVICES ,"1,484",Courier & Bag Services ,West and Southern Africa ,,101638-105 
DFID,DFID,12/09/2012,Corporate Travel Provider ,"1,712",Air fares ,West and Southern Africa ,,203393-101 
DFID,DFID,12/09/2012,Corporate Travel Provider ,"2,001",Air fares ,West and Southern Africa ,,100189-101 
DFID,DFID,12/09/2012,Corporate Travel Provider ,"2,001",Air fares ,West and Southern Africa ,,100189-101 
DFID,DFID,12/09/2012,CROWN RELOCATIONS  UK ,"2,004",Relocation costs ,West and Southern Africa ,,101618-101 
DFID,DFID,12/09/2012,CROWN RELOCATIONS  UK ,"2,258",Storage & Distribution costs ,West and Southern Africa ,,101610-101 
DFID,DFID,12/09/2012,CROWN RELOCATIONS  UK ,"2,611",Relocation costs ,West and Southern Africa ,,100256-101 
DFID,DFID,12/09/2012,Cresta Golfview Hotel Lusaka ,"2,734",Conferences  Seminars & Meeting/Event Resource ,West and Southern Africa ,,201309-102 
DFID,DFID,12/09/2012,Cresta Golfview Hotel Lusaka ,"6,800",Conferences  Seminars & Meeting/Event Resource ,West and Southern Africa ,,201309-102 
DFID,DFID,12/09/2012,FCO SERVICES ,"7,940",Office Equipment - Purchases ,West and Southern Africa ,,101618-101 
DFID,DFID,12/09/2012,Malawi Vulnerability Assessment Committee ,"118,573",Aid Programme - Other Financial Aid to Government ,West and Southern Africa ,,201196-106 
DFID,DFID,13/09/2012,Pekolyn Tech. Services ,502,Facilities Management payments ,West and Southern Africa ,,101622-101 
DFID,DFID,13/09/2012,Roma House ,521,Conferences  Seminars & Meeting/Event Resource ,West and Southern Africa ,,101637-101 
DFID,DFID,13/09/2012,Supplier Name withheld ,551,Hotels - Accommodation only ,West and Southern Africa ,,100152-101 
DFID,DFID,13/09/2012,Foreign & Commonwealth Office ,584,Aid Programme - Joint programme contribution ,West and Southern Africa ,,202477-106 
DFID,DFID,13/09/2012,Foreign & Commonwealth Office ,591,Repairs  Maint  Alter - Property & Constrct. Services ,West and Southern Africa ,,101638-103 
DFID,DFID,13/09/2012,Foreign & Commonwealth Office ,690,Furniture & Fittings ,West and Southern Africa ,,101631-101 
DFID,DFID,13/09/2012,Hotel Barmoi ,716,Hotels - Accommodation only ,West and Southern Africa ,,101629-101 
DFID,DFID,13/09/2012,Supplier Name withheld ,730,Hotels - Accommodation only ,West and Southern Africa ,,101622-101 
DFID,DFID,13/09/2012,British  High Commission Abuja ,996,Courier & Bag Services ,West and Southern Africa ,,100152-101 
DFID,DFID,13/09/2012,Pekolyn Tech. Services ,"1,128",Facilities Management payments ,West and Southern Africa ,,101622-101 
DFID,DFID,13/09/2012,Foreign & Commonwealth Office ,"1,252",Cleaning Costs ,West and Southern Africa ,,101631-101 
DFID,DFID,13/09/2012,British  High Commission Abuja ,"1,321",Courier & Bag Services ,West and Southern Africa ,,101622-101 
DFID,DFID,13/09/2012,Pekolyn Tech. Services ,"1,420",Facilities Management payments ,West and Southern Africa ,,101622-101 
DFID,DFID,13/09/2012,NP (SL) Ltd ,"1,484",Generators & spares ,West and Southern Africa ,,101629-101 
DFID,DFID,13/09/2012,NP (SL) Ltd ,"1,484",Generators & spares ,West and Southern Africa ,,101629-101 
DFID,DFID,13/09/2012,Foreign & Commonwealth Office ,"2,039",Aid Programme - Joint programme contribution ,West and Southern Africa ,,202477-106 
DFID,DFID,13/09/2012,Foreign & Commonwealth Office ,"3,123",Cleaning Costs ,West and Southern Africa ,,101631-101 
DFID,DFID,13/09/2012,Foreign & Commonwealth Office ,"3,876",Furniture & Fittings ,West and Southern Africa ,,101631-101 
DFID,DFID,13/09/2012,Foreign & Commonwealth Office ,"4,457",Computer hardware maintenance ,West and Southern Africa ,,101631-101 
DFID,DFID,13/09/2012,HLSP LTD ,"4,464",Technical and Advisory Services ,West and Southern Africa ,,201927-103 
DFID,DFID,13/09/2012,Foreign & Commonwealth Office ,"7,997",Aid Programme - Joint programme contribution ,West and Southern Africa ,,202477-106 
DFID,DFID,13/09/2012,CHEMONICS ,"9,503",Technical and Advisory Services ,West and Southern Africa ,,104157-101 
DFID,DFID,13/09/2012,Foreign & Commonwealth Office ,"14,911",Aid Programme - Joint programme contribution ,West and Southern Africa ,,202477-106 
DFID,DFID,13/09/2012,University of Cape Town ,"406,832",Aid Programme - Accountable Grant Payments ,West and Southern Africa ,,104855-105 
DFID,DFID,13/09/2012,COMESA (GBP) ,"480,244",Aid Programme - Voluntary contributions ,West and Southern Africa ,,201791-106 
DFID,DFID,14/09/2012,Alisa Hotel North Ridge ,516,Conferences  Seminars & Meeting/Event Resource ,West and Southern Africa ,,101638-101 
DFID,DFID,14/09/2012,Foreign & Commonwealth Office ,600,Aid Programme - Joint programme contribution ,West and Southern Africa ,,202477-106 
DFID,DFID,14/09/2012,Foreign & Commonwealth Office ,787,Aid Programme - Joint programme contribution ,West and Southern Africa ,,202477-106 
DFID,DFID,14/09/2012,Foreign & Commonwealth Office ,843,Aid Programme - Joint programme contribution ,West and Southern Africa ,,202477-106 
DFID,DFID,14/09/2012,Foreign & Commonwealth Office ,861,Aid Programme - Joint programme contribution ,West and Southern Africa ,,202477-106 
DFID,DFID,14/09/2012,Foreign & Commonwealth Office ,885,Aid Programme - Joint programme contribution ,West and Southern Africa ,,202477-106 
DFID,DFID,14/09/2012,UNHAS - WFP (DRC) ,931,Air fares ,West and Southern Africa ,,101610-101 
DFID,DFID,14/09/2012,Foreign & Commonwealth Office ,"1,021",Cleaning Costs ,West and Southern Africa ,,101631-101 
DFID,DFID,14/09/2012,Foreign & Commonwealth Office ,"1,145",Aid Programme - Joint programme contribution ,West and Southern Africa ,,202477-106 
DFID,DFID,14/09/2012,Kinshasa Language Consultants ,"1,324",Training - Travel & Subsistence ,West and Southern Africa ,,101610-101 
DFID,DFID,14/09/2012,FCO ,"1,817",Vehicle Petrol & Oil ,West and Southern Africa ,,100068-101 
DFID,DFID,14/09/2012,Foreign & Commonwealth Office ,"1,881",Aid Programme - Joint programme contribution ,West and Southern Africa ,,202477-106 
DFID,DFID,14/09/2012,Foreign & Commonwealth Office ,"1,946",Aid Programme - Joint programme contribution ,West and Southern Africa ,,202477-106 
DFID,DFID,14/09/2012,Foreign & Commonwealth Office ,"2,252",Aid Programme - Joint programme contribution ,West and Southern Africa ,,202477-106 
DFID,DFID,14/09/2012,Paul Spivey ,"2,577",Technical and Advisory Services ,West and Southern Africa ,,200546-101 
DFID,DFID,14/09/2012,Papeterie Alpha ,"2,814",Office Supplies ,West and Southern Africa ,,100068-101 
DFID,DFID,14/09/2012,Foreign & Commonwealth Office ,"3,107",Aid Programme - Joint programme contribution ,West and Southern Africa ,,202477-106 
DFID,DFID,14/09/2012,Crown Agents Bank - Nigeria,"3,203",Office Equipment - Purchases ,West and Southern Africa ,,114161-102 
DFID,DFID,14/09/2012,Supplier Name withheld ,"4,604",Secure Staff Accomodation,West and Southern Africa ,,101637-101 
DFID,DFID,14/09/2012,Foreign & Commonwealth Office ,"4,997",Aid Programme - Joint programme contribution ,West and Southern Africa ,,202477-106 
DFID,DFID,14/09/2012,BRITISH COUNCIL ,"18,973",Aid Programme - Accountable Grant Payments ,West and Southern Africa ,,104174-103 
DFID,DFID,14/09/2012,PLAN INTERNATIONAL UK ,"64,283",Aid Programme - Accountable Grant Payments ,West and Southern Africa ,,113254-103 
DFID,DFID,14/09/2012,COFFEY INTERNATIONAL DEVELOPMENT LTD ,"102,528",Technical and Advisory Services ,West and Southern Africa ,,104190-109 
DFID,DFID,14/09/2012,OXFAM ,"259,561",Aid Programme - Accountable Grant Payments ,West and Southern Africa ,,201460-101 
DFID,DFID,14/09/2012,ADAM SMITH INTERNATIONAL  LTD ,"464,061",Technical and Advisory Services ,West and Southern Africa ,,201433-102 
DFID,DFID,14/09/2012,ADAM SMITH INTERNATIONAL  LTD ,"1,365,228",Technical and Advisory Services ,West and Southern Africa ,,201433-102 
DFID,DFID,17/09/2012,EAST OF ENGLAND AMBULANCE SERVICE NH ,506,Training Providers/Facilitation Services ,West and Southern Africa ,,100189-101 
DFID,DFID,17/09/2012,Crown Agents Bank - Nigeria,575,Technical and Advisory Services ,West and Southern Africa ,,114161-102 
DFID,DFID,17/09/2012,Recipient name withheld ,577,Repairs  Maint  Alter - Property & Constrct. Services ,West and Southern Africa ,,101620-101 
DFID,DFID,17/09/2012,Inter rent ,"1,661",Other passenger transport ,West and Southern Africa ,,104038-101 
DFID,DFID,17/09/2012,AKSEL IMMO ,"1,896",Repairs  Maint  Alter - Property & Constrct. Services ,West and Southern Africa ,,101610-101 
DFID,DFID,17/09/2012,Leima - Impressoes Originais  Lda ,"8,259",Print Services ,West and Southern Africa ,,103993-104 
DFID,DFID,17/09/2012,SOAS  University of London  ,"8,659",Technical and Advisory Services ,West and Southern Africa ,,113355-101 
DFID,DFID,17/09/2012,Crown Agents Bank - Nigeria,"19,818",Office Equipment - Purchases ,West and Southern Africa ,,114161-102 
DFID,DFID,17/09/2012,CONCERN WORLDWIDE ,"27,210",Aid Programme - Accountable Grant Payments ,West and Southern Africa ,,203445-102 
DFID,DFID,17/09/2012,Crown Agents Bank - Malawi,"28,410",Technical and Advisory Services ,West and Southern Africa ,,200469-110 
DFID,DFID,17/09/2012,GRM INTERNATIONAL LTD ,"57,016",Technical and Advisory Services ,West and Southern Africa ,,202370-102 
DFID,DFID,17/09/2012,GRM INTERNATIONAL LTD ,"109,928",Technical and Advisory Services ,West and Southern Africa ,,104190-104 
DFID,DFID,17/09/2012,Crown Agents Bank - Malawi,"123,165",Technical and Advisory Services ,West and Southern Africa ,,200469-110 
DFID,DFID,17/09/2012,GRM INTERNATIONAL LTD ,"196,028",Technical and Advisory Services ,West and Southern Africa ,,202098-101 
DFID,DFID,18/09/2012,Foreign & Commonwealth Office ,568,Repairs  Maint  Alter - Property & Constrct. Services ,West and Southern Africa ,,101638-103 
DFID,DFID,18/09/2012,Foreign & Commonwealth Office ,742,Cleaning Costs ,West and Southern Africa ,,101631-101 
DFID,DFID,18/09/2012,Foreign & Commonwealth Office ,793,Vehicle Purchase Costs ,West and Southern Africa ,,100153-101 
DFID,DFID,18/09/2012,Supplier Name withheld ,852,Hotels - Accommodation only ,West and Southern Africa ,,101622-103 
DFID,DFID,18/09/2012,Blantyre Newspapers Ltd. ,855,Recruitment costs ,West and Southern Africa ,,100144-101 
DFID,DFID,18/09/2012,CRANE 4 HIRE ,925,Generators & spares ,West and Southern Africa ,,101638-103 
DFID,DFID,18/09/2012,Foreign & Commonwealth Office ,"1,722",Aid Programme - Joint programme contribution ,West and Southern Africa ,,202477-106 
DFID,DFID,18/09/2012,Foreign & Commonwealth Office ,"5,874",Vehicle Purchase Costs ,West and Southern Africa ,,100153-101 
DFID,DFID,18/09/2012,Sustanable Energy Africa ,"13,399",Technical and Advisory Services ,West and Southern Africa ,,202554-101 
DFID,DFID,18/09/2012,LAURA ANSELMI ,"14,126",Technical and Advisory Services ,West and Southern Africa ,,202462-104 
DFID,DFID,18/09/2012,Foreign & Commonwealth Office ,"18,961",Secure Staff Accomodation,West and Southern Africa ,,101631-101 
DFID,DFID,18/09/2012,Abt Associates ,"209,708",Technical and Advisory Services ,West and Southern Africa ,,202342-102 
DFID,DFID,18/09/2012,HTSPE LTD ,"430,023",Technical and Advisory Services ,West and Southern Africa ,,200681-101 
DFID,DFID,18/09/2012,HTSPE LTD ,"629,568",Technical and Advisory Services ,West and Southern Africa ,,104189-101 
DFID,DFID,18/09/2012,GIZ Botswana ,"1,300,000",Aid Programme - Joint programme contribution ,West and Southern Africa ,,202539-103 
DFID,DFID,19/09/2012,Sparklean Services Nig Ltd ,541,Facilities Management payments ,West and Southern Africa ,,101622-101 
DFID,DFID,19/09/2012,TEL ONE ,583,Telephone Usage & services ,West and Southern Africa ,,101638-104 
DFID,DFID,19/09/2012,Mr Eze Samson ,"1,071",Facilities Management payments ,West and Southern Africa ,,101622-101 
DFID,DFID,19/09/2012,Mr Eze Samson ,"1,380",Facilities Management payments ,West and Southern Africa ,,101622-101 
DFID,DFID,19/09/2012,FOREIGN AND COMMONWEALTH OFFICE (FCO) ,"1,742",Vehicle Petrol & Oil ,West and Southern Africa ,,100152-106 
DFID,DFID,19/09/2012,British Airways PLC ,"3,529",Training - Travel & Subsistence ,West and Southern Africa ,,101622-101 
DFID,DFID,19/09/2012,CarashiConsult ,"11,107",Technical and Advisory Services ,West and Southern Africa ,,200546-101 
DFID,DFID,19/09/2012,XD Links Nigeria ,"13,658",other information and communication technologies ,West and Southern Africa ,,100152-101 
DFID,DFID,19/09/2012,GRM INTERNATIONAL LTD ,"66,810",Technical and Advisory Services ,West and Southern Africa ,,202352-102 
DFID,DFID,19/09/2012,GRM INTERNATIONAL LTD ,"344,637",Technical and Advisory Services ,West and Southern Africa ,,114230-101 
DFID,DFID,19/09/2012,Cambridge  Education Limited ,"741,349",Technical and Advisory Services ,West and Southern Africa ,,104200-101 
DFID,DFID,19/09/2012,Liberia Health Sector Pool Fund Grant ,"5,000,000",Aid Programme - Pooled/Basket funding ,West and Southern Africa ,,202713-101 
DFID,DFID,19/09/2012,Mozambique Poverty Reduction Budget Support Programme ,"12,000,000",Aid Programme - Poverty Reduction Budget Support ,West and Southern Africa ,,103986-101 
DFID,DFID,20/09/2012,Radisson Royal Hotel Dubai ,601,Training - Travel & Subsistence ,West and Southern Africa ,,101638-101 
DFID,DFID,20/09/2012,MTN Nigeria Communications Ltd ,636,Telephone Usage & services ,West and Southern Africa ,,100152-101 
DFID,DFID,20/09/2012,MTN Nigeria Communications Ltd ,636,Telephone Usage & services ,West and Southern Africa ,,114206-104 
DFID,DFID,20/09/2012,MTN Nigeria Communications Ltd ,636,Telephone Usage & services ,West and Southern Africa ,,104200-103 
DFID,DFID,20/09/2012,MTN Nigeria Communications Ltd ,636,Telephone Usage & services ,West and Southern Africa ,,104200-103 
DFID,DFID,20/09/2012,MTN Nigeria Communications Ltd ,636,Technical and Advisory Services ,West and Southern Africa ,,104190-101 
DFID,DFID,20/09/2012,MTN Nigeria Communications Ltd ,636,Telephone Usage & services ,West and Southern Africa ,,201433-103 
DFID,DFID,20/09/2012,COMMUNICAID GRP LIMITED ,"1,195",Training - Travel & Subsistence ,West and Southern Africa ,,101610-101 
DFID,DFID,20/09/2012,INSIGHTS LEARNING & DEVELOPMENT LTD ,"1,926",Training - Course Fees ,West and Southern Africa ,,101637-101 
DFID,DFID,20/09/2012,Lexterra  Lda ,"2,519",Technical and Advisory Services ,West and Southern Africa ,,103993-104 
DFID,DFID,20/09/2012,Lexterra  Lda ,"2,519",Technical and Advisory Services ,West and Southern Africa ,,103993-104 
DFID,DFID,20/09/2012,INSIGHTS LEARNING & DEVELOPMENT LTD ,"2,930",Training - Course Fees ,West and Southern Africa ,,100254-101 
DFID,DFID,20/09/2012,Lexterra  Lda ,"4,249",Legal costs ,West and Southern Africa ,,103993-104 
DFID,DFID,20/09/2012,Lexterra  Lda ,"4,249",Legal costs ,West and Southern Africa ,,103993-104 
DFID,DFID,20/09/2012,Virgin Atlantic ,"4,388",Air fares ,West and Southern Africa ,,101631-101 
DFID,DFID,20/09/2012,Soul City - South Africa ,"5,665",Technical and Advisory Services ,West and Southern Africa ,,113585-103 
DFID,DFID,20/09/2012,stegmann ,"5,692",Technical and Advisory Services ,West and Southern Africa ,,106059-102 
DFID,DFID,20/09/2012,Ben Shepherd ,"7,500",Technical and Advisory Services ,West and Southern Africa ,,202416-105 
DFID,DFID,20/09/2012,MTN Nigeria Communications Ltd ,"7,549",Telephone Usage & services ,West and Southern Africa ,,100152-101 
DFID,DFID,20/09/2012,MTN Nigeria Communications Ltd ,"10,007",Telephone Usage & services ,West and Southern Africa ,,101622-101 
DFID,DFID,20/09/2012,Supplier Name withheld ,"11,453",Secure Staff Accomodation,West and Southern Africa ,,101610-101 
DFID,DFID,20/09/2012,Supplier Name withheld ,"11,453",Secure Staff Accomodation,West and Southern Africa ,,101610-101 
DFID,DFID,20/09/2012,MOTT MACDONALD INTERNATIONAL ,"14,235",Technical and Advisory Services ,West and Southern Africa ,,200194-102 
DFID,DFID,20/09/2012,OXFORD POLICY MANAGEMENT ,"37,006",Technical and Advisory Services ,West and Southern Africa ,,201874-103 
DFID,DFID,20/09/2012,EFFECTIVE DEVELOPMENT GROUP (EDG) ,"73,549",Technical and Advisory Services ,West and Southern Africa ,,113961-105 
DFID,DFID,20/09/2012,ATOS CONSULTING LIMITED ,"244,604",Technical and Advisory Services ,West and Southern Africa ,,200452-101 
DFID,DFID,20/09/2012,DAI EUROPE LIMITED ,"257,349",Technical and Advisory Services ,West and Southern Africa ,,113961-104 
DFID,DFID,20/09/2012,Society for Family  Health ,"489,474",Technical and Advisory Services ,West and Southern Africa ,,114206-101 
DFID,DFID,21/09/2012,Pentamax ,528,Vehicle Repairs & Maintenance ,West and Southern Africa ,,101620-101 
DFID,DFID,21/09/2012,Telecomunicacoes de Mocambique ,776,Telephone Usage & services ,West and Southern Africa ,,101620-101 
DFID,DFID,21/09/2012,Adam Smith International USD ,"2,772",Training - Course Fees ,West and Southern Africa ,,101638-101 
DFID,DFID,21/09/2012,Alliance Zambia ,"3,102",Unanalysed/miscellaneous travel ,West and Southern Africa ,,202340-101 
DFID,DFID,21/09/2012,HLSP LIMITED ,"10,050",Technical and Advisory Services ,West and Southern Africa ,,114193-101 
DFID,DFID,21/09/2012,Supplier Name withheld ,"12,007",Secure Staff Accomodation,West and Southern Africa ,,101610-101 
DFID,DFID,21/09/2012,Supplier Name withheld ,"12,007",Secure Staff Accomodation,West and Southern Africa ,,101610-101 
DFID,DFID,21/09/2012,Supplier Name withheld ,"12,007",Secure Staff Accomodation,West and Southern Africa ,,101610-101 
DFID,DFID,21/09/2012,Supplier Name withheld ,"18,011",Secure Staff Accomodation,West and Southern Africa ,,101610-101 
DFID,DFID,21/09/2012,OXFORD POLICY MANAGEMENT ,"219,123",Technical and Advisory Services ,West and Southern Africa ,,200341-101 
DFID,DFID,21/09/2012,Cambridge  Education Limited ,"774,714",Technical and Advisory Services ,West and Southern Africa ,,104200-101 
DFID,DFID,22/09/2012,KPMG Auditores e Consultores SA ,"73,816",Technical and Advisory Services ,West and Southern Africa ,,103993-101 
DFID,DFID,24/09/2012,Fracham Company ,618,Facilities Management payments ,West and Southern Africa ,,101622-103 
DFID,DFID,24/09/2012,MTN Nigeria Communications Ltd ,903,Telephone Usage & services ,West and Southern Africa ,,100152-101 
DFID,DFID,24/09/2012,Sparklean Services Nig Ltd ,"1,043",Facilities Management payments ,West and Southern Africa ,,100152-101 
DFID,DFID,24/09/2012,MTN Nigeria Communications Ltd ,"1,197",Telephone Usage & services ,West and Southern Africa ,,101622-101 
DFID,DFID,24/09/2012,Fracham Company ,"1,262",Facilities Management payments ,West and Southern Africa ,,101622-101 
DFID,DFID,24/09/2012,Sparklean Services Nig Ltd ,"1,382",Facilities Management payments ,West and Southern Africa ,,101622-101 
DFID,DFID,24/09/2012,NP (SL) Ltd ,"1,574",Generators & spares ,West and Southern Africa ,,101629-101 
DFID,DFID,24/09/2012,S R Nicolaou ,"3,518",Other Building Costs ,West and Southern Africa ,,101637-101 
DFID,DFID,25/09/2012,Limeline Sierra Leone Ltd ,502,other information and communication technologies ,West and Southern Africa ,,101629-101 
DFID,DFID,25/09/2012,Bluku Services ,650,Aid Programme - Core contributions ,West and Southern Africa ,,202477-106 
DFID,DFID,25/09/2012,The Country Lodge Complex ,854,Hotels - Accommodation only ,West and Southern Africa ,,101629-101 
DFID,DFID,25/09/2012,Supplier name withheld ,969,Hotels - Accommodation only ,West and Southern Africa ,,101610-101 
DFID,DFID,25/09/2012,Safricas Congo SARL ,"1,318",Other rentals ,West and Southern Africa ,,100068-101 
DFID,DFID,25/09/2012,Raju's Electricals ,"2,222",Facilities Management payments ,West and Southern Africa ,,101629-101 
DFID,DFID,25/09/2012,British Embassy ,"3,033",Oil - Other Utilities ,West and Southern Africa ,,101638-103 
DFID,DFID,25/09/2012,ADAM SMITH INTERNATIONAL  LTD ,"4,690",Technical and Advisory Services ,West and Southern Africa ,,202725-103 
DFID,DFID,25/09/2012,Safricas Congo SARL ,"5,273",Other rentals ,West and Southern Africa ,,101610-101 
DFID,DFID,25/09/2012,COMMUNICAID GRP LIMITED ,"5,595",Training - Travel & Subsistence ,West and Southern Africa ,,101610-101 
DFID,DFID,25/09/2012,MICRO COM Sprl ,"6,797",Data Network - land lines ,West and Southern Africa ,,101610-101 
DFID,DFID,25/09/2012,CHARLES KENDALL & PARTNERS LIMITED (PROCUREMENT) ,"6,832",Technical and Advisory Services ,West and Southern Africa ,,113961-106 
DFID,DFID,25/09/2012,TPS CONSULT ,"7,500",Technical and Advisory Services ,West and Southern Africa ,,100153-101 
DFID,DFID,25/09/2012,BK Painters ,"7,670",Repairs  Maint  Alter - Property & Constrct. Services ,West and Southern Africa ,,101638-103 
DFID,DFID,25/09/2012,Supplier Name withheld ,"8,183",Secure Staff Accomodation,West and Southern Africa ,,101610-101 
DFID,DFID,25/09/2012,COMMUNICAID GRP LIMITED ,"8,393",Training - Travel & Subsistence ,West and Southern Africa ,,101610-101 
DFID,DFID,25/09/2012,COFFEY INTERNATIONAL DEVELOPMENT LTD ,"10,254",Technical and Advisory Services ,West and Southern Africa ,,200325-101 
DFID,DFID,25/09/2012,HLSP LIMITED ,"82,563",Technical and Advisory Services ,West and Southern Africa ,,200325-101 
DFID,DFID,25/09/2012,CHARLES KENDALL & PARTNERS LIMITED (PROCUREMENT) ,"136,642",Technical and Advisory Services ,West and Southern Africa ,,113961-106 
DFID,DFID,25/09/2012,HLSP LIMITED ,"299,772",Technical and Advisory Services ,West and Southern Africa ,,200325-101 
DFID,DFID,25/09/2012,HLSP LIMITED ,"440,676",Technical and Advisory Services ,West and Southern Africa ,,200325-101 
DFID,DFID,26/09/2012,Supplier name withheld ,513,Hotels - Accommodation only ,West and Southern Africa ,,101610-101 
DFID,DFID,26/09/2012,British High Commission ,528,Vehicle Petrol & Oil ,West and Southern Africa ,,100214-101 
DFID,DFID,26/09/2012,Foreign & Commonwealth Office ,535,Electricity ,West and Southern Africa ,,101631-101 
DFID,DFID,26/09/2012,Wood lands Guest Lodge ,555,Hotels - Accommodation only ,West and Southern Africa ,,101638-105 
DFID,DFID,26/09/2012,Holiday Inn Accra ,556,Hotels - Accommodation only ,West and Southern Africa ,,101613-101 
DFID,DFID,26/09/2012,Tregia Stationery ,610,Office Supplies ,West and Southern Africa ,,100144-101 
DFID,DFID,26/09/2012,Foreign & Commonwealth Office ,621,Electricity ,West and Southern Africa ,,101631-101 
DFID,DFID,26/09/2012,Lilongwe Water Board ,628,Water charges ,West and Southern Africa ,,101618-101 
DFID,DFID,26/09/2012,Barloworld Equipment ,651,Generators & spares ,West and Southern Africa ,,101618-101 
DFID,DFID,26/09/2012,Stewarts & Lloyds ,678,Other Building Costs ,West and Southern Africa ,,101618-101 
DFID,DFID,26/09/2012,Supplier name withheld ,710,Hotels - Accommodation only ,West and Southern Africa ,,101610-101 
DFID,DFID,26/09/2012,British High Commission ,724,Generators & spares ,West and Southern Africa ,,101629-101 
DFID,DFID,26/09/2012,Premier Travel ,739,Relocation costs ,West and Southern Africa ,,100144-101 
DFID,DFID,26/09/2012,British High Commission ,792,Vehicle Petrol & Oil ,West and Southern Africa ,,101629-101 
DFID,DFID,26/09/2012,Bon Voyage Travel Centre Ltd(USD) ,836,Air fares ,West and Southern Africa ,,101631-101 
DFID,DFID,26/09/2012,Foreign & Commonwealth Office ,871,Aid Programme - Joint programme contribution ,West and Southern Africa ,,202477-106 
DFID,DFID,26/09/2012,EuroTours Ghana Ltd ,936,Training - Travel & Subsistence ,West and Southern Africa ,,100096-101 
DFID,DFID,26/09/2012,Tregia Stationery ,"1,494",Office Supplies ,West and Southern Africa ,,101618-101 
DFID,DFID,26/09/2012,UNICEF Kinshasa ,"1,922",Other passenger transport ,West and Southern Africa ,,203445-101 
DFID,DFID,26/09/2012,UNICEF Kinshasa ,"2,418",Hotels - Accommodation only ,West and Southern Africa ,,203445-101 
DFID,DFID,26/09/2012,Foreign & Commonwealth Office ,"6,563",Hotels - Accommodation only ,West and Southern Africa ,,101631-101 
DFID,DFID,26/09/2012,Broll Property Management ,"6,588",Operating Lease rental of buildings ,West and Southern Africa ,,100220-101 
DFID,DFID,26/09/2012,Supplier Name withheld ,"8,178",Secure Staff Accomodation,West and Southern Africa ,,101610-101 
DFID,DFID,26/09/2012,Broll Property Management ,"9,882",Operating Lease rental of buildings ,West and Southern Africa ,,101631-101 
DFID,DFID,26/09/2012,HLSP LIMITED ,"15,549",Technical and Advisory Services ,West and Southern Africa ,,104227-102 
DFID,DFID,26/09/2012,Lilleker Bros (Nigeria) Ltd ,"20,608",Facilities Management payments ,West and Southern Africa ,,101622-101 
DFID,DFID,26/09/2012,Foreign & Commonwealth Office ,"20,857",Aid Programme - Joint programme contribution ,West and Southern Africa ,,202477-106 
DFID,DFID,26/09/2012,Foreign & Commonwealth Office ,"28,185",Secure Staff Accomodation,West and Southern Africa ,Secure staff Accommodation costs - 12 months rental September 2012-2013) Southern Africa,101631-101 
DFID,DFID,26/09/2012,Foreign & Commonwealth Office ,"39,168",Aid Programme - Joint programme contribution ,West and Southern Africa ,,202477-106 
DFID,DFID,26/09/2012,Trend Projects ,"97,783",Technical and Advisory Services ,West and Southern Africa ,,100221-106 
DFID,DFID,26/09/2012,Futures Group Europe ,"229,323",Technical and Advisory Services ,West and Southern Africa ,,202295-102 
DFID,DFID,27/09/2012,Foreign & Commonwealth Office ,699,Cleaning Costs ,West and Southern Africa ,,101631-101 
DFID,DFID,27/09/2012,Foreign & Commonwealth Office ,795,Aid Programme - Joint programme contribution ,West and Southern Africa ,,202477-106 
DFID,DFID,27/09/2012,CHARLES KENDALL & PARTNERS LIMITED (PROCUREMENT) ,860,Technical and Advisory Services ,West and Southern Africa ,,113961-106 
DFID,DFID,27/09/2012,Saimon Overseas Ltd ,971,Air fares ,West and Southern Africa ,,200625-101 
DFID,DFID,27/09/2012,Foreign & Commonwealth Office ,"2,406",Aid Programme - Joint programme contribution ,West and Southern Africa ,,202477-106 
DFID,DFID,27/09/2012,Supplier Name withheld ,"7,394",Secure Staff Accomodation,West and Southern Africa ,,101620-101 
DFID,DFID,27/09/2012,Supplier Name withheld ,"7,394",Secure Staff Accomodation,West and Southern Africa ,,101620-101 
DFID,DFID,27/09/2012,Supplier Name withheld ,"7,394",Secure Staff Accomodation,West and Southern Africa ,,101620-101 
DFID,DFID,27/09/2012,CHARLES KENDALL & PARTNERS LIMITED (PROCUREMENT) ,"7,427",Technical and Advisory Services ,West and Southern Africa ,,113961-106 
DFID,DFID,27/09/2012,Supplier Name withheld ,"7,763",Secure Staff Accomodation,West and Southern Africa ,,101620-101 
DFID,DFID,27/09/2012,Foreign & Commonwealth Office ,"8,180",Aid Programme - Joint programme contribution ,West and Southern Africa ,,202477-106 
DFID,DFID,27/09/2012,DAI Europe ,"8,884",Technical and Advisory Services ,West and Southern Africa ,,201018-102 
DFID,DFID,27/09/2012,Supplier Name withheld ,"10,078",Secure Staff Accomodation,West and Southern Africa ,,101620-101 
DFID,DFID,27/09/2012,Coffey International Development (Do not use) ,"27,740",Technical and Advisory Services ,West and Southern Africa ,,203355-101 
DFID,DFID,27/09/2012,THE SAVE THE CHILDREN FUND ,"42,758",Aid Programme - Accountable Grant Payments ,West and Southern Africa ,,201927-110 
DFID,DFID,27/09/2012,ADAM SMITH INTERNATIONAL ,"99,900",Technical and Advisory Services ,West and Southern Africa ,,201139-101 
DFID,DFID,27/09/2012,Crown Agents Bank - Sierra Leone and Liberia ,"132,493",Technical and Advisory Services ,West and Southern Africa ,,202183-101 
DFID,DFID,27/09/2012,DAI Europe ,"582,819",Technical and Advisory Services ,West and Southern Africa ,,201018-102 
DFID,DFID,27/09/2012,UNICEF ,"3,616,858",Aid Programme - Core contributions ,West and Southern Africa ,,201874-101 
DFID,DFID,28/09/2012,Roma House ,521,Conferences  Seminars & Meeting/Event Resource ,West and Southern Africa ,,101637-101 
DFID,DFID,28/09/2012,Kay Two Zambia Limited ,582,Other Building Costs ,West and Southern Africa ,,203001-104 
DFID,DFID,28/09/2012,MTN Nigeria Communications Ltd ,"1,007",Telephone Usage & services ,West and Southern Africa ,,100152-101 
DFID,DFID,28/09/2012,MTN Nigeria Communications Ltd ,"1,335",Telephone Usage & services ,West and Southern Africa ,,101622-101 
DFID,DFID,28/09/2012,HYGEIA HMO Ltd ,"4,081",Medical/Health Services ,West and Southern Africa ,,100152-101 
DFID,DFID,28/09/2012,ITAD LTD ,"4,155",Technical and Advisory Services ,West and Southern Africa ,,202531-103 
DFID,DFID,28/09/2012,HYGEIA HMO Ltd ,"5,410",Medical/Health Services ,West and Southern Africa ,,101622-101 
DFID,DFID,28/09/2012,COMMUNICAID GRP LIMITED ,"5,595",Training - Travel & Subsistence ,West and Southern Africa ,,101610-101 
DFID,DFID,28/09/2012,HLSP LIMITED ,"5,915",Technical and Advisory Services ,West and Southern Africa ,,202214-101 
DFID,DFID,28/09/2012,David A. ,"10,000",Technical and Advisory Services ,West and Southern Africa ,,201806-103 
DFID,DFID,28/09/2012,Supplier Name withheld ,"12,000",Secure Staff Accomodation,West and Southern Africa ,,202245-102 
DFID,DFID,28/09/2012,Centre for Democracy. & Development ,"14,390",Technical and Advisory Services ,West and Southern Africa ,,104174-101 
DFID,DFID,28/09/2012,CROWN RELOCATIONS  UK ,"15,886",Relocation costs ,West and Southern Africa ,,101610-101 
DFID,DFID,28/09/2012,PKF (UK) LLP ,"18,407",Technical and Advisory Services ,West and Southern Africa ,,104600-105 
DFID,DFID,28/09/2012,SEARCH FOR COMMON GROUND ,"22,046",Technical and Advisory Services ,West and Southern Africa ,,200856-103 
DFID,DFID,28/09/2012,London School of Hygiene and Tropical Medicine ,"23,910",Research & Development costs ,West and Southern Africa ,,203470-101 
DFID,DFID,28/09/2012,HEALTH PARTNERS INTERNATIONAL ,"74,664",Research & Development costs ,West and Southern Africa ,,200497-102 
DFID,DFID,28/09/2012,DAI Europe ,"125,381",Technical and Advisory Services ,West and Southern Africa ,,201958-102 
DFID,DFID,28/09/2012,PRICEWATERHOUSECOOPERS ,"127,493",Technical and Advisory Services ,West and Southern Africa ,,113961-103 
DFID,DFID,28/09/2012,NELSON MANDELA FOUNDATION ,"145,135",Aid Programme - Accountable Grant Payments ,West and Southern Africa ,,200994-101 
DFID,DFID,28/09/2012,PRICEWATERHOUSECOOPERS ,"778,315",Technical and Advisory Services ,West and Southern Africa ,,113961-102 
DFID,DFID,28/09/2012,UNDP CONTRIBUTIONS ACCOUNT ,"925,000",Aid Programme - Pooled/Basket funding ,West and Southern Africa ,,200856-102 
DFID,DFID,28/09/2012,UNITED NATIONS POPULATION FUND ,"1,007,161",Aid Programme - Pooled/Basket funding ,West and Southern Africa ,,202656-102 
DFID,DFID,28/09/2012,World Food  Programme ,"2,000,000",Aid Programme - Voluntary contributions ,West and Southern Africa ,,202935-101 
DFID,DFID,03/09/2012,Supplier Name withheld ,"1,741",Technical and Advisory Services ,Western Asia and Stabilisation Division ,,201023-104 
DFID,DFID,03/09/2012,Supplier Name withheld ,"4,097",Technical and Advisory Services ,Western Asia and Stabilisation Division ,,202190-105 
DFID,DFID,03/09/2012,Supplier Name withheld ,"14,224",Technical and Advisory Services ,Western Asia and Stabilisation Division ,,202371-101 
DFID,DFID,03/09/2012,Supplier Name withheld ,"22,350",Technical and Advisory Services ,Western Asia and Stabilisation Division ,,203077-104 
DFID,DFID,03/09/2012,Supplier Name withheld ,"55,846",Technical and Advisory Services ,Western Asia and Stabilisation Division ,,114488-101 
DFID,DFID,03/09/2012,SAVE THE CHILDREN ,"75,936",Aid Programme - Accountable Grant Payments ,Western Asia and Stabilisation Division ,,203101-101 
DFID,DFID,03/09/2012,Supplier Name withheld ,"88,662",Aid Programme - Trust Funds contributions ,Western Asia and Stabilisation Division ,,114525-102 
DFID,DFID,03/09/2012,McKinsey & Co  Inc UK ,"134,065",Technical and Advisory Services ,Western Asia and Stabilisation Division ,,203297-101 
DFID,DFID,04/09/2012,Supplier Name withheld ,504,Air fares ,Western Asia and Stabilisation Division ,,100011-110 
DFID,DFID,04/09/2012,Supplier Name withheld ,"2,233",Training - Travel & Subsistence ,Western Asia and Stabilisation Division ,,101601-110 
DFID,DFID,04/09/2012,Supplier Name withheld ,"2,302",Training - Travel & Subsistence ,Western Asia and Stabilisation Division ,,100011-110 
DFID,DFID,04/09/2012,Supplier Name withheld ,"3,124",Air fares ,Western Asia and Stabilisation Division ,,101601-110 
DFID,DFID,04/09/2012,Supplier Name withheld ,"24,008",Technical and Advisory Services ,Western Asia and Stabilisation Division ,,200970-101 
DFID,DFID,04/09/2012,Supplier Name withheld ,"30,010",Technical and Advisory Services ,Western Asia and Stabilisation Division ,,200970-101 
DFID,DFID,04/09/2012,Supplier Name withheld ,"154,156",Technical and Advisory Services ,Western Asia and Stabilisation Division ,,201023-103 
DFID,DFID,04/09/2012,STATE BANK OF PAKISTAN  ,"5,000,000",Aid Programme - Poverty Reduction Budget Support ,Western Asia and Stabilisation Division ,,203346-101 
DFID,DFID,05/09/2012,Avari Lahore ,585,Hotels - Accommodation only ,Western Asia and Stabilisation Division ,,101624-101 
DFID,DFID,05/09/2012,Supplier Name withheld ,673,Hostile Environment Training ,Western Asia and Stabilisation Division ,,101601-110 
DFID,DFID,05/09/2012,Supplier Name withheld ,890,Hostile Environment Training ,Western Asia and Stabilisation Division ,,101601-110 
DFID,DFID,05/09/2012,BRITISH HIGH COMMISSION KLA ,"3,207",Hotels - Accommodation only ,Western Asia and Stabilisation Division ,,203350-101 
DFID,DFID,05/09/2012,Pearson PLC ,"3,895",Technical and Advisory Services ,Western Asia and Stabilisation Division ,,203297-101 
DFID,DFID,05/09/2012,Ernst & Young Ford Rhodes Sidat  Hyder ,"7,853",Technical and Advisory Services ,Western Asia and Stabilisation Division ,,113624-103 
DFID,DFID,05/09/2012,Supplier Name withheld ,"539,129",Technical and Advisory Services ,Western Asia and Stabilisation Division ,,114488-101 
DFID,DFID,06/09/2012,Supplier Name withheld ,673,Hostile Environment Training ,Western Asia and Stabilisation Division ,,202333-101 
DFID,DFID,06/09/2012, FCO SERVICES ,"1,663",Office Equipment - Purchases ,Western Asia and Stabilisation Division ,,100186-101 
DFID,DFID,07/09/2012,Avari Lahore ,779,Hotels - Accommodation only ,Western Asia and Stabilisation Division ,,101624-102 
DFID,DFID,07/09/2012,P Hanmer ,800,Technical and Advisory Services ,Western Asia and Stabilisation Division ,,203336-102 
DFID,DFID,07/09/2012,Holly Pawsey ,"3,000",Training - Course Fees ,Western Asia and Stabilisation Division ,,202288-101 
DFID,DFID,07/09/2012,HLSP LTD ,"19,212",Technical and Advisory Services ,Western Asia and Stabilisation Division ,,110182-101 
DFID,DFID,09/09/2012,Supplier Name withheld ,"75,636",Technical and Advisory Services ,Western Asia and Stabilisation Division ,,202733-101 
DFID,DFID,09/09/2012,Supplier Name withheld ,"113,454",Technical and Advisory Services ,Western Asia and Stabilisation Division ,,202733-101 
DFID,DFID,09/09/2012,Supplier Name withheld ,"113,454",Technical and Advisory Services ,Western Asia and Stabilisation Division ,,202733-101 
DFID,DFID,09/09/2012,Supplier Name withheld ,"132,363",Technical and Advisory Services ,Western Asia and Stabilisation Division ,,202733-101 
DFID,DFID,09/09/2012,Supplier Name withheld ,"151,272",Technical and Advisory Services ,Western Asia and Stabilisation Division ,,202733-101 
DFID,DFID,10/09/2012,Orient Advertising ,814,Recruitment costs ,Western Asia and Stabilisation Division ,,101624-101 
DFID,DFID,10/09/2012,Orient Advertising ,"1,373",Recruitment costs ,Western Asia and Stabilisation Division ,,101624-101 
DFID,DFID,10/09/2012,Recipient name withheld ,"1,436",Training - Course Fees ,Western Asia and Stabilisation Division ,,100185-101 
DFID,DFID,10/09/2012,Shazreh Hussain ,"2,071",Training Providers/Facilitation Services ,Western Asia and Stabilisation Division ,,100185-101 
DFID,DFID,10/09/2012,Supplier Name withheld ,"7,649",Technical and Advisory Services ,Western Asia and Stabilisation Division ,,201023-109 
